Workbook

Sheet 02-双流区数据统计表363 (无公式)
A1: 指标分类 | B1: 基本信息 | H1: 20年 | I1: 19年 | J1: 18年 | K1: 主要指标情况 | L1: 产能信息 | R1: 行业引领力 | S1: 成长速度 | U1: 发展潜力 | AG1: 知识产权 | AL1: 绿色生产工艺 | AN1: 安全生产管理 | AQ1: 区域重点企业 | AR1: 产业协作能力 | AT1: 亩均资产
A2: 指标项 | B2: 企业名称 | C2: 统一社会信用代码 | D2: 所属行业小类代码 | E2: 产业类别 | F2: 企业地址 | G2: 属地名称 | H2: 20年营业收入 | I2: 19年营业收入 | J2: 18年营业收入 | K2: 用地面积 | L2: 应纳税金 | M2: 社保人数 | N2: 综合能耗 | O2: 年研发费用 | P2: 主要污染物排放当量 | Q2: 资产总额 | R2: 主导或参与标准制定企业 | S2: 营业收入1亿元以上 | T2: 增长（下降）速度 | U2: 国家级专精特新 | V2: 省级专精特新 | W2: 市级专精特新 | X2: “独角兽”企业 | Y2: “蹬羚”企业 | Z2: 国家级企业技术中心 | AA2: 省级企业技术中心 | AB2: 市级企业技术中心 | AC2: 国家级工程技术中心 | AD2: 省级工程技术中心 | AE2: 市级工程技术中心 | AF2: 高新技术企业 | AG2: 知名品牌企业 | AH2: 首台（套）、首批次、首版次企业 | AI2: 发明专利 | AJ2: 实用新型专利 | AK2: PCT国际专利 | AL2: 减排技术升级改造 | AM2: 环保检查、环保抽查中被发现问题 | AN2: 发现安全风险隐患 | AO2: 发生安全事故 | AP2: 企业拥有ISO三体系数量 | AQ2: 市级100户重点企业、区（市）县重点企业 | AR2: 符合地区重点产业 | AS2: 本地区重点企业的重要配套企业 | AT2: 资产总额
A3: 指标单位 | H3: 万元 | I3: 万元 | J3: 万元 | K3: 亩 | L3: 万元 | M3: 人 | N3: 吨标准煤 | O3: 万元 | P3: 当量 | Q3: 资产总额
A4: 备注 | H4: 2020年营业收入（万元） | I4: 2019年营业收入（万元） | J4: 2018年营业收入（万元） | K4: 实际占地面积（亩） | L4: 应缴税金（万元） | M4: 年平均用工人数（人） | N4: 综合能耗（吨标煤） | O4: 研发经费支出 （万元） | P4: 污染物排放量 （当量） | Q4: 资产总额（万元） | R4: 企业主导或参与国际、“一带一路”区域、国家级、行业、省级等行业标准制定的 | S4: 营业收入1亿元以上 | T4: 增长（下降）速度 | U4: 企业获得国家级、省级、市级专精特新“小巨人”企业等称号的 | X4: 企业获得国家级、省级、市级“独角兽”企业、“蹬羚”企业等称号的 | Z4: 企业获得国家级、省级、市级企业技术中心 | AC4: 企业获得国家级、省级、市级工程技术中心的 | AF4: 企业获得国家级、省级、市级高新技术企业认定的 | AG4: 企业品牌为国家级、省级、市级知名品牌的（含地理标志保护）（请举例说明，举例时注明国家级、省级、市级） | AH4: 企业产品进入重大技术装备首台（套）、新材料首批次、软件首版次推广应用的 | AI4: 企业拥有的授权专利数（发明专利数、实用新型专利数），PCT国际专利数（截止2020.12.31日已授权的专利数量） | AL4: 企业实施减排技术升级改造的 | AM4: 企业在环保检查、环保抽查中被发现问题并受到处理的 | AN4: 企业在安全检查、安全抽查中被发现风险隐患并受到处理的 | AO4: 企业发生安全事故的（发生亡人事故直接降档） | AP4: 拥有质量管理体系、环境管理体系和职业健康与安全管理体系（请以文字描述，描述时请说明拥有的体系数量） | AQ4: 企业被确定为市级100户重点企业、区（市）县重点企业的（区级重点企业：产值前30强） | AR4: 企业符合本地区重点发展产业的 | AS4: 企业为本地区重点企业的重要配套企业的 | AT4: 资产总额（万元/亩）=资产总额/占地面积
A5: 93 | B5: 成都优博创通信技术有限公司 | C5: 91510122396283907M | D5: 6511 | E5: 其他制造业 | F5: 成都市双流区邵家街666号 | G5: 四川双流经济开发区（西南航空港经济开发区） | H5: 26263.0 | I5: 21202.7 | J5: 10831.1 | K5: 30 | L5: 102.3 | M5: 420 | N5: 405.57 | O5: 1614.0 | P5: 0 | Q5: 22474.4 | R5: 否 | S5: =IF(H5>10000,"是","否") -> 是 | T5: =(H5/I5+I5/J5)*0.5-1 -> 60% | U5: 否 | V5: 否 | W5: 否 | X5: 否 | Y5: 否 | Z5: 否 | AA5: 是 | AB5: 否 | AC5: 否 | AD5: 否 | AE5: 是 | AF5: 是 | AG5: 否 | AH5: 否 | AI5: 85 | AJ5: 17 | AK5: 0 | AL5: 否 | AM5: 否 | AN5: 2.2 | AO5: 否 | AP5: 2 | AQ5: 否 | AR5: 是 | AS5: 否 | AT5: 749.147
A6: 248 | B6: 成都双流志强碳素厂 | C6: 915101222023857038 | D6: 1099 | E6: 非金属矿采选业 | F6: 成都市双流区黄水镇高石社区3组302号 | G6: 四川双流经济开发区 | H6: 2134.5 | I6: 0 | J6: 0 | K6: 6 | L6: 35.3 | M6: 17 | N6: 117.09 | O6: 0.0 | P6: 598.59 | Q6: 1020.92 | R6: 否 | S6: 否 | T6: 0% | U6: 否 | V6: 否 | W6: 否 | X6: 否 | Y6: 否 | Z6: 否 | AA6: 否 | AB6: 否 | AC6: 否 | AD6: 否 | AE6: 是 | AF6: 否 | AG6: 否 | AH6: 否 | AI6: 0 | AJ6: 0 | AK6: 0 | AL6: 否 | AM6: 否 | AN6: 否 | AO6: 否 | AP6: 0 | AQ6: 否 | AR6: 否 | AS6: 否 | AT6: 170.153
A7: 165 | B7: 四川正红生物技术有限责任公司 | C7: 915101225620173572 | D7: 1310 | E7: 农副食品加工业 | F7: 四川省成都市双流区西南航空港经济开发区空港三路989号 | G7: 四川双流经济开发区（西南航空港经济开发区） | H7: 3051.9 | I7: 2721.1 | J7: 2570.7 | K7: 19.8 | L7: 38.5 | M7: 41 | N7: 15.95 | O7: 282.0 | P7: 0 | Q7: 6534 | R7: 否 | S7: 否 | T7: =(H7/I7+I7/J7)*0.5-1 -> 9% | U7: 否 | V7: 否 | W7: 否 | X7: 否 | Y7: 否 | Z7: 否 | AA7: 否 | AB7: 否 | AC7: 否 | AD7: 否 | AE7: 是 | AF7: 否 | AG7: 否 | AH7: 否 | AI7: 0 | AJ7: 0 | AK7: 0 | AL7: 否 | AM7: 否 | AN7: 否 | AO7: 否 | AP7: 0 | AQ7: 否 | AR7: 是 | AS7: 否 | AT7: 330.000
A8: 218 | B8: 四川旺大农牧科技有限公司 | C8: 9151012268183267XJ | D8: 1321 | E8: 农副食品加工业 | F8: 成都蛟龙工业港双流园区李渡路11座(186号) | G8: 四川双流经济开发区 | H8: 6212.4 | I8: 4483.3 | J8: 6739.6 | K8: 7 | L8: 8.0 | M8: 38 | N8: 114.28 | O8: 0.0 | P8: 366.41 | Q8: 2116 | R8: 否 | S8: 否 | T8: 3% | U8: 否 | V8: 否 | W8: 否 | X8: 否 | Y8: 否 | Z8: 否 | AA8: 否 | AB8: 否 | AC8: 否 | AD8: 否 | AE8: 是 | AF8: 否 | AG8: 否 | AH8: 否 | AI8: 0 | AJ8: 0 | AK8: 0 | AL8: 否 | AM8: 否 | AN8: 否 | AO8: 否 | AP8: 0 | AQ8: 否 | AR8: 是 | AS8: 否 | AT8: 302.286
A9: 138 | B9: 四川斯特佳饲料有限公司 | C9: 9151012277454073XH | D9: 1321 | E9: 农副食品加工业 | F9: 双流区新华大道597号 | G9: 四川双流经济开发区 | H9: 26523.2 | I9: 24098.3 | J9: 25021.8 | K9: 41.20 | L9: 104.4 | M9: 146 | N9: 2555.53 | O9: 95.3 | P9: 1266.11 | Q9: 11395.50 | R9: 否 | S9: 是 | T9: 3% | U9: 否 | V9: 否 | W9: 否 | X9: 否 | Y9: 否 | Z9: 否 | AA9: 否 | AB9: 是 | AC9: 否 | AD9: 否 | AE9: 是 | AF9: 否 | AG9: 否 | AH9: 否 | AI9: 8 | AJ9: 8 | AK9: 0 | AL9: 30.00 | AM9: 否 | AN9: 否 | AO9: 否 | AP9: 3 | AQ9: 否 | AR9: 是 | AS9: 否 | AT9: 276.590
A10: 196 | B10: 成都铁骑力士饲料有限公司 | C10: 91510122728076980C | D10: 1329 | E10: 农副食品加工业 | F10: 中国(四川)自由贸易试验区成都市双流区西南航空港开发区5平方公里新区 | G10: 四川双流经济开发区（西南航空港经济开发区） | H10: 53116.2 | I10: 48540.0 | J10: 40587.1 | K10: 91.4 | L10: 177.6 | M10: 128 | N10: 1833.05 | O10: 0.0 | P10: 1027.45 | Q10: 17329.3 | R10: 否 | S10: 是 | T10: 15% | U10: 否 | V10: 否 | W10: 否 | X10: 否 | Y10: 否 | Z10: 否 | AA10: 否 | AB10: 否 | AC10: 否 | AD10: 否 | AE10: 是 | AF10: 是 | AG10: 否 | AH10: 否 | AI10: 0 | AJ10: 0 | AK10: 0 | AL10: 否 | AM10: 否 | AN10: 否 | AO10: 否 | AP10: 0 | AQ10: 否 | AR10: 是 | AS10: 否 | AT10: 189.598
A11: 216 | B11: 成都通威动物营养科技有限公司 | C11: 915101227130329181 | D11: 1329 | E11: 农副食品加工业 | F11: 成都市双流区西航港经济开发区腾飞路739号 | G11: 四川双流经济开发区（西南航空港经济开发区） | H11: 10274.8 | I11: 9078.2 | J11: 8537.9 | K11: 63.5 | L11: 383.3 | M11: 72 | N11: 13.52 | O11: 622.6 | P11: 0 | Q11: 3327.7 | R11: 否 | S11: 是 | T11: 10% | U11: 否 | V11: 否 | W11: 否 | X11: 否 | Y11: 否 | Z11: 否 | AA11: 否 | AB11: 否 | AC11: 否 | AD11: 否 | AE11: 是 | AF11: 否 | AG11: 否 | AH11: 否 | AI11: 2 | AJ11: 0 | AK11: 0 | AL11: 否 | AM11: 否 | AN11: 否 | AO11: 否 | AP11: 1 | AQ11: 否 | AR11: 是 | AS11: 否 | AT11: 52.405
A12: 192 | B12: 四川普罗生物科技有限公司 | C12: 91510122099402754N | D12: 1329 | E12: 农副食品加工业 | F12: 双流区汉江路268号 | G12: 四川双流经济开发区 | H12: 10885.9 | I12: 5861.4 | J12: 21148 | K12: 7.68 | L12: 13.8 | M12: 60 | N12: 253.23 | O12: 0.0 | P12: 481.32 | Q12: 3195.039855 | R12: 否 | S12: 是 | T12: 7% | U12: 否 | V12: 否 | W12: 否 | X12: 否 | Y12: 否 | Z12: 否 | AA12: 否 | AB12: 否 | AC12: 否 | AD12: 否 | AE12: 是 | AF12: 否 | AG12: 否 | AH12: 否 | AI12: 0 | AJ12: 0 | AK12: 0 | AL12: 否 | AM12: 否 | AN12: 否 | AO12: 否 | AP12: 0 | AQ12: 否 | AR12: 是 | AS12: 否 | AT12: 416.021
A13: 114 | B13: 成都激健生物科技有限公司 | C13: 91510122MA61WU5K01 | D13: 1329 | E13: 农副食品加工业 | F13: 成都市双流区西南航空港经济开发区腾飞十路125号 | G13: 四川双流经济开发区（西南航空港经济开发区） | H13: 2136.4 | I13: 3002.5 | J13: 0.0 | K13: 3.4 | L13: 237.1 | M13: 28 | N13: 49.3 | O13: 0.0 | P13: 0 | Q13: 2002.8 | R13: 否 | S13: 否 | T13: =H13/I13-1 -> -29% | U13: 否 | V13: 否 | W13: 否 | X13: 否 | Y13: 否 | Z13: 否 | AA13: 否 | AB13: 否 | AC13: 否 | AD13: 否 | AE13: 是 | AF13: 否 | AG13: 否 | AH13: 否 | AI13: 0 | AJ13: 0 | AK13: 0 | AL13: 否 | AM13: 否 | AN13: 否 | AO13: 否 | AP13: 0 | AQ13: 否 | AR13: 是 | AS13: 否 | AT13: 589.059
A14: 249 | B14: 成都唐人神湘大骆驼饲料有限公司 | C14: 91510122790024655F | D14: 1329 | E14: 农副食品加工业 | F14: 成都市双流区黄甲街道西航港大道中四段518号 | G14: 四川双流经济开发区（西南航空港经济开发区） | H14: 14845.7 | I14: 15881.8 | J14: 23078.7 | K14: 50.4 | L14: 68.5 | M14: 72 | N14: 601.63 | O14: 20.7 | P14: 420.75 | Q14: 4276.3 | R14: 否 | S14: 是 | T14: =(H14/I14+I14/J14)*0.5-1 -> -19% | U14: 否 | V14: 否 | W14: 否 | X14: 否 | Y14: 否 | Z14: 否 | AA14: 否 | AB14: 否 | AC14: 否 | AD14: 否 | AE14: 是 | AF14: 否 | AG14: 否 | AH14: 否 | AI14: 1 | AJ14: 1 | AK14: 0 | AL14: 否 | AM14: 否 | AN14: 否 | AO14: 否 | AP14: 0 | AQ14: 否 | AR14: 是 | AS14: 否 | AT14: 84.847
A15: 130 | B15: 成都特驱农牧科技有限公司 | C15: 91510122797835522C | D15: 1329 | E15: 农副食品加工业 | F15: 成都市双流区黄甲街道双华社区腾飞三路168号 | G15: 四川双流经济开发区（西南航空港经济开发区） | H15: 65166.7 | I15: 57167.1 | J15: 75776.6 | K15: 50 | L15: 715.7 | M15: 146 | N15: 2135.72 | O15: 0.0 | P15: 2625.98 | Q15: 13005.3 | R15: 否 | S15: 是 | T15: =(H15/I15+I15/J15)*0.5-1 -> -5% | U15: 否 | V15: 否 | W15: 否 | X15: 否 | Y15: 否 | Z15: 否 | AA15: 否 | AB15: 否 | AC15: 否 | AD15: 否 | AE15: 是 | AF15: 是 | AG15: 否 | AH15: 否 | AI15: 4 | AJ15: 2 | AK15: 0 | AL15: 否 | AM15: 否 | AN15: 否 | AO15: 否 | AP15: 1 | AQ15: 区县重点企业 | AR15: 是 | AS15: 否 | AT15: 260.106
A16: 111 | B16: 嘉里粮油（四川）有限公司 | C16: 91510000621601415M | D16: 1331 | E16: 农副食品加工业 | F16: 嘉里路88号 | G16: 四川双流经济开发区（西南航空港经济开发区） | H16: 92275.8 | I16: 70176.9 | J16: 57264.7 | K16: 165 | L16: 966.875029 | M16: 95 | N16: 2067.56 | O16: 115.5 | P16: 2983.64 | Q16: 44084.7 | R16: 否 | S16: 是 | T16: =(H16/I16+I16/J16)*0.5-1 -> 27% | U16: 否 | V16: 否 | W16: 否 | X16: 否 | Y16: 否 | Z16: 否 | AA16: 否 | AB16: 否 | AC16: 否 | AD16: 否 | AE16: 是 | AF16: 否 | AG16: 否 | AH16: 否 | AI16: 0 | AJ16: 0 | AK16: 0 | AL16: 否 | AM16: 否 | AN16: 否 | AO16: 否 | AP16: 3 | AQ16: 区县重点企业 | AR16: 否 | AT16: 267.180
A17: 291 | B17: 绿康蜀地成都粮油有限公司 | C17: 91510122MA61UUMD0X | D17: 1331 | E17: 农副食品加工业 | F17: 四川省成都市双流区南河路546号 | G17: 四川双流经济开发区 | H17: 2134.4 | I17: 0 | J17: 0 | K17: 5.25 | L17: 3.2 | M17: 16 | N17: 4.39 | O17: 0.0 | P17: 0 | Q17: 800 | R17: 否 | S17: 否 | T17: 0% | U17: 否 | V17: 否 | W17: 否 | X17: 否 | Y17: 否 | Z17: 否 | AA17: 否 | AB17: 否 | AC17: 否 | AD17: 否 | AE17: 是 | AF17: 否 | AG17: 否 | AH17: 否 | AI17: 0 | AJ17: 0 | AK17: 0 | AL17: 否 | AM17: 否 | AN17: 否 | AO17: 否 | AP17: 0 | AQ17: 否 | AR17: 否 | AS17: 否 | AT17: 152.381
A18: 342 | B18: 成都融海粮油有限公司 | C18: 91510122677162546T | D18: 1331 | E18: 农副食品加工业 | F18: 双流区黄龙溪镇华严村五组205号 | G18: 四川双流经济开发区 | H18: 5997.5 | I18: 6580.8 | J18: 5892.7 | K18: 40 | L18: 28.8 | M18: 88 | N18: 164.87 | O18: 0.0 | P18: 58.31 | Q18: 1328 | R18: 否 | S18: 否 | T18: =(H18/I18+I18/J18)*0.5-1 -> 1% | U18: 否 | V18: 否 | W18: 否 | X18: 否 | Y18: 否 | Z18: 否 | AA18: 否 | AB18: 否 | AC18: 否 | AD18: 否 | AE18: 是 | AF18: 否 | AG18: 否 | AH18: 否 | AI18: 0 | AJ18: 0 | AK18: 0 | AL18: 否 | AM18: 否 | AN18: 2.2 | AO18: 否 | AP18: 0 | AQ18: 否 | AR18: 否 | AS18: 否 | AT18: 33.200
A19: 120 | B19: 成都太古糖业有限公司 | C19: 9151012206698863XR | D19: 1340 | E19: 农副食品加工业 | F19: 成都蛟龙工业港双流园区涪陵路269号 | G19: 四川双流经济开发区 | H19: 2622.7 | I19: 3290 | J19: 3559.6 | K19: 4 | L19: 276.9 | M19: 35 | N19: 19.32 | O19: 0.0 | P19: 0 | Q19: 1645 | R19: 否 | S19: 否 | T19: =(H19/I19+I19/J19)*0.5-1 -> -14% | U19: 否 | V19: 否 | W19: 否 | X19: 否 | Y19: 否 | Z19: 否 | AA19: 否 | AB19: 否 | AC19: 否 | AD19: 否 | AE19: 是 | AF19: 否 | AG19: 否 | AH19: 否 | AI19: 0 | AJ19: 0 | AK19: 0 | AL19: 否 | AM19: 否 | AN19: 否 | AO19: 否 | AP19: 0 | AQ19: 否 | AR19: 否 | AS19: 否 | AT19: 411.250
A20: 250 | B20: 成都市顺长园食品厂 | C20: 91510122L09451521Y | D20: 1353 | E20: 农副食品加工业 | F20: 新街村146号 | G20: 四川双流经济开发区 | H20: 2600.6 | I20: 2794.8 | J20: 0 | K20: 8 | L20: 19.6 | M20: 56 | N20: 81.11 | O20: 0.0 | P20: 0.01 | Q20: 3373 | R20: 否 | S20: 否 | T20: =H20/I20-1 -> -7% | U20: 否 | V20: 否 | W20: 否 | X20: 否 | Y20: 否 | Z20: 否 | AA20: 否 | AB20: 否 | AC20: 否 | AD20: 否 | AE20: 是 | AF20: 否 | AG20: 否 | AH20: 否 | AI20: 0 | AJ20: 0 | AK20: 0 | AL20: 否 | AM20: 否 | AN20: 否 | AO20: 否 | AP20: 0 | AQ20: 否 | AR20: 否 | AS20: 否 | AT20: 421.625
A21: 236 | B21: 成都老城南食品有限公司 | C21: 91510122713095134D | D21: 1353 | E21: 农副食品加工业 | F21: 成都市双流区黄甲街道双华社区腾飞三路59号 | G21: 四川双流经济开发区（西南航空港经济开发区） | H21: 6944.6 | I21: 7934.7 | J21: 11152.0 | K21: 20 | L21: 203.3 | M21: 116 | N21: 1172.35 | O21: 0.0 | P21: 353.95 | Q21: 2987.9 | R21: 否 | S21: 否 | T21: =(H21/I21+I21/J21)*0.5-1 -> -21% | U21: 否 | V21: 否 | W21: 否 | X21: 否 | Y21: 否 | Z21: 否 | AA21: 否 | AB21: 否 | AC21: 否 | AD21: 否 | AE21: 是 | AF21: 否 | AG21: 否 | AH21: 否 | AI21: 0 | AJ21: 0 | AK21: 0 | AL21: 否 | AM21: 否 | AN21: 否 | AO21: 否 | AP21: 3 | AQ21: 否 | AR21: 否 | AS21: 否 | AT21: 149.395
A22: 230 | B22: 成都路特食品有限公司 | C22: 91510122758781074G | D22: 1372 | E22: 农副食品加工业 | F22: 罗汉路188号 | G22: 四川双流经济开发区 | H22: 6842.6 | I22: 8222.9 | J22: 6483.2 | K22: 20 | L22: 140.9 | M22: 34 | N22: 445.92 | O22: 0.0 | P22: 405.41 | Q22: 3796 | R22: 否 | S22: 否 | T22: =(H22/I22+I22/J22)*0.5-1 -> 5% | U22: 否 | V22: 否 | W22: 否 | X22: 否 | Y22: 否 | Z22: 否 | AA22: 否 | AB22: 否 | AC22: 否 | AD22: 否 | AE22: 是 | AF22: 否 | AG22: 否 | AH22: 否 | AI22: 0 | AJ22: 0 | AK22: 0 | AL22: 否 | AM22: 否 | AN22: 否 | AO22: 否 | AP22: 0 | AQ22: 否 | AR22: 否 | AS22: 否 | AT22: 189.800
A23: 169 | B23: 四川品高农产有限公司 | C23: 915101227436436990 | D23: 1372 | E23: 农副食品加工业 | F23: 罗汉路255 | G23: 四川双流经济开发区 | H23: 4624.7 | I23: 4674.1 | J23: 4983.4 | K23: 10.34 | L23: 18.8 | M23: 34 | N23: 241.19 | O23: 35.2 | P23: 0 | Q23: 4663.33 | R23: 否 | S23: 否 | T23: =(H23/I23+I23/J23)*0.5-1 -> -4% | U23: 否 | V23: 否 | W23: 否 | X23: 否 | Y23: 否 | Z23: 否 | AA23: 否 | AB23: 否 | AC23: 否 | AD23: 否 | AE23: 是 | AF23: 否 | AG23: 否 | AH23: 否 | AI23: 8 | AJ23: 6 | AK23: 0 | AL23: 否 | AM23: 否 | AN23: 否 | AO23: 否 | AP23: 0 | AQ23: 否 | AR23: 否 | AS23: 否 | AT23: 450.999
A24: 199 | B24: 成都齐力红食品有限责任公司 | C24: 91510114788116606K | D24: 1373 | E24: 农副食品加工业 | F24: 西航港开发区西航港街道空港二路348号 | G24: 四川双流经济开发区（西南航空港经济开发区） | H24: 4939.6 | I24: 5638.2 | J24: 0.0 | K24: 10.2 | L24: 84.2 | M24: 70 | N24: 66.37 | O24: 0.0 | P24: 0 | Q24: 3185.6 | R24: 否 | S24: 否 | T24: =H24/I24-1 -> -12% | U24: 否 | V24: 否 | W24: 否 | X24: 否 | Y24: 否 | Z24: 否 | AA24: 否 | AB24: 否 | AC24: 否 | AD24: 否 | AE24: 是 | AF24: 否 | AG24: 否 | AH24: 否 | AI24: 0 | AJ24: 0 | AK24: 0 | AL24: 否 | AM24: 否 | AN24: 否 | AO24: 否 | AP24: 1 | AQ24: 否 | AR24: 否 | AS24: 否 | AT24: 312.314
A25: 312 | B25: 四川省吴府记食品有限公司 | C25: 91510122765369379G | D25: 1373 | E25: 农副食品加工业 | F25: 中国(四川)自由贸易试验区成都市双流区西航港街道空港一路二段1069号 | G25: 四川双流经济开发区（西南航空港经济开发区） | H25: 2810.4 | I25: 2706.6 | J25: 0.0 | K25: 19.8 | L25: 123.0 | M25: 47 | N25: 347.71 | O25: 0.0 | P25: 236.05 | Q25: 1856.5 | R25: 否 | S25: 否 | T25: =H25/I25-1 -> 4% | U25: 否 | V25: 否 | W25: 否 | X25: 否 | Y25: 否 | Z25: 否 | AA25: 否 | AB25: 否 | AC25: 否 | AD25: 否 | AE25: 是 | AF25: 否 | AG25: 否 | AH25: 否 | AI25: 0 | AJ25: 0 | AK25: 0 | AL25: 否 | AM25: 否 | AN25: 否 | AO25: 否 | AP25: 0 | AQ25: 否 | AR25: 否 | AS25: 否 | AT25: 93.763
A26: 103 | B26: 成都优合食品有限公司 | C26: 91510122679674107J | D26: 1399 | E26: 农副食品加工业 | F26: 成都蛟龙工业港双流园区新华大道536号 | G26: 四川双流经济开发区 | H26: 8295.7 | I26: 8498.4 | J26: 6943.8 | K26: 6.6 | L26: 479.2 | M26: 120 | N26: 104.72 | O26: 0.0 | P26: 175.57 | Q26: 2012 | R26: 否 | S26: 否 | T26: =(H26/I26+I26/J26)*0.5-1 -> 10% | U26: 否 | V26: 否 | W26: 否 | X26: 否 | Y26: 否 | Z26: 否 | AA26: 否 | AB26: 否 | AC26: 否 | AD26: 否 | AE26: 是 | AF26: 否 | AG26: 否 | AH26: 否 | AI26: 8 | AJ26: 8 | AK26: 0 | AL26: 否 | AM26: 否 | AN26: 否 | AO26: 否 | AP26: 0 | AQ26: 否 | AR26: 否 | AS26: 否 | AT26: 304.848
A27: 200 | B27: 成都元气食品有限责任公司 | C27: 91510122592083523D | D27: 1411 | E27: 食品制造业 | F27: 蛟龙港南海大道 | G27: 四川双流经济开发区 | H27: 4638.4 | I27: 4422.2 | J27: 3794.6 | K27: 7.9 | L27: 294.4 | M27: 112 | N27: 190.29 | O27: 0.0 | P27: 0 | Q27: 900 | R27: 否 | S27: 否 | T27: 11% | U27: 否 | V27: 否 | W27: 否 | X27: 否 | Y27: 否 | Z27: 否 | AA27: 否 | AB27: 否 | AC27: 否 | AD27: 否 | AE27: 是 | AF27: 否 | AG27: 否 | AH27: 否 | AI27: 0 | AJ27: 0 | AK27: 0 | AL27: 否 | AM27: 否 | AN27: 否 | AO27: 否 | AP27: 0 | AQ27: 否 | AR27: 否 | AS27: 否 | AT27: 113.924
A28: 181 | B28: 成都市蓉城南台月食品有限公司 | C28: 91510122672196413X | D28: 1411 | E28: 食品制造业 | F28: 成都市双流区九江街道蛟龙工业港威海路86号 | G28: 四川双流经济开发区 | H28: 7374.9 | I28: 6242 | J28: 6001.3 | K28: 23.9 | L28: 467.4 | M28: 145 | N28: 65.6 | O28: 0.0 | P28: 0 | Q28: 2399 | R28: 否 | S28: 否 | T28: 11% | U28: 否 | V28: 否 | W28: 否 | X28: 否 | Y28: 否 | Z28: 否 | AA28: 否 | AB28: 否 | AC28: 否 | AD28: 否 | AE28: 是 | AF28: 否 | AG28: 否 | AH28: 否 | AI28: 0 | AJ28: 0 | AK28: 0 | AL28: 否 | AM28: 否 | AN28: 否 | AO28: 否 | AP28: 2 | AQ28: 否 | AR28: 否 | AS28: 否 | AT28: 100.377
A29: 82 | B29: 成都全益食品有限公司 | C29: 9151012268904589XA | D29: 1432 | E29: 食品制造业 | F29: 四川省成都市双流区腾飞路368 | G29: 四川双流经济开发区（西南航空港经济开发区） | H29: 83055.0 | I29: 65948.3 | J29: 61130.7 | K29: 134.8 | L29: 3278.7 | M29: 700 | N29: 2558.9 | O29: 0.0 | P29: 1753.1 | Q29: 65541.7 | R29: 否 | S29: 是 | T29: 17% | U29: 否 | V29: 否 | W29: 否 | X29: 否 | Y29: 否 | Z29: 否 | AA29: 否 | AB29: 否 | AC29: 否 | AD29: 否 | AE29: 是 | AF29: 是 | AG29: 否 | AH29: 否 | AI29: 0 | AJ29: 0 | AK29: 0 | AL29: 0.1 | AM29: 否 | AN29: 否 | AO29: 否 | AP29: 1 | AQ29: 全市100家重点监测企业 | AR29: 否 | AS29: 配套市级 | AT29: 486.214
A30: 210 | B30: 四川航空汉莎食品有限公司 | C30: 91510000711893749Q | D30: 1439 | E30: 食品制造业 | F30: 四川省成都市双流区物流大道口岸路613号 | G30: 四川双流经济开发区（西南航空港经济开发区） | H30: 14292.9 | I30: 23054.1 | J30: 20159 | K30: 63.1 | L30: 2310.3 | M30: 465 | N30: 817.09 | O30: 0.0 | P30: 574.4 | Q30: 25049.9 | R30: 否 | S30: 是 | T30: -12% | U30: 否 | V30: 否 | W30: 否 | X30: 否 | Y30: 否 | Z30: 否 | AA30: 否 | AB30: 否 | AC30: 否 | AD30: 否 | AE30: 是 | AF30: 否 | AG30: 否 | AH30: 否 | AI30: 0 | AJ30: 0 | AK30: 0 | AL30: 否 | AM30: 否 | AN30: 否 | AO30: 否 | AP30: 0 | AQ30: 否 | AR30: 否 | AS30: 配套市级 | AT30: 396.987
A31: 231 | B31: 西南航空食品有限公司 | C31: 91510000621607841E | D31: 1439 | E31: 食品制造业 | F31: 四川省成都市双流区机场南四路5号 | G31: 四川双流经济开发区（西南航空港经济开发区） | H31: 19751.1 | I31: 28011 | J31: 26512.4 | K31: 68.21 | L31: 995.0 | M31: 954 | N31: 1957.5 | O31: 0.0 | P31: 1729.21 | Q31: 70481.5 | R31: 否 | S31: 是 | T31: -12% | U31: 否 | V31: 否 | W31: 否 | X31: 否 | Y31: 否 | Z31: 否 | AA31: 否 | AB31: 否 | AC31: 否 | AD31: 否 | AE31: 是 | AF31: 否 | AG31: 否 | AH31: 否 | AI31: 0 | AJ31: 0 | AK31: 0 | AL31: 否 | AM31: 否 | AN31: 否 | AO31: 否 | AP31: 2 | AQ31: 否 | AR31: 否 | AS31: 否 | AT31: 1033.302
A32: 113 | B32: 四川淳于府生物科技有限公司 | C32: 91510122713029065L | D32: 1453 | E32: 食品制造业 | F32: 四川省成都市双流区黄甲街道国玻五路16号 | G32: 四川双流经济开发区（西南航空港经济开发区） | H32: 3733.5 | I32: 2372.9 | J32: 0.0 | K32: 5 | L32: 428.3 | M32: 50 | N32: 153.41 | O32: 0.0 | P32: 0 | Q32: 1945.9 | R32: 否 | S32: 否 | T32: =H32/I32-1 -> 57% | U32: 否 | V32: 否 | W32: 否 | X32: 否 | Y32: 否 | Z32: 否 | AA32: 否 | AB32: 否 | AC32: 否 | AD32: 否 | AE32: 是 | AF32: 是 | AG32: 否 | AH32: 否 | AI32: 0 | AJ32: 0 | AK32: 0 | AL32: 否 | AM32: 否 | AN32: 2.2 | AO32: 否 | AP32: 0 | AQ32: 否 | AR32: 否 | AS32: 否 | AT32: 389.180
A33: 4 | B33: 四川天味食品集团股份有限公司 | C33: 915101007978308873 | D33: 1469 | E33: 食品制造业 | F33: 四川省成都市双流区腾飞1路313 | G33: 四川双流经济开发区（西南航空港经济开发区） | H33: 236085.3 | I33: 172979.5 | J33: 142620.4 | K33: 84.8 | L33: 8917.7 | M33: 1263 | N33: 4367.89 | O33: 2256.9 | P33: 3746.5 | Q33: 390040 | R33: 否 | S33: 是 | T33: =(H33/I33+I33/J33)*0.5-1 -> 29% | U33: 否 | V33: 否 | W33: 否 | X33: 否 | Y33: 否 | Z33: 否 | AA33: 是 | AB33: 否 | AC33: 否 | AD33: 否 | AE33: 是 | AF33: 否 | AG33: 否 | AH33: 否 | AI33: 61 | AJ33: 8 | AK33: 0 | AL33: 否 | AM33: 否 | AN33: 否 | AO33: 否 | AP33: 3 | AQ33: 区县重点企业 | AR33: 否 | AS33: 否 | AT33: 4599.528
A34: 246 | B34: 成都达恒毛实业有限公司 | C34: 91510122633153381J | D34: 1469 | E34: 食品制造业 | F34: 四川省成都市双流区蛟龙工业港南阳路59号 | G34: 四川双流经济开发区 | H34: 2922.8 | I34: 2634.9 | J34: 0 | K34: 9 | L34: 86.8 | M34: 78 | N34: 31.57 | O34: 0.0 | P34: 76.12 | Q34: 1293 | R34: 否 | S34: 否 | T34: =H34/I34-1 -> 11% | U34: 否 | V34: 否 | W34: 否 | X34: 否 | Y34: 否 | Z34: 否 | AA34: 否 | AB34: 否 | AC34: 否 | AD34: 否 | AE34: 是 | AF34: 否 | AG34: 否 | AH34: 否 | AI34: 0 | AJ34: 0 | AK34: 0 | AL34: 否 | AM34: 否 | AN34: 否 | AO34: 否 | AP34: 0 | AQ34: 否 | AR34: 否 | AS34: 否 | AT34: 143.667
A35: 286 | B35: 成都伞塔食品有限公司 | C35: 915101225746000059 | D35: 1469 | E35: 食品制造业 | F35: 成都蛟龙工业港双流园区清江路2座 | G35: 四川双流经济开发区 | H35: 2117.2 | I35: 0 | J35: 0 | K35: 13.48 | L35: 73.2 | M35: 63 | N35: 183.49 | O35: 0.0 | P35: 278.87 | Q35: 2382 | R35: 否 | S35: 否 | T35: 0% | U35: 否 | V35: 否 | W35: 否 | X35: 否 | Y35: 否 | Z35: 否 | AA35: 否 | AB35: 否 | AC35: 否 | AD35: 否 | AE35: 是 | AF35: 否 | AG35: 否 | AH35: 否 | AI35: 0 | AJ35: 0 | AK35: 0 | AL35: 否 | AM35: 否 | AN35: 否 | AO35: 否 | AP35: 1 | AQ35: 否 | AR35: 否 | AS35: 否 | AT35: 176.706
A36: 15 | B36: 拜耳（四川）动物保健有限公司 | C36: 915100006216071479 | D36: 1495 | E36: 食品制造业 | F36: 四川省成都市双流区西南航空港经济开发区 | G36: 四川双流经济开发区（西南航空港经济开发区） | H36: 74260.6 | I36: 52438.9 | J36: 50356.1 | K36: 42 | L36: 2323.289987 | M36: 324 | N36: 338.71 | O36: 390.1 | P36: 0 | Q36: 42947.1 | R36: 否 | S36: 是 | T36: =(H36/I36+I36/J36)*0.5-1 -> 23% | U36: 否 | V36: 否 | W36: 否 | X36: 否 | Y36: 否 | Z36: 否 | AA36: 否 | AB36: 否 | AC36: 否 | AD36: 否 | AE36: 是 | AF36: 否 | AG36: 否 | AH36: 否 | AI36: 0 | AJ36: 0 | AK36: 0 | AL36: 否 | AM36: 否 | AN36: 否 | AO36: 否 | AP36: 0 | AQ36: 区县重点企业 | AR36: 否 | AT36: 1022.550
A37: 188 | B37: 四川新久百食品有限公司 | C37: 91510122MA62L43T1E | D37: 1499 | E37: 食品制造业 | F37: 成都蛟龙工业港双流园区汉江路18座369号 | G37: 四川双流经济开发区 | H37: 2102.7 | I37: 2007.8 | J37: 0 | K37: 6 | L37: 106.9 | M37: 90 | N37: 150.37 | O37: 37.0 | P37: 0 | Q37: 684 | R37: 否 | S37: 否 | T37: =H37/I37-1 -> 5% | U37: 否 | V37: 否 | W37: 否 | X37: 否 | Y37: 否 | Z37: 否 | AA37: 否 | AB37: 否 | AC37: 否 | AD37: 否 | AE37: 是 | AF37: 否 | AG37: 否 | AH37: 否 | AI37: 0 | AJ37: 0 | AK37: 0 | AL37: 否 | AM37: 否 | AN37: 2 | AO37: 否 | AP37: 0 | AQ37: 否 | AR37: 否 | AS37: 否 | AT37: 114.000
A38: 156 | B38: 环太生物科技股份有限公司 | C38: 91510122562003772N | D38: 1530 | E38: 其他制造业 | F38: 成都市双流区空港三路979号 | G38: 四川双流经济开发区（西南航空港经济开发区） | H38: 5613.2 | I38: 10560.3 | J38: 12560.1 | K38: 40 | L38: 295.8 | M38: 130 | N38: 183.82 | O38: 345.8 | P38: 0 | Q38: 17036.1 | R38: 否 | S38: 否 | T38: =(H38/I38+I38/J38)*0.5-1 -> -31% | U38: 否 | V38: 否 | W38: 否 | X38: 否 | Y38: 否 | Z38: 否 | AA38: 否 | AB38: 是 | AC38: 否 | AD38: 否 | AE38: 是 | AF38: 是 | AG38: 否 | AH38: 否 | AI38: 25 | AJ38: 5 | AK38: 0 | AL38: 否 | AM38: 否 | AN38: 否 | AO38: 否 | AP38: 1 | AQ38: 否 | AR38: 是 | AS38: 否 | AT38: 425.903
A39: 128 | B39: 成都海蓉特种纺织品有限公司 | C39: 91510122621602522B | D39: 1711 | E39: 纺织业 | F39: 经济开发区天威路188号 | G39: 四川双流经济开发区（西南航空港经济开发区） | H39: 18842.7 | I39: 15736.0 | J39: 15209.0 | K39: 155.1 | L39: 1537.8 | M39: 397 | N39: 1617.13 | O39: 1498.8 | P39: 2864.86 | Q39: 44811.7 | R39: 否 | S39: 是 | T39: =(H39/I39+I39/J39)*0.5-1 -> 12% | U39: 否 | V39: 否 | W39: 否 | X39: 否 | Y39: 否 | Z39: 否 | AA39: 是 | AB39: 否 | AC39: 否 | AD39: 否 | AE39: 是 | AF39: 是 | AG39: 否 | AH39: 否 | AI39: 32 | AJ39: 11 | AK39: 0 | AL39: 否 | AM39: 否 | AN39: 否 | AO39: 否 | AP39: 1 | AQ39: 否 | AR39: 否 | AS39: 否 | AT39: 288.921
A40: 66 | B40: 成都市蓝鸟服装有限公司 | C40: 91510122054924604F | D40: 1819 | E40: 其他制造业 | F40: 黄海路28座132号 | G40: 四川双流经济开发区 | H40: 2650.1 | I40: 2420.4 | J40: 0 | K40: 5 | L40: 89.8 | M40: 96 | N40: 40.5 | O40: 132.5 | P40: 0 | Q40: 2858 | R40: 否 | S40: 否 | T40: =H40/I40-1 -> 9% | U40: 否 | V40: 否 | W40: 否 | X40: 否 | Y40: 否 | Z40: 否 | AA40: 否 | AB40: 否 | AC40: 否 | AD40: 否 | AE40: 是 | AF40: 否 | AG40: 否 | AH40: 否 | AI40: 17 | AJ40: 14 | AK40: 0 | AL40: 否 | AM40: 否 | AN40: 否 | AO40: 否 | AP40: 3 | AQ40: 否 | AR40: 否 | AS40: 否 | AT40: 571.600
A41: 133 | B41: 成都仁和制衣有限责任公司 | C41: 91510122709288072U | D41: 1819 | E41: 其他制造业 | F41: 西航港经济开发区空港二路218号 | G41: 四川双流经济开发区（西南航空港经济开发区） | H41: 5308.0 | I41: 3482.6 | J41: 6417.9 | K41: 11.8 | L41: 305.4 | M41: 180 | N41: 160.57 | O41: 0.0 | P41: 0 | Q41: 3779.7 | R41: 否 | S41: 否 | T41: =(H41/I41+I41/J41)*0.5-1 -> 3% | U41: 否 | V41: 否 | W41: 否 | X41: 否 | Y41: 否 | Z41: 否 | AA41: 否 | AB41: 否 | AC41: 否 | AD41: 否 | AE41: 是 | AF41: 是 | AG41: 否 | AH41: 否 | AI41: 11 | AJ41: 0 | AK41: 0 | AL41: 否 | AM41: 否 | AN41: 否 | AO41: 否 | AP41: 3 | AQ41: 否 | AR41: 否 | AS41: 否 | AT41: 320.314
A42: 348 | B42: 成都圣一制衣有限公司 | C42: 91510122709216781W | D42: 1819 | E42: 其他制造业 | F42: 双流区公兴街道荷香路一段46号 | G42: 四川双流经济开发区（西南航空港经济开发区） | H42: 0 | I42: 2106.7 | J42: 0 | K42: 45 | L42: 43.56 | M42: 23 | N42: 57.76 | O42: 0.0 | P42: 0 | Q42: 1981 | R42: 否 | S42: 否 | T42: =H42/I42-1 -> -100% | U42: 否 | V42: 否 | W42: 否 | X42: 否 | Y42: 否 | Z42: 否 | AA42: 否 | AB42: 否 | AC42: 否 | AD42: 否 | AE42: 是 | AF42: 否 | AG42: 否 | AH42: 否 | AI42: 0 | AJ42: 0 | AK42: 0 | AL42: 否 | AM42: 否 | AN42: 否 | AO42: 否 | AP42: 0 | AQ42: 否 | AR42: 否 | AS42: 否 | AT42: 44.022
A43: 261 | B43: 四川阿迪曼尔皮具服饰有限公司 | C43: 9151012275875384XF | D43: 1922 | E43: 其他制造业 | F43: 成都市双流区黄甲街道双华社区腾飞三路48号 | G43: 四川双流经济开发区（西南航空港经济开发区） | H43: 3314.0 | I43: 5293.1 | J43: 3957.4 | K43: 21.7 | L43: 166.9 | M43: 161 | N43: 37.54 | O43: 0.0 | P43: 0 | Q43: 5242 | R43: 否 | S43: 否 | T43: =(H43/I43+I43/J43)*0.5-1 -> -2% | U43: 否 | V43: 否 | W43: 否 | X43: 否 | Y43: 否 | Z43: 否 | AA43: 否 | AB43: 否 | AC43: 否 | AD43: 否 | AE43: 是 | AF43: 否 | AG43: 否 | AH43: 否 | AI43: 19 | AJ43: 6 | AK43: 0 | AL43: 否 | AM43: 否 | AN43: 否 | AO43: 否 | AP43: 3 | AQ43: 否 | AR43: 否 | AS43: 否 | AT43: 241.567
A44: 211 | B44: 成都博成鞋业有限责任公司 | C44: 91510122572266955L | D44: 1952 | E44: 其他制造业 | F44: 黄甲街道双华社区西航港大道中四段406号 | G44: 四川双流经济开发区（西南航空港经济开发区） | H44: 6780.4 | I44: 7576.8 | J44: 3375.7 | K44: 27.8 | L44: 109.3 | M44: 110 | N44: 348.37 | O44: 86.3 | P44: 0 | Q44: 6841.5 | R44: 否 | S44: 否 | T44: =(H44/I44+I44/J44)*0.5-1 -> 57% | U44: 否 | V44: 否 | W44: 否 | X44: 否 | Y44: 否 | Z44: 否 | AA44: 否 | AB44: 否 | AC44: 否 | AD44: 否 | AE44: 是 | AF44: 否 | AG44: 省级 | AH44: 否 | AI44: 0 | AJ44: 0 | AK44: 0 | AL44: 否 | AM44: 否 | AN44: 否 | AO44: 否 | AP44: 0 | AQ44: 否 | AR44: 否 | AS44: 否 | AT44: 246.097
A45: 285 | B45: 成都市鑫茂鞋业有限责任公司 | C45: 91510122777472875N | D45: 1952 | E45: 其他制造业 | F45: 广巍路455 | G45: 四川双流经济开发区 | H45: 3142.5 | I45: 2213.3 | J45: 2237.9 | K45: 23.047 | L45: 74.8 | M45: 60 | N45: 57.73 | O45: 0.0 | P45: 458.57 | Q45: 4568 | R45: 否 | S45: 否 | T45: =(H45/I45+I45/J45)*0.5-1 -> 20% | U45: 否 | V45: 否 | W45: 否 | X45: 否 | Y45: 否 | Z45: 否 | AA45: 否 | AB45: 否 | AC45: 否 | AD45: 否 | AE45: 是 | AF45: 否 | AG45: 否 | AH45: 否 | AI45: 0 | AJ45: 0 | AK45: 0 | AL45: 否 | AM45: 否 | AN45: 否 | AO45: 否 | AP45: 0 | AQ45: 否 | AR45: 否 | AS45: 否 | AT45: 198.204
A46: 328 | B46: 成都恒欣泰岷鞋业有限公司 | C46: 91510122MA61TKQ07M | D46: 1952 | E46: 其他制造业 | F46: 广巍路278号 | G46: 四川双流经济开发区 | H46: 3278.2 | I46: 3038 | J46: 0 | K46: 15 | L46: 64.1 | M46: 250 | N46: 70.99 | O46: 0.0 | P46: 32.94 | Q46: 1090 | R46: 否 | S46: 否 | T46: =H46/I46-1 -> 8% | U46: 否 | V46: 否 | W46: 否 | X46: 否 | Y46: 否 | Z46: 否 | AA46: 否 | AB46: 否 | AC46: 否 | AD46: 否 | AE46: 是 | AF46: 否 | AG46: 否 | AH46: 否 | AI46: 0 | AJ46: 0 | AK46: 0 | AL46: 否 | AM46: 否 | AN46: 否 | AO46: 否 | AP46: 0 | AQ46: 否 | AR46: 否 | AS46: 否 | AT46: 72.667
A47: 333 | B47: 成都兰花果鞋业有限公司 | C47: 91510122564491810X | D47: 1952 | E47: 其他制造业 | F47: 成都蛟龙工业港双流园区东海路31座(705号) | G47: 四川双流经济开发区 | H47: 2030 | I47: 0 | J47: 0 | K47: 9 | L47: 2.2 | M47: 111 | N47: 17.82 | O47: 0.0 | P47: 0 | Q47: 724 | R47: 否 | S47: 否 | T47: 0% | U47: 否 | V47: 否 | W47: 否 | X47: 否 | Y47: 否 | Z47: 否 | AA47: 否 | AB47: 否 | AC47: 否 | AD47: 否 | AE47: 是 | AF47: 否 | AG47: 否 | AH47: 否 | AI47: 0 | AJ47: 0 | AK47: 0 | AL47: 否 | AM47: 否 | AN47: 否 | AO47: 否 | AP47: 0 | AQ47: 否 | AR47: 否 | AS47: 否 | AT47: 80.444
A48: 97 | B48: 成都市百凰鞋业有限责任公司 | C48: 91510122MA6DFXDW63 | D48: 1952 | E48: 其他制造业 | F48: 罗汉路南一段99号 | G48: 四川双流经济开发区 | H48: 2360.2 | I48: 2719.6 | J48: 0 | K48: 1.88 | L48: 45.7 | M48: 92 | N48: 37.69 | O48: 70.8 | P48: 41.24 | Q48: 2360 | R48: 否 | S48: 否 | T48: =H48/I48-1 -> -13% | U48: 否 | V48: 否 | W48: 否 | X48: 否 | Y48: 否 | Z48: 否 | AA48: 否 | AB48: 否 | AC48: 否 | AD48: 否 | AE48: 是 | AF48: 否 | AG48: 否 | AH48: 否 | AI48: 0 | AJ48: 0 | AK48: 0 | AL48: 否 | AM48: 否 | AN48: 否 | AO48: 否 | AP48: 0 | AQ48: 否 | AR48: 否 | AS48: 否 | AT48: 1255.319
A49: 242 | B49: 成都市鑫隆盛鞋业有限公司 | C49: 91510122752849437L | D49: 1952 | E49: 其他制造业 | F49: 成都市双流区成双大道1139号 | G49: 四川双流经济开发区 | H49: 4612 | I49: 6154.1 | J49: 18089 | K49: 7 | L49: 7.7 | M49: 166 | N49: 53.06 | O49: 0.0 | P49: 183.16 | Q49: 4611.95 | R49: 否 | S49: 否 | T49: =(H49/I49+I49/J49)*0.5-1 -> -46% | U49: 否 | V49: 否 | W49: 否 | X49: 否 | Y49: 否 | Z49: 否 | AA49: 否 | AB49: 否 | AC49: 否 | AD49: 否 | AE49: 是 | AF49: 否 | AG49: 否 | AH49: 否 | AI49: 0 | AJ49: 0 | AK49: 0 | AL49: 否 | AM49: 否 | AN49: 否 | AO49: 否 | AP49: 0 | AQ49: 否 | AR49: 否 | AS49: 否 | AT49: 658.850
A50: 253 | B50: 尚志鞋业（四川）有限公司 | C50: 91510122792178981R | D50: 1952 | E50: 其他制造业 | F50: 高新大道七座 | G50: 四川双流经济开发区 | H50: 23095.4 | I50: 33192.6 | J50: 33277.4 | K50: 80 | L50: 821.0 | M50: 701 | N50: 250.21 | O50: 0.0 | P50: 97.47 | Q50: 18176 | R50: 否 | S50: 是 | T50: =(H50/I50+I50/J50)*0.5-1 -> -15% | U50: 否 | V50: 否 | W50: 否 | X50: 否 | Y50: 否 | Z50: 否 | AA50: 否 | AB50: 否 | AC50: 否 | AD50: 否 | AE50: 是 | AF50: 否 | AG50: 否 | AH50: 否 | AI50: 0 | AJ50: 0 | AK50: 0 | AL50: 否 | AM50: 否 | AN50: 否 | AO50: 否 | AP50: 0 | AQ50: 否 | AR50: 否 | AS50: 否 | AT50: 227.200
A51: 294 | B51: 四川阿凡达鞋业有限公司 | C51: 91510122MA6DEN7U9Y | D51: 1952 | E51: 其他制造业 | F51: 成都蛟龙工业港双流园区新华大道6座（468号） | G51: 四川双流经济开发区 | H51: 2436.6 | I51: 4997.2 | J51: 0 | K51: 9 | L51: 2.0 | M51: 102 | N51: 44 | O51: 100.2 | P51: 0 | Q51: 1772 | R51: 否 | S51: 否 | T51: =H51/I51-1 -> -51% | U51: 否 | V51: 否 | W51: 否 | X51: 否 | Y51: 否 | Z51: 否 | AA51: 否 | AB51: 否 | AC51: 否 | AD51: 否 | AE51: 是 | AF51: 否 | AG51: 否 | AH51: 否 | AI51: 0 | AJ51: 0 | AK51: 0 | AL51: 否 | AM51: 否 | AN51: 否 | AO51: 否 | AP51: 0 | AQ51: 否 | AR51: 否 | AS51: 否 | AT51: 196.889
A52: 300 | B52: 四川古力鞋业有限公司 | C52: 91510122MA6C9D812R | D52: 1952 | E52: 其他制造业 | F52: 成都市蛟龙工业港双流园区双巷路6座77号 | G52: 四川双流经济开发区 | H52: 1920.5 | I52: 3120.7 | J52: 0 | K52: 4.266 | L52: 1.5 | M52: 73 | N52: 39.22 | O52: 0.0 | P52: 0 | Q52: 1420.5857 | R52: 否 | S52: 否 | T52: =H52/I52-1 -> -38% | U52: 否 | V52: 否 | W52: 否 | X52: 否 | Y52: 否 | Z52: 否 | AA52: 否 | AB52: 否 | AC52: 否 | AD52: 否 | AE52: 是 | AF52: 否 | AG52: 否 | AH52: 否 | AI52: 0 | AJ52: 0 | AK52: 0 | AL52: 否 | AM52: 否 | AN52: 否 | AO52: 否 | AP52: 0 | AQ52: 否 | AR52: 否 | AS52: 否 | AT52: 333.002
A53: 303 | B53: 成都玛俪安娜鞋业有限公司 | C53: 91510122MA6C9D759X | D53: 1952 | E53: 其他制造业 | F53: 蛟龙工业港双流园区淮河路29座 | G53: 四川双流经济开发区 | H53: 1947.2 | I53: 4539.3 | J53: 0 | K53: 2.83 | L53: 2.6 | M53: 69 | N53: 7.5 | O53: 0.0 | P53: 0 | Q53: 754 | R53: 否 | S53: 否 | T53: =H53/I53-1 -> -57% | U53: 否 | V53: 否 | W53: 否 | X53: 否 | Y53: 否 | Z53: 否 | AA53: 否 | AB53: 否 | AC53: 否 | AD53: 否 | AE53: 是 | AF53: 否 | AG53: 否 | AH53: 否 | AI53: 0 | AJ53: 0 | AK53: 0 | AL53: 否 | AM53: 否 | AN53: 否 | AO53: 否 | AP53: 0 | AQ53: 否 | AR53: 否 | AS53: 否 | AT53: 266.431
A54: 304 | B54: 成都双流友谊鞋业有限公司 | C54: 91510122777457990K | D54: 1952 | E54: 其他制造业 | F54: 航港路463号 | G54: 四川双流经济开发区 | H54: 1933.5 | I54: 3037.7 | J54: 0 | K54: 28.5 | L54: 133.5 | M54: 86 | N54: 148.6 | O54: 0.0 | P54: 233.58 | Q54: 5370 | R54: 否 | S54: 否 | T54: =H54/I54-1 -> -36% | U54: 否 | V54: 否 | W54: 否 | X54: 否 | Y54: 否 | Z54: 否 | AA54: 否 | AB54: 否 | AC54: 否 | AD54: 否 | AE54: 是 | AF54: 否 | AG54: 否 | AH54: 否 | AI54: 0 | AJ54: 0 | AK54: 0 | AL54: 否 | AM54: 否 | AN54: 否 | AO54: 否 | AP54: 0 | AQ54: 否 | AR54: 否 | AS54: 否 | AT54: 188.421
A55: 314 | B55: 成都市安妮娜鞋业有限公司 | C55: 91510122777450000L | D55: 1952 | E55: 其他制造业 | F55: 四川省成都市双流区康安路288号 | G55: 四川双流经济开发区 | H55: 3401.1 | I55: 5512.8 | J55: 6214.5 | K55: 30 | L55: 166.0 | M55: 93 | N55: 159.69 | O55: 0.0 | P55: 245.47 | Q55: 3408 | R55: 否 | S55: 否 | T55: =(H55/I55+I55/J55)*0.5-1 -> -25% | U55: 否 | V55: 否 | W55: 否 | X55: 否 | Y55: 否 | Z55: 否 | AA55: 否 | AB55: 否 | AC55: 否 | AD55: 否 | AE55: 是 | AF55: 否 | AG55: 否 | AH55: 否 | AI55: 0 | AJ55: 0 | AK55: 0 | AL55: 否 | AM55: 否 | AN55: 否 | AO55: 否 | AP55: 0 | AQ55: 否 | AR55: 否 | AS55: 否 | AT55: 113.600
A56: 315 | B56: 成都名靓鞋业有限公司 | C56: 91510122MA62L5QE86 | D56: 1952 | E56: 其他制造业 | F56: 成都蛟龙工业港双流园区东海路19座501号 | G56: 四川双流经济开发区 | H56: 2585.5 | I56: 3531.2 | J56: 0 | K56: 7.5 | L56: 35.5 | M56: 90 | N56: 35.64 | O56: 0.0 | P56: 0 | Q56: 100 | R56: 否 | S56: 否 | T56: =H56/I56-1 -> -27% | U56: 否 | V56: 否 | W56: 否 | X56: 否 | Y56: 否 | Z56: 否 | AA56: 否 | AB56: 否 | AC56: 否 | AD56: 否 | AE56: 是 | AF56: 否 | AG56: 否 | AH56: 否 | AI56: 0 | AJ56: 0 | AK56: 0 | AL56: 否 | AM56: 否 | AN56: 否 | AO56: 否 | AP56: 0 | AQ56: 否 | AR56: 否 | AS56: 否 | AT56: 13.333
A57: 316 | B57: 成都市康凤鞋业有限公司 | C57: 91510122768637674N | D57: 1952 | E57: 其他制造业 | F57: 四川省成都市双流区广巍路476 | G57: 四川双流经济开发区 | H57: 2893.9 | I57: 9341.9 | J57: 10606.6 | K57: 23.7 | L57: 95.5 | M57: 591 | N57: 30.69 | O57: 0.0 | P57: 458.97 | Q57: 3343 | R57: 否 | S57: 否 | T57: =(H57/I57+I57/J57)*0.5-1 -> -40% | U57: 否 | V57: 否 | W57: 否 | X57: 否 | Y57: 否 | Z57: 否 | AA57: 否 | AB57: 否 | AC57: 否 | AD57: 否 | AE57: 是 | AF57: 否 | AG57: 否 | AH57: 否 | AI57: 7 | AJ57: 7 | AK57: 0 | AL57: 否 | AM57: 否 | AN57: 否 | AO57: 否 | AP57: 0 | AQ57: 否 | AR57: 否 | AS57: 否 | AT57: 141.055
A58: 318 | B58: 成都市双流新新中达鞋业有限公司 | C58: 9151012266047122XR | D58: 1952 | E58: 其他制造业 | F58: 黄甲街道双华社区杨桥路688号 | G58: 四川双流经济开发区（西南航空港经济开发区） | H58: 2715.4 | I58: 4371.5 | J58: 4696.7 | K58: 12 | L58: 26.0 | M58: 172 | N58: 95.36 | O58: 0.0 | P58: 84.54 | Q58: 3117.8 | R58: 否 | S58: 否 | T58: =(H58/I58+I58/J58)*0.5-1 -> -22% | U58: 否 | V58: 否 | W58: 否 | X58: 否 | Y58: 否 | Z58: 否 | AA58: 否 | AB58: 否 | AC58: 否 | AD58: 否 | AE58: 是 | AF58: 否 | AG58: 否 | AH58: 否 | AI58: 0 | AJ58: 0 | AK58: 0 | AL58: 否 | AM58: 否 | AN58: 否 | AO58: 否 | AP58: 0 | AQ58: 否 | AR58: 否 | AS58: 否 | AT58: 259.817
A59: 335 | B59: 四川季茜鞋业有限公司 | C59: 91510122MA61T0PW8N | D59: 1952 | E59: 其他制造业 | F59: 中国(四川)自由贸易试验区成都市双流区西航港经济开发区杨桥路666号 | G59: 四川双流经济开发区（西南航空港经济开发区） | H59: 6918.5 | I59: 21506.2 | J59: 0.0 | K59: 24.8 | L59: 94.2 | M59: 394 | N59: 261.78 | O59: 0.0 | P59: 0 | Q59: 1675.7 | R59: 否 | S59: 否 | T59: =H59/I59-1 -> -68% | U59: 否 | V59: 否 | W59: 否 | X59: 否 | Y59: 否 | Z59: 否 | AA59: 否 | AB59: 否 | AC59: 否 | AD59: 否 | AE59: 是 | AF59: 否 | AG59: 否 | AH59: 否 | AI59: 17 | AJ59: 15 | AK59: 0 | AL59: 否 | AM59: 否 | AN59: 否 | AO59: 否 | AP59: 0 | AQ59: 否 | AR59: 否 | AS59: 否 | AT59: 67.569
A60: 344 | B60: 成都美熙鞋业有限公司 | C60: 91510122MA6C4WJ84M | D60: 1952 | E60: 其他制造业 | F60: 成都蛟龙工业港双流园区黄河路32座(南河路186号) | G60: 四川双流经济开发区 | H60: 0 | I60: 2434.4 | J60: 0 | K60: 6.94 | L60: 33.2 | M60: 38 | N60: 21.24 | O60: 0.0 | P60: 0 | Q60: 512.65 | R60: 否 | S60: 否 | T60: =H60/I60-1 -> -100% | U60: 否 | V60: 否 | W60: 否 | X60: 否 | Y60: 否 | Z60: 否 | AA60: 否 | AB60: 否 | AC60: 否 | AD60: 否 | AE60: 是 | AF60: 否 | AG60: 否 | AH60: 否 | AI60: 0 | AJ60: 0 | AK60: 0 | AL60: 否 | AM60: 是 | AN60: 否 | AO60: 否 | AP60: 0 | AQ60: 否 | AR60: 否 | AS60: 否 | AT60: 73.892
A61: 215 | B61: 成都国瑗鞋业有限公司 | C61: 91510122MA61R4NJ9Y | D61: 1952 | E61: 其他制造业 | F61: 蛟龙工业港双流园区黄海路21座501号 | G61: 四川双流经济开发区 | H61: 6021.8 | I61: 6833.3 | J61: 0 | K61: 12 | L61: 105.2 | M61: 143 | N61: 85.05 | O61: 0.0 | P61: 268.4 | Q61: 4121 | R61: 否 | S61: 否 | T61: =H61/I61-1 -> -12% | U61: 否 | V61: 否 | W61: 否 | X61: 否 | Y61: 否 | Z61: 否 | AA61: 否 | AB61: 否 | AC61: 否 | AD61: 否 | AE61: 是 | AF61: 否 | AG61: 否 | AH61: 否 | AI61: 0 | AJ61: 0 | AK61: 0 | AL61: 否 | AM61: 否 | AN61: 2 | AO61: 否 | AP61: 0 | AQ61: 否 | AR61: 否 | AS61: 否 | AT61: 343.417
A62: 324 | B62: 成都雷泰鞋业有限公司 | C62: 91510122MA6CLQ098U | D62: 1952 | E62: 其他制造业 | F62: 黄甲街道双华社区杨桥路655号 | G62: 四川双流经济开发区（西南航空港经济开发区） | H62: 3474.4 | I62: 7387.2 | J62: 5364.6 | K62: 12.9 | L62: 27.4 | M62: 220 | N62: 148.71 | O62: 0.0 | P62: 0 | Q62: 1992.5 | R62: 否 | S62: 否 | T62: =(H62/I62+I62/J62)*0.5-1 -> -8% | U62: 否 | V62: 否 | W62: 否 | X62: 否 | Y62: 否 | Z62: 否 | AA62: 否 | AB62: 否 | AC62: 否 | AD62: 否 | AE62: 是 | AF62: 否 | AG62: 否 | AH62: 否 | AI62: 0 | AJ62: 0 | AK62: 0 | AL62: 否 | AM62: 否 | AN62: 1.5 | AO62: 否 | AP62: 0 | AQ62: 否 | AR62: 否 | AS62: 否 | AT62: 154.457
A63: 309 | B63: 成都巨纳鞋业有限公司 | C63: 91510122MA61XA9X38 | D63: 1952 | E63: 其他制造业 | F63: 蛟龙工业港双流园区黄河路21座501号 | G63: 四川双流经济开发区 | H63: 2886.5 | I63: 4537.7 | J63: 0 | K63: 8.94 | L63: 63.2 | M63: 133 | N63: 56.1 | O63: 0.0 | P63: 739.29 | Q63: 2043 | R63: 否 | S63: 否 | T63: =H63/I63-1 -> -36% | U63: 否 | V63: 否 | W63: 否 | X63: 否 | Y63: 否 | Z63: 否 | AA63: 否 | AB63: 否 | AC63: 否 | AD63: 否 | AE63: 是 | AF63: 否 | AG63: 否 | AH63: 否 | AI63: 0 | AJ63: 0 | AK63: 0 | AL63: 否 | AM63: 否 | AN63: 1.4 | AO63: 否 | AP63: 0 | AQ63: 否 | AR63: 否 | AS63: 否 | AT63: 228.523
A64: 345 | B64: 成都曼其尼鞋业有限公司 | C64: 91510122749711488J | D64: 1952 | E64: 其他制造业 | F64: 罗汉路南一段299号 | G64: 四川双流经济开发区 | H64: 4098 | I64: 7979.3 | J64: 8910.3 | K64: 80 | L64: 119.9 | M64: 254 | N64: 143.79 | O64: 0.0 | P64: 0 | Q64: 4472 | R64: 否 | S64: 否 | T64: =(H64/I64+I64/J64)*0.5-1 -> -30% | U64: 否 | V64: 否 | W64: 否 | X64: 否 | Y64: 否 | Z64: 否 | AA64: 否 | AB64: 否 | AC64: 否 | AD64: 否 | AE64: 是 | AF64: 否 | AG64: 否 | AH64: 否 | AI64: 0 | AJ64: 0 | AK64: 0 | AL64: 否 | AM64: 否 | AN64: 否 | AO64: 否 | AP64: 1 | AQ64: 否 | AR64: 否 | AS64: 否 | AT64: 55.900
A65: 194 | B65: 成都九一源鞋业有限公司 | C65: 91510122MA6CQXMR11 | D65: 1952 | E65: 其他制造业 | F65: 东海路666号 | G65: 四川双流经济开发区 | H65: 3300.3 | I65: 5981.7 | J65: 3268.8 | K65: 7 | L65: 99.0 | M65: 99 | N65: 50.27 | O65: 0.0 | P65: 353.94 | Q65: 2755 | R65: 否 | S65: 否 | T65: =(H65/I65+I65/J65)*0.5-1 -> 19% | U65: 否 | V65: 否 | W65: 否 | X65: 否 | Y65: 否 | Z65: 否 | AA65: 否 | AB65: 否 | AC65: 否 | AD65: 否 | AE65: 是 | AF65: 否 | AG65: 否 | AH65: 否 | AI65: 0 | AJ65: 0 | AK65: 0 | AL65: 否 | AM65: 否 | AN65: 1.3 | AO65: 否 | AP65: 0 | AQ65: 否 | AR65: 否 | AS65: 否 | AT65: 393.571
A66: 270 | B66: 四川鸿腾源实业有限公司 | C66: 91510122MA6CPYJF15 | D66: 2022 | E66: 其他制造业 | F66: 成都市双流区西南航空港经济开发区长城路一段1号 | G66: 四川双流经济开发区（西南航空港经济开发区） | H66: 42602.1 | I66: 56814.5 | J66: 0.0 | K66: 623.5 | L66: 747.1 | M66: 352 | N66: 14116.15 | O66: 0.0 | P66: 182075.05 | Q66: 206304.3 | R66: 否 | S66: 是 | T66: =H66/I66-1 -> -25% | U66: 否 | V66: 否 | W66: 否 | X66: 否 | Y66: 否 | Z66: 否 | AA66: 否 | AB66: 否 | AC66: 否 | AD66: 否 | AE66: 是 | AF66: 否 | AG66: 否 | AH66: 否 | AI66: 1 | AJ66: 0 | AK66: 0 | AL66: 否 | AM66: 否 | AN66: 否 | AO66: 否 | AP66: 0 | AQ66: 否 | AR66: 否 | AS66: 否 | AT66: 330.881
A67: 264 | B67: 成都佳莱宝装饰板材有限公司 | C67: 91510122785420012A | D67: 2029 | E67: 其他制造业 | F67: 双流区涪陵路417号 | G67: 四川双流经济开发区 | H67: 2351 | I67: 2313.9 | J67: 0 | K67: 5 | L67: 121.4 | M67: 29 | N67: 190.48 | O67: 0.0 | P67: 250.84 | Q67: 300 | R67: 否 | S67: 否 | T67: =H67/I67-1 -> 2% | U67: 否 | V67: 否 | W67: 否 | X67: 否 | Y67: 否 | Z67: 否 | AA67: 否 | AB67: 否 | AC67: 否 | AD67: 否 | AE67: 是 | AF67: 否 | AG67: 否 | AH67: 否 | AI67: 0 | AJ67: 0 | AK67: 0 | AL67: 否 | AM67: 否 | AN67: 否 | AO67: 否 | AP67: 0 | AQ67: 否 | AR67: 否 | AS67: 否 | AT67: 60.000
A68: 173 | B68: 成都简爱家具制造有限公司 | C68: 91510122797844920D | D68: 2110 | E68: 家具制造业 | F68: 成都蛟龙工业港双流园区北海路20座 | G68: 四川双流经济开发区 | H68: 2674 | I68: 0 | J68: 0 | K68: 6 | L68: 95.6 | M68: 41 | N68: 18.83 | O68: 0.0 | P68: 12.06 | Q68: 1721 | R68: 否 | S68: 否 | T68: 0% | U68: 否 | V68: 否 | W68: 否 | X68: 否 | Y68: 否 | Z68: 否 | AA68: 否 | AB68: 否 | AC68: 否 | AD68: 否 | AE68: 是 | AF68: 否 | AG68: 否 | AH68: 否 | AI68: 0 | AJ68: 0 | AK68: 0 | AL68: 否 | AM68: 否 | AN68: 否 | AO68: 否 | AP68: 0 | AQ68: 否 | AR68: 否 | AS68: 否 | AT68: 286.833
A69: 37 | B69: 四川省永亨实业有限责任公司 | C69: 91510122201899235G | D69: 2110 | E69: 家具制造业 | F69: 双流高新大道419号 | G69: 四川双流经济开发区 | H69: 46214.1 | I69: 57352.9 | J69: 54525.7 | K69: 43 | L69: 1767.2 | M69: 533 | N69: 182.93 | O69: 1437.7 | P69: 3061.15 | Q69: 24528.56 | R69: 否 | S69: =IF(H69>10000,"是","否") -> 是 | T69: =(H69/I69+I69/J69)*0.5-1 -> -7% | U69: 否 | V69: 否 | W69: 否 | X69: 否 | Y69: 否 | Z69: 否 | AA69: 否 | AB69: 是 | AC69: 否 | AD69: 否 | AE69: 是 | AF69: 是 | AG69: 省级 | AH69: 否 | AI69: 39 | AJ69: 25 | AK69: 0 | AL69: 否 | AM69: 否 | AN69: 否 | AO69: 否 | AP69: 3 | AQ69: 否 | AR69: 否 | AS69: 否 | AT69: 570.432
A70: 265 | B70: 成都市卡诺尼家居有限公司 | C70: 91510122394625571H | D70: 2110 | E70: 家具制造业 | F70: 罗汉路258 | G70: 四川双流经济开发区 | H70: 2086.1 | I70: 2352.7 | J70: 0 | K70: 4.5 | L70: 43.4 | M70: 70 | N70: 128.57 | O70: 0.0 | P70: 12.07 | Q70: 587.5 | R70: 否 | S70: 否 | T70: =H70/I70-1 -> -11% | U70: 否 | V70: 否 | W70: 否 | X70: 否 | Y70: 否 | Z70: 否 | AA70: 否 | AB70: 否 | AC70: 否 | AD70: 否 | AE70: 是 | AF70: 否 | AG70: 否 | AH70: 否 | AI70: 0 | AJ70: 0 | AK70: 0 | AL70: 否 | AM70: 否 | AN70: 否 | AO70: 否 | AP70: 0 | AQ70: 否 | AR70: 否 | AS70: 否 | AT70: 130.556
A71: 223 | B71: 成都南方家俱有限公司 | C71: 915101227130437803 | D71: 2110 | E71: 家具制造业 | F71: 四川省成都市双流区双华路三段698号 | G71: 四川双流经济开发区（西南航空港经济开发区） | H71: 12207.6 | I71: 19203.4 | J71: 18788.4 | K71: 168 | L71: 569.270108 | M71: 282 | N71: 214.21 | O71: 42.3 | P71: 165.73 | Q71: 27897.8 | R71: 否 | S71: 是 | T71: =(H71/I71+I71/J71)*0.5-1 -> -17% | U71: 否 | V71: 否 | W71: 否 | X71: 否 | Y71: 否 | Z71: 否 | AA71: 否 | AB71: 否 | AC71: 否 | AD71: 否 | AE71: 是 | AF71: 否 | AG71: 否 | AH71: 否 | AI71: 146 | AJ71: 2 | AK71: 0 | AL71: 否 | AM71: 否 | AN71: 否 | AO71: 否 | AP71: 2 | AQ71: 否 | AR71: 否 | AT71: 166.058
A72: 240 | B72: 成都欧派智能家居有限公司 | C72: 91510122MA62MRM54P | D72: 2110 | E72: 家具制造业 | F72: 成都市双流区西南航空经济开发区工业集中区内 | G72: 四川双流经济开发区（西南航空港经济开发区） | H72: 75008.1 | I72: 31154.6 | J72: 0.0 | K72: 414.5 | L72: 0.0 | M72: 1602 | N72: 1592.62 | O72: 2283.3 | P72: 197.75 | Q72: 164852.9 | R72: 否 | S72: 是 | T72: =H72/I72-1 -> 141% | U72: 否 | V72: 否 | W72: 否 | X72: 否 | Y72: 否 | Z72: 否 | AA72: 否 | AB72: 否 | AC72: 否 | AD72: 否 | AE72: 是 | AF72: 是 | AG72: 否 | AH72: 否 | AI72: 18 | AJ72: 18 | AK72: 0 | AL72: 否 | AM72: 否 | AN72: 否 | AO72: 否 | AP72: 1 | AQ72: 区县重点企业 | AR72: 否 | AS72: 否 | AT72: 397.715
A73: 271 | B73: 成都百威凯诚科技有限公司 | C73: 91510122562030092J | D73: 2110 | E73: 家具制造业 | F73: 四川省成都市双流区黄龙大道1段 | G73: 四川双流经济开发区（西南航空港经济开发区） | H73: 4781.6 | I73: 7833.6 | J73: 14054.3 | K73: 40 | L73: 194.8 | M73: 171 | N73: 165.15 | O73: 0.0 | P73: 533.69 | Q73: 9861.8 | R73: 否 | S73: 否 | T73: =(H73/I73+I73/J73)*0.5-1 -> -42% | U73: 否 | V73: 否 | W73: 否 | X73: 否 | Y73: 否 | Z73: 否 | AA73: 否 | AB73: 否 | AC73: 否 | AD73: 否 | AE73: 是 | AF73: 否 | AG73: 否 | AH73: 否 | AI73: 6 | AJ73: 6 | AK73: 0 | AL73: 否 | AM73: 否 | AN73: 否 | AO73: 否 | AP73: 2 | AQ73: 否 | AR73: 否 | AS73: 否 | AT73: 246.545
A74: 273 | B74: 成都市九天家私有限公司 | C74: 91510122755985098E | D74: 2110 | E74: 家具制造业 | F74: 彭镇双楠大道下段1900号 | G74: 四川双流经济开发区 | H74: 5563.9 | I74: 7197.1 | J74: 6313.1 | K74: 30 | L74: 237.8 | M74: 431 | N74: 283.9 | O74: 17.0 | P74: 787.12 | Q74: 4124 | R74: 否 | S74: 否 | T74: =(H74/I74+I74/J74)*0.5-1 -> -4% | U74: 否 | V74: 否 | W74: 否 | X74: 否 | Y74: 否 | Z74: 否 | AA74: 否 | AB74: 否 | AC74: 否 | AD74: 否 | AE74: 是 | AF74: 否 | AG74: 否 | AH74: 否 | AI74: 0 | AJ74: 0 | AK74: 0 | AL74: 否 | AM74: 否 | AN74: 否 | AO74: 否 | AP74: 1 | AQ74: 否 | AR74: 否 | AS74: 否 | AT74: 137.467
A75: 243 | B75: 成都双流三兴家俱实业有限公司 | C75: 915101227092551660 | D75: 2130 | E75: 家具制造业 | F75: 彭镇交通路一段78号 | G75: 四川双流经济开发区 | H75: 5705.1 | I75: 5308.5 | J75: 4767.2 | K75: 26 | L75: 213.5 | M75: 75 | N75: 269.79 | O75: 0.0 | P75: 89.95 | Q75: 4689 | R75: 否 | S75: 否 | T75: =(H75/I75+I75/J75)*0.5-1 -> 9% | U75: 否 | V75: 否 | W75: 否 | X75: 否 | Y75: 否 | Z75: 否 | AA75: 否 | AB75: 否 | AC75: 否 | AD75: 否 | AE75: 是 | AF75: 否 | AG75: 否 | AH75: 否 | AI75: 29 | AJ75: 20 | AK75: 0 | AL75: 否 | AM75: 否 | AN75: 否 | AO75: 否 | AP75: 0 | AQ75: 否 | AR75: 否 | AS75: 否 | AT75: 180.346
A76: 207 | B76: 成都市双流区鑫泰茂礼品包装有限公司 | C76: 91510122790043055M | D76: 2231 | E76: 其他制造业 | F76: 成都蛟龙工业港双流园区海洋路1座50号 | G76: 四川双流经济开发区 | H76: 2063.7 | I76: 2508.5 | J76: 0 | K76: 9 | L76: 42.3 | M76: 63 | N76: 17.71 | O76: 148.1 | P76: 0 | Q76: 2000 | R76: 否 | S76: 否 | T76: =H76/I76-1 -> -18% | U76: 否 | V76: 否 | W76: 否 | X76: 否 | Y76: 否 | Z76: 否 | AA76: 否 | AB76: 否 | AC76: 否 | AD76: 否 | AE76: 是 | AF76: 是 | AG76: 否 | AH76: 否 | AI76: 0 | AJ76: 0 | AK76: 0 | AL76: 否 | AM76: 否 | AN76: 否 | AO76: 否 | AP76: 0 | AQ76: 否 | AR76: 否 | AS76: 否 | AT76: 222.222
A77: 116 | B77: 成都正隆包装制品有限公司 | C77: 91510122567160718D | D77: 2231 | E77: 其他制造业 | F77: 双流区腾飞十一路1号 | G77: 四川双流经济开发区（西南航空港经济开发区） | H77: 7278.9 | I77: 10355.5 | J77: 13756.9 | K77: 15.3 | L77: 165.0 | M77: 46 | N77: 23.83 | O77: 0.0 | P77: 0 | Q77: 8718.7 | R77: 否 | S77: 否 | T77: =(H77/I77+I77/J77)*0.5-1 -> -27% | U77: 否 | V77: 否 | W77: 否 | X77: 否 | Y77: 否 | Z77: 否 | AA77: 否 | AB77: 否 | AC77: 否 | AD77: 否 | AE77: 是 | AF77: 是 | AG77: 否 | AH77: 否 | AI77: 0 | AJ77: 0 | AK77: 0 | AL77: 否 | AM77: 否 | AN77: 否 | AO77: 否 | AP77: 3 | AQ77: 否 | AR77: 否 | AS77: 否 | AT77: 569.850
A78: 295 | B78: 四川康利包装股份有限公司 | C78: 9151010075282802XE | D78: 2231 | E78: 其他制造业 | F78: 彭镇罗汉路99 | G78: 四川双流经济开发区 | H78: 11992.7 | I78: 13079.6 | J78: 14157.6 | K78: 68 | L78: 43.1 | M78: 141 | N78: 916.96 | O78: 0.0 | P78: 342.15 | Q78: 26030 | R78: 否 | S78: 是 | T78: =(H78/I78+I78/J78)*0.5-1 -> -8% | U78: 否 | V78: 否 | W78: 否 | X78: 否 | Y78: 否 | Z78: 否 | AA78: 否 | AB78: 否 | AC78: 否 | AD78: 否 | AE78: 是 | AF78: 否 | AG78: 否 | AH78: 否 | AI78: 0 | AJ78: 0 | AK78: 0 | AL78: 否 | AM78: 否 | AN78: 否 | AO78: 否 | AP78: 1 | AQ78: 否 | AR78: 否 | AS78: 否 | AT78: 382.794
A79: 219 | B79: 成都蓉胜金卡纸制品有限公司 | C79: 91510122669688476A | D79: 2231 | E79: 其他制造业 | F79: 双流区清江路200号 | G79: 四川双流经济开发区 | H79: 2346.8 | I79: 2550.5 | J79: 0 | K79: 5.5 | L79: 14.0 | M79: 22 | N79: 7.49 | O79: 0.0 | P79: 26.34 | Q79: 2000 | R79: 否 | S79: 否 | T79: =H79/I79-1 -> -8% | U79: 否 | V79: 否 | W79: 否 | X79: 否 | Y79: 否 | Z79: 否 | AA79: 否 | AB79: 否 | AC79: 否 | AD79: 否 | AE79: 是 | AF79: 否 | AG79: 否 | AH79: 否 | AI79: 0 | AJ79: 0 | AK79: 0 | AL79: 否 | AM79: 否 | AN79: 1 | AO79: 否 | AP79: 0 | AQ79: 否 | AR79: 否 | AS79: 否 | AT79: 363.636
A80: 125 | B80: 成都锦坤胶粘制品有限公司 | C80: 91510122MA61RQX31Y | D80: 2239 | E80: 其他制造业 | F80: 成都市双流区西南航空港经济开发区腾飞路188号 | G80: 四川双流经济开发区（西南航空港经济开发区） | H80: 2664.6 | I80: 0.0 | J80: 0.0 | K80: 6.11 | L80: 76.4 | M80: 15 | N80: 2.74 | O80: 0.0 | P80: 0 | Q80: 1762.8 | R80: 否 | S80: 否 | T80: 0% | U80: 否 | V80: 否 | W80: 否 | X80: 否 | Y80: 否 | Z80: 否 | AA80: 否 | AB80: 否 | AC80: 否 | AD80: 否 | AE80: 是 | AF80: 是 | AG80: 否 | AH80: 否 | AI80: 0 | AJ80: 0 | AK80: 0 | AL80: 否 | AM80: 否 | AN80: 否 | AO80: 否 | AP80: 2 | AQ80: 否 | AR80: 否 | AS80: 否 | AT80: 288.511
A81: 307 | B81: 成都欧佳航空用品有限公司 | C81: 91510122762272221W | D81: 2239 | E81: 其他制造业 | F81: 成都市双流区腾飞四路88号 | G81: 四川双流经济开发区（西南航空港经济开发区） | H81: 2309.2 | I81: 2231.9 | J81: 0.0 | K81: 20.6 | L81: 7.2 | M81: 39 | N81: 64.29 | O81: 0.0 | P81: 0 | Q81: 3482.8 | R81: 否 | S81: 否 | T81: =H81/I81-1 -> 3% | U81: 否 | V81: 否 | W81: 否 | X81: 否 | Y81: 否 | Z81: 否 | AA81: 否 | AB81: 否 | AC81: 否 | AD81: 否 | AE81: 是 | AF81: 否 | AG81: 否 | AH81: 否 | AI81: 31 | AJ81: 10 | AK81: 0 | AL81: 否 | AM81: 否 | AN81: 否 | AO81: 否 | AP81: 3 | AQ81: 否 | AR81: 否 | AS81: 否 | AT81: 169.068
A82: 89 | B82: 成都东港安全印刷有限公司 | C82: 91510122669660123H | D82: 2319 | E82: 其他制造业 | F82: 双流区清江路163号 | G82: 四川双流经济开发区 | H82: 7640.6 | I82: 8302.7 | J82: 5278.9 | K82: 12.95 | L82: 978.3 | M82: 72 | N82: 331.29 | O82: 0.0 | P82: 1504.96 | Q82: 5300 | R82: 否 | S82: 否 | T82: =(H82/I82+I82/J82)*0.5-1 -> 25% | U82: 否 | V82: 否 | W82: 否 | X82: 否 | Y82: 否 | Z82: 否 | AA82: 否 | AB82: 否 | AC82: 否 | AD82: 否 | AE82: 是 | AF82: 否 | AG82: 否 | AH82: 否 | AI82: 9 | AJ82: 9 | AK82: 0 | AL82: 否 | AM82: 否 | AN82: 否 | AO82: 否 | AP82: 3 | AQ82: 否 | AR82: 否 | AS82: 否 | AT82: 409.266
A83: 140 | B83: 成都顶新包装有限公司 | C83: 91510122052527963J | D83: 2319 | E83: 其他制造业 | F83: 四川省成都市双流区空港2路361 | G83: 四川双流经济开发区（西南航空港经济开发区） | H83: 4512.7 | I83: 3545.0 | J83: 2780.1 | K83: 10 | L83: 33.3 | M83: 70 | N83: 329.38 | O83: 293.2 | P83: 0 | Q83: 2188 | R83: 否 | S83: 否 | T83: =(H83/I83+I83/J83)*0.5-1 -> 27% | U83: 否 | V83: 否 | W83: 否 | X83: 否 | Y83: 否 | Z83: 否 | AA83: 否 | AB83: 否 | AC83: 否 | AD83: 否 | AE83: 是 | AF83: 是 | AG83: 否 | AH83: 否 | AI83: 13 | AJ83: 13 | AK83: 0 | AL83: 220 | AM83: 否 | AN83: 1.8 | AO83: 否 | AP83: 1 | AQ83: 否 | AR83: 否 | AS83: 配套市级 | AT83: 218.800
A84: 162 | B84: 成都明语添祥包装有限公司 | C84: 91510122069763620Q | D84: 2319 | E84: 其他制造业 | F84: 双流区高新大道602号 | G84: 四川双流经济开发区 | H84: 3778.5 | I84: 4638.8 | J84: 4060.6 | K84: 7.5 | L84: 110.7 | M84: 52 | N84: 47.56 | O84: 0.0 | P84: 958.8 | Q84: 2500 | R84: 否 | S84: 否 | T84: =(H84/I84+I84/J84)*0.5-1 -> -2% | U84: 否 | V84: 否 | W84: 否 | X84: 否 | Y84: 否 | Z84: 否 | AA84: 否 | AB84: 否 | AC84: 否 | AD84: 否 | AE84: 是 | AF84: 否 | AG84: 否 | AH84: 否 | AI84: 0 | AJ84: 0 | AK84: 0 | AL84: 1 | AM84: 否 | AN84: 否 | AO84: 否 | AP84: 1 | AQ84: 否 | AR84: 否 | AS84: 否 | AT84: 333.333
A85: 241 | B85: 成都市荣御印务有限公司 | C85: 91510122790008823Y | D85: 2320 | E85: 其他制造业 | F85: 成都蛟龙工业港双流园区蛟龙大道17座 | G85: 四川双流经济开发区 | H85: 2429.5 | I85: 0 | J85: 0 | K85: 7.55 | L85: 37.1 | M85: 29 | N85: 25.14 | O85: 0.0 | P85: 0 | Q85: 976 | R85: 否 | S85: 否 | T85: 0% | U85: 否 | V85: 否 | W85: 否 | X85: 否 | Y85: 否 | Z85: 否 | AA85: 否 | AB85: 否 | AC85: 否 | AD85: 否 | AE85: 是 | AF85: 否 | AG85: 否 | AH85: 否 | AI85: 0 | AJ85: 0 | AK85: 0 | AL85: 否 | AM85: 否 | AN85: 否 | AO85: 否 | AP85: 0 | AQ85: 否 | AR85: 否 | AS85: 否 | AT85: 129.272
A86: 260 | B86: 四川新财印务有限公司 | C86: 91510122711887859M | D86: 2320 | E86: 其他制造业 | F86: 四川省成都市双流区机场路常乐1段3 | G86: 四川双流经济开发区（西南航空港经济开发区） | H86: 6479.6 | I86: 9226.2 | J86: 10197.5 | K86: 65 | L86: 922.974839 | M86: 150 | N86: 216.7 | O86: 0.0 | P86: 294.23 | Q86: 6978.5 | R86: 否 | S86: 否 | T86: =(H86/I86+I86/J86)*0.5-1 -> -20% | U86: 否 | V86: 否 | W86: 否 | X86: 否 | Y86: 否 | Z86: 否 | AA86: 否 | AB86: 否 | AC86: 否 | AD86: 否 | AE86: 是 | AF86: 否 | AG86: 省级 | AH86: 否 | AI86: 19 | AJ86: 19 | AK86: 0 | AL86: 否 | AM86: 否 | AN86: 否 | AO86: 否 | AP86: 0 | AQ86: 否 | AR86: 否 | AT86: 107.362
A87: 330 | B87: 成都市双流新东方印务有限公司 | C87: 91510122780145015G | D87: 2320 | E87: 其他制造业 | F87: 四川省成都市双流区九江街道土龙路209号 | G87: 四川双流经济开发区 | H87: 0 | I87: 1741.3 | J87: 0 | K87: 9 | L87: 51.8 | M87: 34 | N87: 179.63 | O87: 0.0 | P87: 0 | Q87: 1000 | R87: 否 | S87: 否 | T87: =H87/I87-1 -> -100% | U87: 否 | V87: 否 | W87: 否 | X87: 否 | Y87: 否 | Z87: 否 | AA87: 否 | AB87: 否 | AC87: 否 | AD87: 否 | AE87: 是 | AF87: 否 | AG87: 否 | AH87: 否 | AI87: 0 | AJ87: 0 | AK87: 0 | AL87: 否 | AM87: 否 | AN87: 1.4 | AO87: 否 | AP87: 1 | AQ87: 否 | AR87: 否 | AS87: 否 | AT87: 111.111
A88: 164 | B88: 四川弘电科技有限公司 | C88: 91510122064318317G | D88: 2419 | E88: 其他制造业 | F88: 成都市双流区空港四路2666号 | G88: 四川双流经济开发区（西南航空港经济开发区） | H88: 4509.1 | I88: 2987.2 | J88: 0.0 | K88: 5.4 | L88: 89.5 | M88: 84 | N88: 34.13 | O88: 0.0 | P88: 0 | Q88: 1465.5 | R88: 否 | S88: 否 | T88: =H88/I88-1 -> 51% | U88: 否 | V88: 否 | W88: 否 | X88: 否 | Y88: 否 | Z88: 否 | AA88: 否 | AB88: 否 | AC88: 否 | AD88: 否 | AE88: 是 | AF88: 是 | AG88: 否 | AH88: 否 | AI88: 0 | AJ88: 0 | AK88: 0 | AL88: 否 | AM88: 否 | AN88: 否 | AO88: 否 | AP88: 2 | AQ88: 否 | AR88: 否 | AS88: 否 | AT88: 271.389
A89: 148 | B89: 成都朝阳浪琴林产乐器制品有限公司 | C89: 915101227587572261 | D89: 2429 | E89: 其他制造业 | F89: 四川省成都市双流区东升街道永安路二段69号 | G89: 四川双流经济开发区 | H89: 1879.6 | I89: 3233 | J89: 3476.2 | K89: 6 | L89: 98.0 | M89: 22 | N89: 7.95 | O89: 50.0 | P89: 4 | Q89: 1243 | R89: 否 | S89: 否 | T89: =(H89/I89+I89/J89)*0.5-1 -> -24% | U89: 否 | V89: 否 | W89: 否 | X89: 否 | Y89: 否 | Z89: 否 | AA89: 否 | AB89: 否 | AC89: 否 | AD89: 否 | AE89: 是 | AF89: 否 | AG89: 否 | AH89: 否 | AI89: 0 | AJ89: 0 | AK89: 0 | AL89: 否 | AM89: 否 | AN89: 否 | AO89: 否 | AP89: 0 | AQ89: 否 | AR89: 否 | AS89: 否 | AT89: 207.167
A90: 299 | B90: 艾诺克（成都）机械制造有限公司 | C90: 9151012277749605XX | D90: 2449 | E90: 其他制造业 | F90: 四川省成都市双流区双流蛟龙工业港南海大道21座(321号) | G90: 四川双流经济开发区 | H90: 0 | I90: 2386.2 | J90: 2641.3 | K90: 3.5 | L90: 42.3 | M90: 84 | N90: 232.17 | O90: 0.0 | P90: 310.7 | Q90: 1000 | R90: 否 | S90: 否 | T90: =(H90/I90+I90/J90)*0.5-1 -> -55% | U90: 否 | V90: 否 | W90: 否 | X90: 否 | Y90: 否 | Z90: 否 | AA90: 否 | AB90: 否 | AC90: 否 | AD90: 否 | AE90: 是 | AF90: 否 | AG90: 否 | AH90: 否 | AI90: 20 | AJ90: 13 | AK90: 0 | AL90: 否 | AM90: 否 | AN90: 否 | AO90: 否 | AP90: 1 | AQ90: 否 | AR90: 否 | AS90: 否 | AT90: 285.714
A91: 339 | B91: 四川正洁科技有限责任公司 | C91: 91510122577393830G | D91: 2511 | E91: 其他制造业 | F91: 成都市双流区西南航空港经济开发区工业集中发展区腾飞十路168号 | G91: 四川双流经济开发区（西南航空港经济开发区） | H91: 2118.7 | I91: 3568.3 | J91: 0.0 | K91: 81 | L91: 0.0 | M91: 136 | N91: 626.48 | O91: 0.0 | P91: 1158.06 | Q91: 24494.5 | R91: 否 | S91: 否 | T91: =H91/I91-1 -> -41% | U91: 否 | V91: 否 | W91: 否 | X91: 否 | Y91: 否 | Z91: 否 | AA91: 否 | AB91: 否 | AC91: 否 | AD91: 否 | AE91: 是 | AF91: 是 | AG91: 否 | AH91: 否 | AI91: 30 | AJ91: 20 | AK91: 0 | AL91: 否 | AM91: 否 | AN91: 否 | AO91: 否 | AP91: 0 | AQ91: 否 | AR91: 否 | AS91: 否 | AT91: 302.401
A92: 288 | B92: 成都迈斯拓新能源润滑材料股份有限公司 | C92: 915101005920776418 | D92: 2511 | E92: 其他制造业 | F92: 四川省成都市双流区空港经济开发区工业集中区内 | G92: 四川双流经济开发区（西南航空港经济开发区） | H92: 2443.5 | I92: 2866.5 | J92: 2805.5 | K92: 30.7 | L92: 70.1 | M92: 44 | N92: 111.14 | O92: 0.0 | P92: 0 | Q92: 4795.2 | R92: 否 | S92: 否 | T92: =(H92/I92+I92/J92)*0.5-1 -> -6% | U92: 否 | V92: 否 | W92: 否 | X92: 否 | Y92: 否 | Z92: 否 | AA92: 否 | AB92: 否 | AC92: 否 | AD92: 否 | AE92: 是 | AF92: 否 | AG92: 否 | AH92: 否 | AI92: 18 | AJ92: 4 | AK92: 0 | AL92: 否 | AM92: 否 | AN92: 否 | AO92: 否 | AP92: 2 | AQ92: 否 | AR92: 否 | AS92: 否 | AT92: 156.195
A93: 186 | B93: 成都博达爱福科技有限公司 | C93: 91510122558965098T | D93: 2614 | E93: 化学制品制造业 | F93: 中国(四川)自由贸易试验区成都市双流区西南航空港经济开发区腾飞六路168号 | G93: 四川双流经济开发区（西南航空港经济开发区） | H93: 3686.9 | I93: 5542.2 | J93: 0.0 | K93: 28.3 | L93: 153.7 | M93: 74 | N93: 421.07 | O93: 320.0 | P93: 0 | Q93: 5534.9 | R93: 否 | S93: 否 | T93: =H93/I93-1 -> -33% | U93: 否 | V93: 否 | W93: 否 | X93: 否 | Y93: 否 | Z93: 否 | AA93: 否 | AB93: 否 | AC93: 否 | AD93: 否 | AE93: 是 | AF93: 是 | AG93: 否 | AH93: 否 | AI93: 7 | AJ93: 6 | AK93: 0 | AL93: 否 | AM93: 否 | AN93: 否 | AO93: 否 | AP93: 1 | AQ93: 否 | AR93: 否 | AS93: 否 | AT93: 195.580
A94: 73 | B94: 四川省兰月科技有限公司 | C94: 915101222018474191 | D94: 2631 | E94: 化学制品制造业 | F94: 成都市双流区西南航空港经济开发区空港三路779号 | G94: 四川双流经济开发区（西南航空港经济开发区） | H94: 8317.9 | I94: 6799.4 | J94: 6607.6 | K94: 19 | L94: 331.4 | M94: 136 | N94: 39.54 | O94: 310.5 | P94: 91.36 | Q94: 14834.8 | R94: 否 | S94: 否 | T94: =(H94/I94+I94/J94)*0.5-1 -> 13% | U94: 否 | V94: 否 | W94: 否 | X94: 否 | Y94: 否 | Z94: 否 | AA94: 否 | AB94: 否 | AC94: 否 | AD94: 否 | AE94: 是 | AF94: 是 | AG94: 国家级 | AH94: 否 | AI94: 45 | AJ94: 9 | AK94: 0 | AL94: 否 | AM94: 否 | AN94: 否 | AO94: 否 | AP94: 0 | AQ94: 否 | AR94: 是 | AS94: 否 | AT94: 780.779
A95: 95 | B95: 成都华佳表面科技有限公司 | C95: 91510122MA6ABYRK5B | D95: 2641 | E95: 化学制品制造业 | F95: 成都市双流区西航港开发区空港二路1588号 | G95: 四川双流经济开发区（西南航空港经济开发区） | H95: 10342.1 | I95: 4294.6 | J95: 0.0 | K95: 19.7 | L95: 972.4 | M95: 119 | N95: 302.6 | O95: 0.0 | P95: 0 | Q95: 8182.9 | R95: 否 | S95: 是 | T95: =H95/I95-1 -> 141% | U95: 否 | V95: 否 | W95: 否 | X95: 否 | Y95: 否 | Z95: 否 | AA95: 否 | AB95: 否 | AC95: 否 | AD95: 否 | AE95: 是 | AF95: 是 | AG95: 否 | AH95: 否 | AI95: 0 | AJ95: 0 | AK95: 0 | AL95: 否 | AM95: 否 | AN95: 否 | AO95: 否 | AP95: 3 | AQ95: 否 | AR95: 否 | AS95: 否 | AT95: 415.376
A96: 266 | B96: 成都宸宇涂装技术有限公司 | C96: 915101227130510199 | D96: 2641 | E96: 化学制品制造业 | F96: 土龙路2号 | G96: 四川双流经济开发区 | H96: 3030.1 | I96: 3483 | J96: 3620 | K96: 37 | L96: 177.1 | M96: 76 | N96: 120.35 | O96: 0.0 | P96: 1246.52 | Q96: 5055 | R96: 否 | S96: 否 | T96: =(H96/I96+I96/J96)*0.5-1 -> -8% | U96: 否 | V96: 否 | W96: 否 | X96: 否 | Y96: 否 | Z96: 否 | AA96: 否 | AB96: 是 | AC96: 否 | AD96: 否 | AE96: 是 | AF96: 是 | AG96: 否 | AH96: 否 | AI96: 10 | AJ96: 10 | AK96: 0 | AL96: 否 | AM96: 否 | AN96: 1.5 | AO96: 否 | AP96: 3 | AQ96: 否 | AR96: 否 | AS96: 否 | AT96: 136.622
A97: 308 | B97: 成都市深漆宝化工有限公司 | C97: 91510122768636073A | D97: 2641 | E97: 化学制品制造业 | F97: 龙池社区4组 | G97: 四川双流经济开发区 | H97: 6330.1 | I97: 7620.1 | J97: 8287.4 | K97: 43 | L97: 273.8 | M97: 244 | N97: 137.6 | O97: 0.0 | P97: 1034.45 | Q97: 6666 | R97: 否 | S97: 否 | T97: -12% | U97: 否 | V97: 否 | W97: 否 | X97: 否 | Y97: 否 | Z97: 否 | AA97: 否 | AB97: 否 | AC97: 否 | AD97: 否 | AE97: 是 | AF97: 否 | AG97: 否 | AH97: 否 | AI97: 0 | AJ97: 0 | AK97: 0 | AL97: 否 | AM97: 否 | AN97: 5.2 | AO97: 否 | AP97: 2 | AQ97: 否 | AR97: 否 | AS97: 否 | AT97: 155.023
A98: 343 | B98: 成都市海鲨漆业有限责任公司 | C98: 915101227653924725 | D98: 2641 | E98: 化学制品制造业 | F98: 成都市双流区九江街道龙池村工业园 | G98: 四川双流经济开发区 | H98: 0 | I98: 1612.8 | J98: 2049.1 | K98: 14 | L98: 34.0 | M98: 33 | N98: 25.35 | O98: 0.0 | P98: 34.32 | Q98: 350 | R98: 否 | S98: 否 | T98: -61% | U98: 否 | V98: 否 | W98: 否 | X98: 否 | Y98: 否 | Z98: 否 | AA98: 否 | AB98: 否 | AC98: 否 | AD98: 否 | AE98: 是 | AF98: 否 | AG98: 否 | AH98: 否 | AI98: 2 | AJ98: 0 | AK98: 0 | AL98: 否 | AM98: 否 | AN98: 否 | AO98: 否 | AP98: 2 | AQ98: 否 | AR98: 否 | AS98: 否 | AT98: 25.000
A99: 325 | B99: 四川兄弟化学科技有限公司 | C99: 915101227653871985 | D99: 2642 | E99: 化学制品制造业 | F99: 成都蛟龙工业港双流园区黄河路45座 | G99: 四川双流经济开发区 | H99: 0 | I99: 2928.6 | J99: 3891.9 | K99: 3 | L99: 24.3 | M99: 7 | N99: 0 | O99: 0.0 | P99: 0 | Q99: 850 | R99: 否 | S99: 否 | T99: -62% | U99: 否 | V99: 否 | W99: 否 | X99: 否 | Y99: 否 | Z99: 否 | AA99: 否 | AB99: 否 | AC99: 否 | AD99: 否 | AE99: 是 | AF99: 否 | AG99: 否 | AH99: 否 | AI99: 0 | AJ99: 0 | AK99: 0 | AL99: 否 | AM99: 是 | AN99: 1.4 | AO99: 否 | AP99: 1 | AQ99: 否 | AR99: 否 | AS99: 否 | AT99: 283.333
A100: 39 | B100: 成都晨光博达橡塑有限公司 | C100: 91510122765389046J | D100: 2652 | E100: 化学制品制造业 | F100: 黄甲街道双华社区腾飞六路168号 | G100: 四川双流经济开发区（西南航空港经济开发区） | H100: 13056.3 | I100: 15030.3 | J100: 10934.4 | K100: 28.8 | L100: 804.8 | M100: 93 | N100: 129.18 | O100: 576.9 | P100: 843.32 | Q100: 27537.8 | R100: 否 | S100: 是 | T100: 12% | U100: 国家级专精特新 | V100: 否 | W100: 否 | X100: 否 | Y100: 否 | Z100: 否 | AA100: 是 | AB100: 否 | AC100: 否 | AD100: 否 | AE100: 是 | AF100: 是 | AG100: 否 | AH100: 首台套 | AI100: 28 | AJ100: 0 | AK100: 0 | AL100: 否 | AM100: 否 | AN100: 否 | AO100: 否 | AP100: 1 | AQ100: 否 | AR100: 否 | AS100: 否 | AT100: 956.174
A101: 334 | B101: 成都海宁橡胶有限公司 | C101: 91510122730194046U | D101: 2652 | E101: 化学制品制造业 | F101: 万白路235号 | G101: 四川双流经济开发区 | H101: 2000.2 | I101: 2139 | J101: 2131.1 | K101: 10 | L101: 32.0 | M101: 28 | N101: 631.14 | O101: 0.0 | P101: 695.89 | Q101: 326.35 | R101: 否 | S101: 否 | T101: -3% | U101: 否 | V101: 否 | W101: 否 | X101: 否 | Y101: 否 | Z101: 否 | AA101: 否 | AB101: 否 | AC101: 否 | AD101: 否 | AE101: 是 | AF101: 否 | AG101: 否 | AH101: 否 | AI101: 0 | AJ101: 0 | AK101: 0 | AL101: 否 | AM101: 否 | AN101: 否 | AO101: 否 | AP101: 0 | AQ101: 否 | AR101: 否 | AS101: 否 | AT101: 32.635
A102: 144 | B102: 四川砼道科技有限公司 | C102: 91510122765388529Y | D102: 2661 | E102: 化学制品制造业 | F102: 四川省成都市双流区蛟龙大道385号12楼 | G102: 四川双流经济开发区 | H102: 4154.3 | I102: 5056.9 | J102: 2969.3 | K102: 24 | L102: 60.4 | M102: 90 | N102: 241.02 | O102: 249.5 | P102: 0 | Q102: 12892.54 | R102: 否 | S102: 否 | T102: 26% | U102: 否 | V102: 否 | W102: 否 | X102: 否 | Y102: 否 | Z102: 否 | AA102: 否 | AB102: 否 | AC102: 否 | AD102: 否 | AE102: 是 | AF102: 是 | AG102: 否 | AH102: 否 | AI102: 17 | AJ102: 13 | AK102: 0 | AL102: 1 | AM102: 否 | AN102: 1.1 | AO102: 否 | AP102: 0 | AQ102: 否 | AR102: 否 | AS102: 否 | AT102: 537.189
A103: 255 | B103: 四川华石环保科技有限公司 | C103: 91510122785419310E | D103: 2665 | E103: 化学制品制造业 | F103: 协和街道红瓦2社警校路 | G103: 四川双流经济开发区 | H103: 3555.8 | I103: 3201.6 | J103: 3344.8 | K103: 50.03 | L103: 162.6 | M103: 35 | N103: 161.6 | O103: 0.0 | P103: 185.64 | Q103: 4426 | R103: 国家标准 | S103: 否 | T103: 3% | U103: 否 | V103: 否 | W103: 否 | X103: 否 | Y103: 否 | Z103: 否 | AA103: 否 | AB103: 否 | AC103: 否 | AD103: 否 | AE103: 是 | AF103: 否 | AG103: 否 | AH103: 否 | AI103: 0 | AJ103: 0 | AK103: 0 | AL103: 20.8 | AM103: 否 | AN103: 否 | AO103: 否 | AP103: 3 | AQ103: 否 | AR103: 否 | AS103: 否 | AT103: 88.467
A104: 329 | B104: 四川荣乐化妆品有限公司 | C104: 91510122MA6CG6PJ7K | D104: 2672 | E104: 化学制品制造业 | F104: 中国(四川)自由贸易试验区成都市双流区西南航空港经济开发区空港四路3006号 | G104: 四川双流经济开发区（西南航空港经济开发区） | H104: 4483.8 | I104: 0.0 | J104: 0.0 | K104: 50 | L104: 2.6 | M104: 141 | N104: 158.66 | O104: 0.0 | P104: 0 | Q104: 4100 | R104: 否 | S104: 否 | T104: 0% | U104: 否 | V104: 否 | W104: 否 | X104: 否 | Y104: 否 | Z104: 否 | AA104: 否 | AB104: 否 | AC104: 否 | AD104: 否 | AE104: 是 | AF104: 否 | AG104: 否 | AH104: 否 | AI104: 9 | AJ104: 0 | AK104: 0 | AL104: 否 | AM104: 否 | AN104: 否 | AO104: 否 | AP104: 0 | AQ104: 否 | AR104: 否 | AS104: 否 | AT104: 82.000
A105: 170 | B105: 成都泉源卫生用品有限公司 | C105: 91510122621708255L | D105: 2689 | E105: 化学制品制造业 | F105: 四川省成都市双流区空港2路415 | G105: 四川双流经济开发区（西南航空港经济开发区） | H105: 6800.5 | I105: 6505.6 | J105: 6281.7 | K105: 37 | L105: 433.5 | M105: 102 | N105: 2092.37 | O105: 10.3 | P105: 0 | Q105: 4369.9 | R105: 否 | S105: 否 | T105: =(H105/I105+I105/J105)*0.5-1 -> 4% | U105: 否 | V105: 否 | W105: 否 | X105: 否 | Y105: 否 | Z105: 否 | AA105: 否 | AB105: 否 | AC105: 否 | AD105: 否 | AE105: 是 | AF105: 否 | AG105: 否 | AH105: 否 | AI105: 10 | AJ105: 8 | AK105: 0 | AL105: 否 | AM105: 否 | AN105: 否 | AO105: 否 | AP105: 2 | AQ105: 否 | AR105: 是 | AS105: 否 | AT105: 118.105
A106: 172 | B106: 四川广松制药有限公司 | C106: 91510000621601423G | D106: 2710 | E106: 医药制造业 | F106: 四川省成都市双流区空港2路332 | G106: 四川双流经济开发区（西南航空港经济开发区） | H106: 7335.0 | I106: 5811.2 | J106: 7921.2 | K106: 39 | L106: 402.4 | M106: 87 | N106: 775.01 | O106: 349.0 | P106: 1666.46 | Q106: 9364.1 | R106: 行业标准 | S106: 否 | T106: -0% | U106: 否 | V106: 否 | W106: 否 | X106: 否 | Y106: 否 | Z106: 否 | AA106: 否 | AB106: 否 | AC106: 否 | AD106: 否 | AE106: 是 | AF106: 否 | AG106: 否 | AH106: 否 | AI106: 16 | AJ106: 16 | AK106: 16 | AL106: 45.7 | AM106: 否 | AN106: 否 | AO106: 否 | AP106: 0 | AQ106: 否 | AR106: 是 | AS106: 否 | AT106: 240.105
A107: 346 | B107: 四川劲德生物科技有限公司 | C107: 9151012278012760XT | D107: 2710 | E107: 医药制造业 | F107: 杨公 | G107: 四川双流经济开发区 | H107: 2043.7 | I107: 3772.5 | J107: 5576.9 | K107: 58 | L107: 42.7 | M107: 32 | N107: 427.79 | O107: 0.0 | P107: 0 | Q107: 2158 | R107: 否 | S107: 否 | T107: -39% | U107: 否 | V107: 否 | W107: 否 | X107: 否 | Y107: 否 | Z107: 否 | AA107: 否 | AB107: 否 | AC107: 否 | AD107: 否 | AE107: 是 | AF107: 否 | AG107: 否 | AH107: 否 | AI107: 0 | AJ107: 0 | AK107: 0 | AL107: 50 | AM107: 否 | AN107: 2.3 | AO107: 否 | AP107: 0 | AQ107: 否 | AR107: 是 | AS107: 否 | AT107: 37.207
A108: 44 | B108: 成都欣科医药有限公司 | C108: 915101227130108079 | D108: 2720 | E108: 医药制造业 | F108: 成都市双流区空港四路3081号 | G108: 四川双流经济开发区（西南航空港经济开发区） | H108: 9040.7 | I108: 8042.5 | J108: 4362.4 | K108: 24.9 | L108: 792.8 | M108: 54 | N108: 68.19 | O108: 437.5 | P108: 0 | Q108: 13805.3 | R108: 否 | S108: 否 | T108: 48% | U108: 否 | V108: 否 | W108: 否 | X108: 否 | Y108: 否 | Z108: 否 | AA108: 否 | AB108: 否 | AC108: 否 | AD108: 否 | AE108: 是 | AF108: 是 | AG108: 否 | AH108: 否 | AI108: 4 | AJ108: 0 | AK108: 0 | AL108: 否 | AM108: 否 | AN108: 否 | AO108: 否 | AP108: 0 | AQ108: 否 | AR108: 是 | AS108: 否 | AT108: 554.430
A109: 166 | B109: 太极集团四川太极制药有限公司 | C109: 91510122621609724F | D109: 2720 | E109: 医药制造业 | F109: 四川省成都市双流区腾飞2路319 | G109: 四川双流经济开发区（西南航空港经济开发区） | H109: 36412.1 | I109: 35053.1 | J109: 29355.1 | K109: 140 | L109: 774.7 | M109: 284 | N109: 767.58 | O109: 734.6 | P109: 1567.59 | Q109: 32766.2 | R109: 否 | S109: 是 | T109: 12% | U109: 否 | V109: 否 | W109: 否 | X109: 否 | Y109: 否 | Z109: 否 | AA109: 是 | AB109: 否 | AC109: 否 | AD109: 否 | AE109: 是 | AF109: 是 | AG109: 否 | AH109: 否 | AI109: 10 | AJ109: 10 | AK109: 0 | AL109: 否 | AM109: 否 | AN109: 否 | AO109: 否 | AP109: 0 | AQ109: 否 | AR109: 是 | AS109: 否 | AT109: 234.044
A110: 163 | B110: 成都锦华药业有限责任公司 | C110: 91510122202381139Y | D110: 2720 | E110: 医药制造业 | F110: 四川省成都市双流区西航港大道4段281 | G110: 四川双流经济开发区（西南航空港经济开发区） | H110: 14889.9 | I110: 16959.8 | J110: 13649.5 | K110: 111 | L110: 1054.0 | M110: 214 | N110: 345.81 | O110: 260.9 | P110: 765.82 | Q110: 23380.9 | R110: 否 | S110: 是 | T110: 6% | U110: 否 | V110: 否 | W110: 否 | X110: 否 | Y110: 否 | Z110: 否 | AA110: 否 | AB110: 是 | AC110: 否 | AD110: 否 | AE110: 是 | AF110: 是 | AG110: 否 | AH110: 否 | AI110: 20 | AJ110: 19 | AK110: 0 | AL110: 否 | AM110: 否 | AN110: 否 | AO110: 否 | AP110: 0 | AQ110: 否 | AR110: 是 | AS110: 否 | AT110: 210.639
A111: 251 | B111: 四川海汇药业有限公司 | C111: 91510122062401950W | D111: 2720 | E111: 医药制造业 | F111: 西航港大道中四段2899号 | G111: 四川双流经济开发区（西南航空港经济开发区） | H111: 14882.1 | I111: 23878.2 | J111: 0.0 | K111: 483.1 | L111: 3075.2 | M111: 247 | N111: 2821.59 | O111: 3010.0 | P111: 2893.6 | Q111: 83330.8 | R111: 否 | S111: 是 | T111: =H111/I111-1 -> -38% | U111: 否 | V111: 否 | W111: 否 | X111: 否 | Y111: 否 | Z111: 否 | AA111: 否 | AB111: 否 | AC111: 否 | AD111: 否 | AE111: 是 | AF111: 是 | AG111: 否 | AH111: 否 | AI111: 13 | AJ111: 8 | AK111: 0 | AL111: 否 | AM111: 否 | AN111: 2.1 | AO111: 否 | AP111: 0 | AQ111: 否 | AR111: 是 | AS111: 否 | AT111: 172.492
A112: 100 | B112: 成都云克药业有限责任公司 | C112: 915101007301958907 | D112: 2720 | E112: 医药制造业 | F112: 四川省成都市双流区西航港黄荆路2号 | G112: 四川双流经济开发区（西南航空港经济开发区） | H112: 34445.2 | I112: 45327.8 | J112: 39249.6 | K112: 10 | L112: 39.230135 | M112: 253 | N112: 280.57 | O112: 1194.4 | P112: 276.35 | Q112: 61399.7 | R112: 否 | S112: 是 | T112: =(H112/I112+I112/J112)*0.5-1 -> -4% | U112: 否 | V112: 否 | W112: 否 | X112: 否 | Y112: 否 | Z112: 否 | AA112: 否 | AB112: 否 | AC112: 否 | AD112: 否 | AE112: 是 | AF112: 否 | AG112: 市级 | AH112: 否 | AI112: 18 | AJ112: 2 | AK112: 1 | AL112: 否 | AM112: 否 | AN112: 1.8 | AO112: 否 | AP112: 0 | AQ112: 否 | AR112: 是 | AT112: 6139.970
A113: 176 | B113: 四川国强中药饮片有限公司 | C113: 91510122794926912H | D113: 2730 | E113: 医药制造业 | F113: 成都蛟龙工业港双流园区南河路583号 | G113: 四川双流经济开发区 | H113: 14281 | I113: 8244.5 | J113: 7621.2 | K113: 22 | L113: 71.4 | M113: 70 | N113: 217.23 | O113: 0.0 | P113: 0 | Q113: 9980 | R113: 否 | S113: 是 | T113: 41% | U113: 否 | V113: 否 | W113: 否 | X113: 否 | Y113: 否 | Z113: 否 | AA113: 否 | AB113: 否 | AC113: 否 | AD113: 否 | AE113: 是 | AF113: 否 | AG113: 否 | AH113: 否 | AI113: 2 | AJ113: 0 | AK113: 0 | AL113: 否 | AM113: 否 | AN113: 否 | AO113: 否 | AP113: 0 | AQ113: 否 | AR113: 是 | AS113: 否 | AT113: 453.636
A114: 25 | B114: 成都岷江源药业股份有限公司 | C114: 91510122690918301X | D114: 2730 | E114: 医药制造业 | F114: 成都市双流区黄甲街道双华社区腾飞三路85号 | G114: 四川双流经济开发区（西南航空港经济开发区） | H114: 15022.7 | I114: 10317.8 | J114: 19892.2 | K114: 9.2 | L114: 248.0 | M114: 79 | N114: 37.48 | O114: 34.1 | P114: 0 | Q114: 19168.6 | R114: 否 | S114: 是 | T114: -1% | U114: 否 | V114: 省级专精特新 | W114: 否 | X114: 否 | Y114: 否 | Z114: 否 | AA114: 是 | AB114: 否 | AC114: 否 | AD114: 否 | AE114: 是 | AF114: 是 | AG114: 否 | AH114: 否 | AI114: 9 | AJ114: 7 | AK114: 0 | AL114: 否 | AM114: 否 | AN114: 否 | AO114: 否 | AP114: 0 | AQ114: 否 | AR114: 是 | AS114: 否 | AT114: 2083.543
A115: 237 | B115: 四川双新制药有限公司 | C115: 91510122709299919D | D115: 2740 | E115: 医药制造业 | F115: 四川省成都市双流区空港2路361 | G115: 四川双流经济开发区（西南航空港经济开发区） | H115: 6139.0 | I115: 2939.8 | J115: 3218.3 | K115: 244.98 | L115: 481.6 | M115: 233 | N115: 1302.48 | O115: 55.3 | P115: 0 | Q115: 107441.4 | R115: 否 | S115: 否 | T115: 50% | U115: 否 | V115: 否 | W115: 否 | X115: 否 | Y115: 否 | Z115: 否 | AA115: 否 | AB115: 否 | AC115: 否 | AD115: 否 | AE115: 是 | AF115: 否 | AG115: 否 | AH115: 否 | AI115: 12 | AJ115: 5 | AK115: 0 | AL115: 否 | AM115: 否 | AN115: 否 | AO115: 否 | AP115: 0 | AQ115: 否 | AR115: 是 | AS115: 否 | AT115: 438.572
A116: 117 | B116: 成都中亚通茂科技股份有限公司 | C116: 91510122771247810K | D116: 2740 | E116: 医药制造业 | F116: 中国(四川)自由贸易试验区成都市双流区西南航空港经济开发区腾飞二路355号 | G116: 四川双流经济开发区（西南航空港经济开发区） | H116: 8407.0 | I116: 7518.9 | J116: 8371.2 | K116: 10.5 | L116: 386.1 | M116: 241 | N116: 19.91 | O116: 966.0 | P116: 0 | Q116: 1177.2 | R116: 否 | S116: 否 | T116: 1% | U116: 否 | V116: 否 | W116: 否 | X116: 否 | Y116: 否 | Z116: 否 | AA116: 否 | AB116: 否 | AC116: 否 | AD116: 否 | AE116: 是 | AF116: 是 | AG116: 否 | AH116: 否 | AI116: 23 | AJ116: 14 | AK116: 3 | AL116: 否 | AM116: 否 | AN116: 否 | AO116: 否 | AP116: 0 | AQ116: 否 | AR116: 是 | AS116: 否 | AT116: 112.114
A117: 195 | B117: 成都康弘制药有限公司 | C117: 91510122621604739U | D117: 2740 | E117: 医药制造业 | F117: 中国(四川)自由贸易试验区成都市双流区西南航空港经济开发区腾飞二路355号 | G117: 四川双流经济开发区（西南航空港经济开发区） | H117: 45028.1 | I117: 42823.8 | J117: 46014.7 | K117: 184 | L117: 5374.8 | M117: 863 | N117: 23.3 | O117: 2784.0 | P117: 0 | Q117: 8993.6 | R117: 否 | S117: 是 | T117: -1% | U117: 否 | V117: 否 | W117: 否 | X117: 否 | Y117: 否 | Z117: 否 | AA117: 否 | AB117: 否 | AC117: 否 | AD117: 否 | AE117: 是 | AF117: 是 | AG117: 否 | AH117: 否 | AI117: 48 | AJ117: 6 | AK117: 0 | AL117: 否 | AM117: 否 | AN117: 否 | AO117: 否 | AP117: 0 | AQ117: 否 | AR117: 是 | AS117: 否 | AT117: 48.878
A118: 331 | B118: 四川宝兴制药有限公司 | C118: 915101227253633512 | D118: 2740 | E118: 医药制造业 | F118: 四川省成都市双流区黄水镇红桥7组307号 | G118: 四川双流经济开发区 | H118: 0 | I118: 2508.7 | J118: 2085.5 | K118: 30 | L118: 183.5 | M118: 45 | N118: 240.32 | O118: 0.0 | P118: 302.11 | Q118: 5300 | R118: 否 | S118: 否 | T118: -40% | U118: 否 | V118: 否 | W118: 否 | X118: 否 | Y118: 否 | Z118: 否 | AA118: 否 | AB118: 否 | AC118: 否 | AD118: 否 | AE118: 是 | AF118: 否 | AG118: 否 | AH118: 否 | AI118: 0 | AJ118: 0 | AK118: 0 | AL118: 否 | AM118: 否 | AN118: 3.6 | AO118: 否 | AP118: 0 | AQ118: 否 | AR118: 是 | AS118: 否 | AT118: 176.667
A119: 232 | B119: 畜科生物工程有限公司 | C119: 91510122797822473H | D119: 2762 | E119: 医药制造业 | F119: 西航航大道牧科路6号 | G119: 四川双流经济开发区（西南航空港经济开发区） | H119: 2699.5 | I119: 2242.1 | J119: 3994.5 | K119: 70 | L119: 177.4 | M119: 108 | N119: 171.63 | O119: 243.8 | P119: 69.41 | Q119: 11685 | R119: 国家标准 | S119: 否 | T119: -12% | U119: 否 | V119: 否 | W119: 否 | X119: 否 | Y119: 否 | Z119: 否 | AA119: 否 | AB119: 否 | AC119: 否 | AD119: 否 | AE119: 是 | AF119: 否 | AG119: 否 | AH119: 否 | AI119: 23 | AJ119: 7 | AK119: 0 | AL119: 25 | AM119: 否 | AN119: 否 | AO119: 否 | AP119: 3 | AQ119: 否 | AR119: 是 | AS119: 否 | AT119: 166.929
A120: 59 | B120: 成都欧赛医疗器械有限公司 | C120: 91510122768647821B | D120: 2770 | E120: 医药制造业 | F120: 成都市双流区西航航大道2401号 | G120: 四川双流经济开发区（西南航空港经济开发区） | H120: 21508.4 | I120: 15232.1 | J120: 10200.7 | K120: 50 | L120: 1998.6 | M120: 297 | N120: 4465.1 | O120: 512.1 | P120: 1157.65 | Q120: 34042 | R120: 否 | S120: 是 | T120: 45% | U120: 国家级专精特新 | V120: 否 | W120: 否 | X120: 否 | Y120: 否 | Z120: 否 | AA120: 否 | AB120: 否 | AC120: 否 | AD120: 否 | AE120: 是 | AF120: 是 | AG120: 否 | AH120: 否 | AI120: 30 | AJ120: 22 | AK120: 0 | AL120: 否 | AM120: 否 | AN120: 否 | AO120: 否 | AP120: 0 | AQ120: 否 | AR120: 是 | AS120: 否 | AT120: 680.840
A121: 33 | B121: 成都盛帮密封件股份有限公司 | C121: 91510100762270090B | D121: 2913 | E121: 橡胶和塑料制品业 | F121: 成都市双流区西南航空港经济开发区空港二路1388号 | G121: 四川双流经济开发区（西南航空港经济开发区） | H121: 20544.9 | I121: 17280.9 | J121: 17397.0 | K121: 25 | L121: 2156.3 | M121: 491 | N121: 472.33 | O121: 1474.4 | P121: 424.53 | Q121: 36812.8 | R121: 否 | S121: 是 | T121: 9% | U121: 否 | V121: 否 | W121: 否 | X121: 否 | Y121: 否 | Z121: 否 | AA121: 是 | AB121: 否 | AC121: 否 | AD121: 否 | AE121: 是 | AF121: 是 | AG121: 否 | AH121: 否 | AI121: 57 | AJ121: 34 | AK121: 0 | AL121: 否 | AM121: 否 | AN121: 否 | AO121: 否 | AP121: 1 | AQ121: 否 | AR121: 否 | AS121: 否 | AT121: 1472.512
A122: 298 | B122: 四川氟迪新能源有限公司 | C122: 91510122564458316P | D122: 2919 | E122: 橡胶和塑料制品业 | F122: 成都市双流区牧鱼路396号 | G122: 四川双流经济开发区（西南航空港经济开发区） | H122: 2351.1 | I122: 2005.7 | J122: 2021.3 | K122: 30 | L122: 45.6 | M122: 26 | N122: 28.66 | O122: 0.0 | P122: 0 | Q122: 2150.6 | R122: 否 | S122: 否 | T122: 8% | U122: 否 | V122: 否 | W122: 否 | X122: 否 | Y122: 否 | Z122: 否 | AA122: 否 | AB122: 否 | AC122: 否 | AD122: 否 | AE122: 是 | AF122: 是 | AG122: 否 | AH122: 否 | AI122: 18 | AJ122: 14 | AK122: 0 | AL122: 否 | AM122: 否 | AN122: 否 | AO122: 否 | AP122: 1 | AQ122: 否 | AR122: 否 | AS122: 否 | AT122: 71.687
A123: 238 | B123: 四川华德精工制造有限公司 | C123: 915101227729765134 | D123: 2919 | E123: 橡胶和塑料制品业 | F123: 水口路25座 | G123: 四川双流经济开发区 | H123: 1536.1 | I123: 1720.8 | J123: 0 | K123: 3.45 | L123: 103.1 | M123: 57 | N123: 54.74 | O123: 0.0 | P123: 0 | Q123: 500 | R123: 否 | S123: 否 | T123: =H123/I123-1 -> -11% | U123: 否 | V123: 否 | W123: 否 | X123: 否 | Y123: 否 | Z123: 否 | AA123: 否 | AB123: 否 | AC123: 否 | AD123: 否 | AE123: 是 | AF123: 否 | AG123: 否 | AH123: 否 | AI123: 0 | AJ123: 0 | AK123: 0 | AL123: 否 | AM123: 否 | AN123: 否 | AO123: 否 | AP123: 0 | AQ123: 否 | AR123: 否 | AS123: 否 | AT123: 144.928
A124: 91 | B124: 四川金石东方新材料科技有限公司 | C124: 9151012255898079XY | D124: 2921 | E124: 橡胶和塑料制品业 | F124: 成都市双流区西南航空港经济开发区工业集中发展区六期内 | G124: 四川双流经济开发区（西南航空港经济开发区） | H124: 17492.7 | I124: 8964.7 | J124: 0.0 | K124: 60 | L124: 797.2 | M124: 138 | N124: 65.14 | O124: 1167.9 | P124: 0 | Q124: 30222.7 | R124: 否 | S124: 是 | T124: =H124/I124-1 -> 95% | U124: 否 | V124: 省级专精特新 | W124: 否 | X124: 否 | Y124: 否 | Z124: 否 | AA124: 否 | AB124: 否 | AC124: 否 | AD124: 否 | AE124: 是 | AF124: 是 | AG124: 否 | AH124: 否 | AI124: 62 | AJ124: 37 | AK124: 0 | AL124: 否 | AM124: 否 | AN124: 否 | AO124: 否 | AP124: 0 | AQ124: 否 | AR124: 否 | AS124: 否 | AT124: 503.712
A125: 279 | B125: 成都方耀包装印务有限公司 | C125: 9151012277749736X7 | D125: 2921 | E125: 橡胶和塑料制品业 | F125: 成都市双流县公兴街道黄龙大道二段122号 | G125: 四川双流经济开发区（西南航空港经济开发区） | H125: 3061.0 | I125: 2682.5 | J125: 0.0 | K125: 13.9 | L125: 57.1 | M125: 58 | N125: 176.98 | O125: 0.0 | P125: 126.52 | Q125: 2972.6 | R125: 否 | S125: 否 | T125: =H125/I125-1 -> 14% | U125: 否 | V125: 否 | W125: 否 | X125: 否 | Y125: 否 | Z125: 否 | AA125: 否 | AB125: 否 | AC125: 否 | AD125: 否 | AE125: 是 | AF125: 否 | AG125: 否 | AH125: 否 | AI125: 0 | AJ125: 0 | AK125: 0 | AL125: 208 | AM125: 否 | AN125: 否 | AO125: 否 | AP125: 0 | AQ125: 否 | AR125: 否 | AS125: 否 | AT125: 213.856
A126: 47 | B126: 四川多联实业有限公司 | C126: 91510122785407280R | D126: 2922 | E126: 橡胶和塑料制品业 | F126: 双流区公兴街道牧鱼二路 | G126: 四川双流经济开发区（西南航空港经济开发区） | H126: 65999.9 | I126: 71094.6 | J126: 72429.6 | K126: 160.1 | L126: 5145.1 | M126: 752 | N126: 3607.77 | O126: 0.0 | P126: 0 | Q126: 94633.4 | R126: 否 | S126: 是 | T126: =(H126/I126+I126/J126)*0.5-1 -> -5% | U126: 否 | V126: 省级专精特新 | W126: 否 | X126: 否 | Y126: 否 | Z126: 否 | AA126: 是 | AB126: 否 | AC126: 否 | AD126: 否 | AE126: 是 | AF126: 是 | AG126: 国家级 | AH126: 否 | AI126: 100 | AJ126: 82 | AK126: 0 | AL126: 1869 | AM126: 否 | AN126: 否 | AO126: 否 | AP126: 3 | AQ126: 区县重点企业 | AR126: 否 | AS126: 否 | AT126: 591.089
A127: 149 | B127: 成都市双流川双热缩制品有限公司 | C127: 91510122202380734A | D127: 2922 | E127: 橡胶和塑料制品业 | F127: 成都市双流区黄甲街道双华社区空港二路448号 | G127: 四川双流经济开发区（西南航空港经济开发区） | H127: 3434.4 | I127: 2493.5 | J127: 2510.5 | K127: 40.5 | L127: 239.0 | M127: 68 | N127: 169.31 | O127: 170.4 | P127: 0 | Q127: 4215.7 | R127: 行业标准 | S127: 否 | T127: =(H127/I127+I127/J127)*0.5-1 -> 19% | U127: 否 | V127: 否 | W127: 否 | X127: 否 | Y127: 否 | Z127: 否 | AA127: 否 | AB127: 否 | AC127: 否 | AD127: 否 | AE127: 是 | AF127: 是 | AG127: 否 | AH127: 否 | AI127: 15 | AJ127: 13 | AK127: 0 | AL127: 12.8 | AM127: 否 | AN127: 否 | AO127: 否 | AP127: 3 | AQ127: 否 | AR127: 否 | AS127: 配套市级 | AT127: 104.091
A128: 275 | B128: 成都禾田科技有限公司 | C128: 915101226721521548 | D128: 2922 | E128: 橡胶和塑料制品业 | F128: 成都市双流区黄甲街道双华社区腾飞二路456号 | G128: 四川双流经济开发区（西南航空港经济开发区） | H128: 2741.4 | I128: 3084.3 | J128: 3238.8 | K128: 18.5 | L128: 87.8 | M128: 22 | N128: 49.16 | O128: 0.0 | P128: 22.79 | Q128: 2412.2 | R128: 否 | S128: 否 | T128: =(H128/I128+I128/J128)*0.5-1 -> -8% | U128: 否 | V128: 否 | W128: 否 | X128: 否 | Y128: 否 | Z128: 否 | AA128: 否 | AB128: 否 | AC128: 否 | AD128: 否 | AE128: 是 | AF128: 否 | AG128: 否 | AH128: 否 | AI128: 0 | AJ128: 0 | AK128: 0 | AL128: 否 | AM128: 否 | AN128: 否 | AO128: 否 | AP128: 0 | AQ128: 否 | AR128: 否 | AS128: 否 | AT128: 130.389
A129: 289 | B129: 成都巨伦科技有限公司 | C129: 91510122774510856T | D129: 2922 | E129: 橡胶和塑料制品业 | F129: 成都市双流区西南航空港经济开发区工业空港三路333号 | G129: 四川双流经济开发区（西南航空港经济开发区） | H129: 2479.6 | I129: 2349.2 | J129: 0.0 | K129: 25 | L129: 110.6 | M129: 38 | N129: 210.16 | O129: 0.0 | P129: 0 | Q129: 2432.7 | R129: 否 | S129: 否 | T129: =H129/I129-1 -> 6% | U129: 否 | V129: 否 | W129: 否 | X129: 否 | Y129: 否 | Z129: 否 | AA129: 否 | AB129: 否 | AC129: 否 | AD129: 否 | AE129: 是 | AF129: 否 | AG129: 否 | AH129: 否 | AI129: 0 | AJ129: 0 | AK129: 0 | AL129: 否 | AM129: 否 | AN129: 否 | AO129: 否 | AP129: 0 | AQ129: 否 | AR129: 否 | AS129: 否 | AT129: 97.308
A130: 174 | B130: 成都圣大塑胶有限公司 | C130: 91510122086672093N | D130: 2922 | E130: 橡胶和塑料制品业 | F130: 蛟龙港北海路150号 | G130: 四川双流经济开发区 | H130: 2123.5 | I130: 2717.8 | J130: 0 | K130: 3 | L130: 38.4 | M130: 22 | N130: 105.07 | O130: 0.0 | P130: 0 | Q130: 1174 | R130: 否 | S130: 否 | T130: =H130/I130-1 -> -22% | U130: 否 | V130: 否 | W130: 否 | X130: 否 | Y130: 否 | Z130: 否 | AA130: 否 | AB130: 否 | AC130: 否 | AD130: 否 | AE130: 是 | AF130: 否 | AG130: 否 | AH130: 否 | AI130: 0 | AJ130: 0 | AK130: 0 | AL130: 否 | AM130: 否 | AN130: 2.9 | AO130: 否 | AP130: 0 | AQ130: 否 | AR130: 否 | AS130: 否 | AT130: 391.333
A131: 338 | B131: 永亨控股集团（成都）有限公司 | C131: 91510122686325677E | D131: 2922 | E131: 橡胶和塑料制品业 | F131: 成都市双流区西南航空港经济开发区工业集中发展区三期内 | G131: 四川双流经济开发区（西南航空港经济开发区） | H131: 2206.6 | I131: 0.0 | J131: 0.0 | K131: 97.5 | L131: 140.2 | M131: 43 | N131: 252.17 | O131: 0.0 | P131: 0 | Q131: 3470.7 | R131: 否 | S131: 否 | T131: 0% | U131: 否 | V131: 否 | W131: 否 | X131: 否 | Y131: 否 | Z131: 否 | AA131: 否 | AB131: 否 | AC131: 否 | AD131: 否 | AE131: 是 | AF131: 否 | AG131: 否 | AH131: 否 | AI131: 0 | AJ131: 0 | AK131: 0 | AL131: 否 | AM131: 否 | AN131: 1.7 | AO131: 否 | AP131: 0 | AQ131: 否 | AR131: 否 | AS131: 否 | AT131: 35.597
A132: 350 | B132: 成都市双流区双益包装有限公司 | C132: 91510122716020584H | D132: 2923 | E132: 橡胶和塑料制品业 | F132: 扯旗九组300号 | G132: 四川双流经济开发区 | H132: 2013 | I132: 2227.5 | J132: 2089.5 | K132: 40 | L132: 51.3 | M132: 103 | N132: 306.05 | O132: 0.0 | P132: 0 | Q132: 100 | R132: 否 | S132: 否 | T132: =(H132/I132+I132/J132)*0.5-1 -> -2% | U132: 否 | V132: 否 | W132: 否 | X132: 否 | Y132: 否 | Z132: 否 | AA132: 否 | AB132: 否 | AC132: 否 | AD132: 否 | AE132: 是 | AF132: 否 | AG132: 否 | AH132: 否 | AI132: 0 | AJ132: 0 | AK132: 0 | AL132: 否 | AM132: 是 | AN132: 否 | AO132: 否 | AP132: 0 | AQ132: 否 | AR132: 否 | AS132: 配套省级 | AT132: 2.500
A133: 224 | B133: 成都众信塑胶有限责任公司 | C133: 91510122669653353X | D133: 2925 | E133: 橡胶和塑料制品业 | F133: 成都市双流区空港二路1129号 | G133: 四川双流经济开发区（西南航空港经济开发区） | H133: 15754.9 | I133: 15873.4 | J133: 16236.9 | K133: 45 | L133: 496.7 | M133: 211 | N133: 5296.64 | O133: 0.0 | P133: 13982.88 | Q133: 10418.3 | R133: 否 | S133: =IF(H133>10000,"是","否") -> 是 | T133: =(H133/I133+I133/J133)*0.5-1 -> -1% | U133: 否 | V133: 否 | W133: 否 | X133: 否 | Y133: 否 | Z133: 否 | AA133: 否 | AB133: 否 | AC133: 否 | AD133: 否 | AE133: 是 | AF133: 是 | AG133: 否 | AH133: 否 | AI133: 0 | AJ133: 0 | AK133: 0 | AL133: 否 | AM133: 否 | AN133: 0.8 | AO133: 否 | AP133: 1 | AQ133: 否 | AR133: 否 | AS133: 否 | AT133: 231.518
A134: 78 | B134: 成都金发科技新材料有限公司 | C134: 9151012235058902XE | D134: 2929 | E134: 橡胶和塑料制品业 | F134: 四川省成都市双流区公兴街道付家街665号 | G134: 四川双流经济开发区（西南航空港经济开发区） | H134: 154449.9 | I134: 102394.1 | J134: 113691.9 | K134: 550 | L134: 7764.3 | M134: 407 | N134: 4488.92 | O134: 5341.5 | P134: 2712.64 | Q134: 139420.8 | R134: 否 | S134: 是 | T134: =(H134/I134+I134/J134)*0.5-1 -> 20% | U134: 否 | V134: 否 | W134: 否 | X134: 否 | Y134: 否 | Z134: 否 | AA134: 是 | AB134: 否 | AC134: 否 | AD134: 否 | AE134: 是 | AF134: 是 | AG134: 否 | AH134: 否 | AI134: 66 | AJ134: 16 | AK134: 1 | AL134: 否 | AM134: 否 | AN134: 否 | AO134: 否 | AP134: 2 | AQ134: 全市30家龙头企业 | AR134: 否 | AS134: 否 | AT134: 253.492
A135: 160 | B135: 成都凌枫包装材料有限公司 | C135: 91510122674311526D | D135: 2929 | E135: 橡胶和塑料制品业 | F135: 成大路16号 | G135: 四川双流经济开发区 | H135: 2940.6 | I135: 3887.5 | J135: 3465.8 | K135: 2.7 | L135: 70.7 | M135: 31 | N135: 333.1 | O135: 0.0 | P135: 0 | Q135: 715.9 | R135: 否 | S135: 否 | T135: =(H135/I135+I135/J135)*0.5-1 -> -6% | U135: 否 | V135: 否 | W135: 否 | X135: 否 | Y135: 否 | Z135: 否 | AA135: 否 | AB135: 否 | AC135: 否 | AD135: 否 | AE135: 是 | AF135: 否 | AG135: 否 | AH135: 否 | AI135: 0 | AJ135: 0 | AK135: 0 | AL135: 否 | AM135: 否 | AN135: 否 | AO135: 否 | AP135: 0 | AQ135: 否 | AR135: 否 | AS135: 否 | AT135: 265.148
A136: 61 | B136: 成都瀚德胜邦光学有限公司 | C136: 91510122399611654Q | D136: 2929 | E136: 橡胶和塑料制品业 | F136: 西南航空港经济开发区腾飞二路159号 | G136: 四川双流经济开发区（西南航空港经济开发区） | H136: 2109.9 | I136: 2013.5 | J136: 0.0 | K136: 2.9 | L136: 60.5 | M136: 95 | N136: 135.19 | O136: 208.1 | P136: 0 | Q136: 1832.7 | R136: 否 | S136: 否 | T136: =H136/I136-1 -> 5% | U136: 否 | V136: 省级专精特新 | W136: 否 | X136: 否 | Y136: 否 | Z136: 否 | AA136: 否 | AB136: 否 | AC136: 否 | AD136: 否 | AE136: 是 | AF136: 是 | AG136: 否 | AH136: 否 | AI136: 35 | AJ136: 29 | AK136: 0 | AL136: 否 | AM136: 否 | AN136: 否 | AO136: 否 | AP136: 2 | AQ136: 否 | AR136: 是 | AS136: 否 | AT136: 631.966
A137: 65 | B137: 四川兴城港瑞建材有限公司 | C137: 91510122MA6C4QG54A | D137: 3021 | E137: 非金属矿物制品业 | F137: 成都市双流区西南航空港经济开发区工业集中发展区空港四路598号 | G137: 四川双流经济开发区（西南航空港经济开发区） | H137: 90070.4 | I137: 97960.9 | J137: 38287.2 | K137: 349.2754 | L137: 3828.92791 | M137: 244 | N137: 768.48 | O137: 2798.4 | P137: 10239.13 | Q137: 102428.8 | R137: 否 | S137: 是 | T137: =(H137/I137+I137/J137)*0.5-1 -> 74% | U137: 否 | V137: 否 | W137: 否 | X137: 否 | Y137: 否 | Z137: 否 | AA137: 否 | AB137: 否 | AC137: 否 | AD137: 否 | AE137: 是 | AF137: 是 | AG137: 否 | AH137: 否 | AI137: 31 | AJ137: 17 | AK137: 0 | AL137: 否 | AM137: 否 | AN137: 否 | AO137: 否 | AP137: 3 | AQ137: 全市100家重点监测企业 | AR137: 否 | AT137: 293.261
A138: 99 | B138: 四川西建兴城建材有限公司 | C138: 91510122MA6CAG7L38 | D138: 3021 | E138: 非金属矿物制品业 | F138: 金沙社区一组 | G138: 四川双流经济开发区 | H138: 50451.6 | I138: 46585.9 | J138: 15641 | K138: 80 | L138: 2643.5 | M138: 48 | N138: 362.56 | O138: 0.0 | P138: 0 | Q138: 8000 | R138: 否 | S138: 是 | T138: =(H138/I138+I138/J138)*0.5-1 -> 103% | U138: 否 | V138: 否 | W138: 否 | X138: 否 | Y138: 否 | Z138: 否 | AA138: 否 | AB138: 否 | AC138: 否 | AD138: 否 | AE138: 是 | AF138: 否 | AG138: 否 | AH138: 否 | AI138: 0 | AJ138: 0 | AK138: 0 | AL138: 900 | AM138: 否 | AN138: 否 | AO138: 否 | AP138: 3 | AQ138: 否 | AR138: 否 | AS138: 配套省级 | AT138: 100.000
A139: 349 | B139: 四川安德盛建材有限公司 | C139: 915101223319925858 | D139: 3021 | E139: 非金属矿物制品业 | F139: 成都蛟龙工业港双流园区黄海路8、10座 | G139: 四川双流经济开发区 | H139: 0 | I139: 1573.7 | J139: 0 | K139: 9 | L139: 31.1 | M139: 11 | N139: 16.35 | O139: 0.0 | P139: 127.65 | Q139: 500 | R139: 否 | S139: 否 | T139: =H139/I139-1 -> -100% | U139: 否 | V139: 否 | W139: 否 | X139: 否 | Y139: 否 | Z139: 否 | AA139: 否 | AB139: 否 | AC139: 否 | AD139: 否 | AE139: 是 | AF139: 否 | AG139: 否 | AH139: 否 | AI139: 0 | AJ139: 0 | AK139: 0 | AL139: 否 | AM139: 否 | AN139: 否 | AO139: 否 | AP139: 0 | AQ139: 否 | AR139: 否 | AS139: 否 | AT139: 55.556
A140: 235 | B140: 成都华建管桩有限公司 | C140: 91510122737747512J | D140: 3022 | E140: 非金属矿物制品业 | F140: 罗汉路南一段388号 | G140: 四川双流经济开发区 | H140: 12809.8 | I140: 11781.4 | J140: 9452.3 | K140: 42.17 | L140: 346.3 | M140: 118 | N140: 1879.99 | O140: 0.0 | P140: 259.46 | Q140: 10509 | R140: 否 | S140: 是 | T140: =(H140/I140+I140/J140)*0.5-1 -> 17% | U140: 否 | V140: 否 | W140: 否 | X140: 否 | Y140: 否 | Z140: 否 | AA140: 否 | AB140: 否 | AC140: 否 | AD140: 否 | AE140: 是 | AF140: 否 | AG140: 否 | AH140: 否 | AI140: 0 | AJ140: 0 | AK140: 0 | AL140: 否 | AM140: 否 | AN140: 1.8 | AO140: 否 | AP140: 1 | AQ140: 否 | AR140: 否 | AS140: 否 | AT140: 249.206
A141: 313 | B141: 成都万兴绿建科技有限公司 | C141: 91510122MA6CHXH26U | D141: 3022 | E141: 非金属矿物制品业 | F141: 金沙社区一组301号 | G141: 四川双流经济开发区 | H141: 6620.4 | I141: 0 | J141: 0 | K141: 206 | L141: 0.0 | M141: 150 | N141: 963.32 | O141: 88.1 | P141: 0 | Q141: 36160 | R141: 否 | S141: 否 | T141: 0% | U141: 否 | V141: 否 | W141: 否 | X141: 否 | Y141: 否 | Z141: 否 | AA141: 否 | AB141: 否 | AC141: 否 | AD141: 否 | AE141: 是 | AF141: 否 | AG141: 否 | AH141: 否 | AI141: 1 | AJ141: 1 | AK141: 0 | AL141: 否 | AM141: 否 | AN141: 否 | AO141: 否 | AP141: 3 | AQ141: 否 | AR141: 否 | AS141: 否 | AT141: 175.534
A142: 23 | B142: 四川宇砼建材有限公司 | C142: 91510122MA61R5K74A | D142: 3039 | E142: 非金属矿物制品业 | F142: 四川省成都市双流区蛟龙工业港园区内东升88号 | G142: 四川双流经济开发区 | H142: 8910.7 | I142: 8752.5 | J142: 6003.9 | K142: 13 | L142: 241.8 | M142: 36 | N142: 17.63 | O142: 547.4 | P142: 0 | Q142: 3955.07 | R142: 否 | S142: 否 | T142: =(H142/I142+I142/J142)*0.5-1 -> 24% | U142: 否 | V142: 否 | W142: 否 | X142: 否 | Y142: 否 | Z142: 否 | AA142: 是 | AB142: 否 | AC142: 否 | AD142: 否 | AE142: 是 | AF142: 是 | AG142: 否 | AH142: 否 | AI142: 25 | AJ142: 23 | AK142: 0 | AL142: 否 | AM142: 否 | AN142: 否 | AO142: 否 | AP142: 3 | AQ142: 否 | AR142: 否 | AS142: 否 | AT142: 304.236
A143: 112 | B143: 四川博瑞人防工程有限公司 | C143: 91510122098034603X | D143: 3039 | E143: 非金属矿物制品业 | F143: 自由贸易试验区成都市双流区西航港经济开发区工业集中区黄龙大道二段2号 | G143: 四川双流经济开发区（西南航空港经济开发区） | H143: 6012.7 | I143: 4134.3 | J143: 0.0 | K143: 18.4 | L143: 373.1 | M143: 67 | N143: 22.97 | O143: 270.4 | P143: 602 | Q143: 3539.2 | R143: 否 | S143: 否 | T143: =H143/I143-1 -> 45% | U143: 否 | V143: 否 | W143: 否 | X143: 否 | Y143: 否 | Z143: 否 | AA143: 否 | AB143: 否 | AC143: 否 | AD143: 否 | AE143: 是 | AF143: 是 | AG143: 省级 | AH143: 否 | AI143: 20 | AJ143: 20 | AK143: 0 | AL143: 否 | AM143: 否 | AN143: 2.8 | AO143: 否 | AP143: 2 | AQ143: 否 | AR143: 否 | AS143: 否 | AT143: 192.348
A144: 233 | B144: 四川省阿力克斯科技有限公司 | C144: 91510122551087149R | D144: 3039 | E144: 非金属矿物制品业 | F144: 成都市双流区腾飞十路2号 | G144: 四川双流经济开发区（西南航空港经济开发区） | H144: 2269.6 | I144: 2765.7 | J144: 0.0 | K144: 35.6 | L144: 196.6 | M144: 34 | N144: 105.68 | O144: 1.1 | P144: 0 | Q144: 3260 | R144: 否 | S144: 否 | T144: =H144/I144-1 -> -18% | U144: 否 | V144: 否 | W144: 否 | X144: 否 | Y144: 否 | Z144: 否 | AA144: 否 | AB144: 否 | AC144: 否 | AD144: 否 | AE144: 是 | AF144: 否 | AG144: 否 | AH144: 否 | AI144: 0 | AJ144: 0 | AK144: 0 | AL144: 否 | AM144: 否 | AN144: 否 | AO144: 否 | AP144: 0 | AQ144: 否 | AR144: 否 | AS144: 否 | AT144: 91.573
A145: 24 | B145: 成都南玻玻璃有限公司 | C145: 9151012275878841X1 | D145: 3041 | E145: 非金属矿物制品业 | F145: 成都市双流区西航港开发区黄龙大道 | G145: 四川双流经济开发区（西南航空港经济开发区） | H145: 120208.8 | I145: 107208.1 | J145: 110289.3 | K145: 248 | L145: 13145.7 | M145: 439 | N145: 196051.4 | O145: 8781.2 | P145: 1051539.97 | Q145: 105807.2 | R145: 否 | S145: 是 | T145: =(H145/I145+I145/J145)*0.5-1 -> 5% | U145: 否 | V145: 否 | W145: 否 | X145: 否 | Y145: 否 | Z145: 否 | AA145: 否 | AB145: 否 | AC145: 否 | AD145: 否 | AE145: 是 | AF145: 是 | AG145: 国家级 | AH145: 否 | AI145: 26 | AJ145: 24 | AK145: 0 | AL145: 469.4 | AM145: 否 | AN145: 否 | AO145: 否 | AP145: 3 | AQ145: 全市100家重点监测企业 | AR145: 否 | AS145: 否 | AT145: 426.642
A146: 269 | B146: 成都龙泰印精工玻璃有限公司 | C146: 91510122690949538G | D146: 3041 | E146: 非金属矿物制品业 | F146: 成都蛟龙工业港双流园区新华大道369号 | G146: 四川双流经济开发区 | H146: 2530.1 | I146: 2487.2 | J146: 0 | K146: 7.5 | L146: 55.6 | M146: 59 | N146: 164.86 | O146: 0.0 | P146: 0 | Q146: 900 | R146: 否 | S146: 否 | T146: =H146/I146-1 -> 2% | U146: 否 | V146: 否 | W146: 否 | X146: 否 | Y146: 否 | Z146: 否 | AA146: 否 | AB146: 否 | AC146: 否 | AD146: 否 | AE146: 是 | AF146: 否 | AG146: 否 | AH146: 否 | AI146: 0 | AJ146: 0 | AK146: 0 | AL146: 否 | AM146: 否 | AN146: 否 | AO146: 否 | AP146: 0 | AQ146: 否 | AR146: 否 | AS146: 否 | AT146: 120.000
A147: 306 | B147: 成都鑫江安特玻有限公司 | C147: 91510122098891445A | D147: 3041 | E147: 非金属矿物制品业 | F147: 成都市双流区西航港经济开发区黄龙大道302号 | G147: 四川双流经济开发区（西南航空港经济开发区） | H147: 2541.4 | I147: 2794.6 | J147: 2932.6 | K147: 6 | L147: 22.6 | M147: 155 | N147: 85.19 | O147: 0.0 | P147: 0 | Q147: 1513.6 | R147: 否 | S147: 否 | T147: =(H147/I147+I147/J147)*0.5-1 -> -7% | U147: 否 | V147: 否 | W147: 否 | X147: 否 | Y147: 否 | Z147: 否 | AA147: 否 | AB147: 否 | AC147: 否 | AD147: 否 | AE147: 是 | AF147: 否 | AG147: 否 | AH147: 否 | AI147: 0 | AJ147: 0 | AK147: 0 | AL147: 否 | AM147: 否 | AN147: 否 | AO147: 否 | AP147: 0 | AQ147: 否 | AR147: 否 | AS147: 否 | AT147: 252.267
A148: 86 | B148: 四川南玻节能玻璃有限公司 | C148: 91510100086685986K | D148: 3042 | E148: 非金属矿物制品业 | F148: 成都市双流区黄龙大道二段16号 | G148: 四川双流经济开发区（西南航空港经济开发区） | H148: 74762.7 | I148: 52973.9 | J148: 47031.1 | K148: 303 | L148: 4764.3 | M148: 790 | N148: 7552.21 | O148: 2045.9 | P148: 0 | Q148: 57231.7 | R148: 否 | S148: 是 | T148: =(H148/I148+I148/J148)*0.5-1 -> 27% | U148: 否 | V148: 否 | W148: 否 | X148: 否 | Y148: 否 | Z148: 否 | AA148: 是 | AB148: 否 | AC148: 否 | AD148: 否 | AE148: 是 | AF148: 是 | AG148: 否 | AH148: 否 | AI148: 41 | AJ148: 37 | AK148: 0 | AL148: 否 | AM148: 否 | AN148: 否 | AO148: 否 | AP148: 3 | AQ148: 区县重点企业 | AR148: 否 | AS148: 否 | AT148: 188.883
A149: 54 | B149: 成都虹宁显示玻璃有限公司 | C149: 91510122MA68J32BXQ | D149: 3042 | E149: 非金属矿物制品业 | F149: 成都市双流区公兴街办中电熊猫配套产业园青栏路 | G149: 四川双流经济开发区（西南航空港经济开发区） | H149: 70620.9 | I149: 57655.5 | J149: 0.0 | K149: 70 | L149: 2404.8 | M149: 93 | N149: 1903.65 | O149: 0.0 | P149: 664.96 | Q149: 56897.4 | R149: 否 | S149: 是 | T149: =H149/I149-1 -> 22% | U149: 否 | V149: 否 | W149: 否 | X149: 是 | Y149: 否 | Z149: 否 | AA149: 否 | AB149: 否 | AC149: 否 | AD149: 否 | AE149: 是 | AF149: 是 | AG149: 否 | AH149: 否 | AI149: 0 | AJ149: 0 | AK149: 0 | AL149: 否 | AM149: 否 | AN149: 否 | AO149: 否 | AP149: 3 | AQ149: 区县重点企业 | AR149: 是 | AS149: 否 | AT149: 812.820
A150: 302 | B150: 成都时代运峰玻璃有限公司 | C150: 91510122MA6C8F5G6B | D150: 3042 | E150: 非金属矿物制品业 | F150: 成都市蛟龙工业港双流园区涪江路17座266号 | G150: 四川双流经济开发区 | H150: 2436 | I150: 2435.3 | J150: 0 | K150: 11 | L150: 32.1 | M150: 52 | N150: 153.63 | O150: 0.0 | P150: 0 | Q150: 1637 | R150: 否 | S150: 否 | T150: =H150/I150-1 -> 0% | U150: 否 | V150: 否 | W150: 否 | X150: 否 | Y150: 否 | Z150: 否 | AA150: 否 | AB150: 否 | AC150: 否 | AD150: 否 | AE150: 是 | AF150: 否 | AG150: 否 | AH150: 否 | AI150: 0 | AJ150: 0 | AK150: 0 | AL150: 否 | AM150: 否 | AN150: 否 | AO150: 否 | AP150: 0 | AQ150: 否 | AR150: 否 | AS150: 否 | AT150: 148.818
A151: 221 | B151: 成都辽申幕墙工程有限公司 | C151: 915101225972802945 | D151: 3049 | E151: 非金属矿物制品业 | F151: 中国(四川)自由贸易试验区成都市双流区西航港经济开发区黄甲街办空港三路3233号 | G151: 四川双流经济开发区（西南航空港经济开发区） | H151: 4473.8 | I151: 2751.8 | J151: 0.0 | K151: 30 | L151: 43.6 | M151: 15 | N151: 37.73 | O151: 0.0 | P151: 0 | Q151: 13647.9 | R151: 否 | S151: 否 | T151: =H151/I151-1 -> 63% | U151: 否 | V151: 否 | W151: 否 | X151: 否 | Y151: 否 | Z151: 否 | AA151: 否 | AB151: 否 | AC151: 否 | AD151: 否 | AE151: 是 | AF151: 是 | AG151: 否 | AH151: 否 | AI151: 0 | AJ151: 0 | AK151: 0 | AL151: 否 | AM151: 否 | AN151: 否 | AO151: 否 | AP151: 0 | AQ151: 否 | AR151: 否 | AS151: 否 | AT151: 454.930
A152: 245 | B152: 四川博皓玻璃有限责任公司 | C152: 91510122332057767U | D152: 3049 | E152: 非金属矿物制品业 | F152: 中国(四川)自由贸易试验区成都市双流区空港四路2299号 | G152: 四川双流经济开发区（西南航空港经济开发区） | H152: 3821.3 | I152: 3800.0 | J152: 0.0 | K152: 10 | L152: 67.2 | M152: 62 | N152: 46.33 | O152: 0.0 | P152: 0 | Q152: 2240.3 | R152: 否 | S152: 否 | T152: =H152/I152-1 -> 1% | U152: 否 | V152: 否 | W152: 否 | X152: 否 | Y152: 否 | Z152: 否 | AA152: 否 | AB152: 否 | AC152: 否 | AD152: 否 | AE152: 是 | AF152: 否 | AG152: 否 | AH152: 否 | AI152: 0 | AJ152: 0 | AK152: 0 | AL152: 否 | AM152: 否 | AN152: 否 | AO152: 否 | AP152: 0 | AQ152: 否 | AR152: 否 | AS152: 否 | AT152: 224.030
A153: 180 | B153: 四川雄港玻璃有限公司 | C153: 91510122782253511Q | D153: 3051 | E153: 非金属矿物制品业 | F153: 成都市双流区空港三路913号 | G153: 四川双流经济开发区（西南航空港经济开发区） | H153: 17079.0 | I153: 16226.1 | J153: 12375.4 | K153: 100 | L153: 460.9 | M153: 192 | N153: 1261.58 | O153: 373.5 | P153: 0 | Q153: 9944.3 | R153: 否 | S153: 是 | T153: =(H153/I153+I153/J153)*0.5-1 -> 18% | U153: 否 | V153: 否 | W153: 否 | X153: 否 | Y153: 否 | Z153: 否 | AA153: 否 | AB153: 否 | AC153: 否 | AD153: 否 | AE153: 是 | AF153: 是 | AG153: 省级 | AH153: 否 | AI153: 40 | AJ153: 35 | AK153: 0 | AL153: 否 | AM153: 否 | AN153: 否 | AO153: 否 | AP153: 0 | AQ153: 否 | AR153: 否 | AS153: 否 | AT153: 99.443
A154: 229 | B154: 四川省三维玻璃有限公司 | C154: 91510122780103712H | D154: 3051 | E154: 非金属矿物制品业 | F154: 四川省成都市双流区东升街道蛟龙工业港黄海路515号 | G154: 四川双流经济开发区 | H154: 2783.7 | I154: 2813.9 | J154: 4592.5 | K154: 7 | L154: 90.1 | M154: 61 | N154: 217.72 | O154: 0.0 | P154: 0 | Q154: 1854 | R154: 否 | S154: 否 | T154: -20% | U154: 否 | V154: 否 | W154: 否 | X154: 否 | Y154: 否 | Z154: 否 | AA154: 否 | AB154: 否 | AC154: 否 | AD154: 否 | AE154: 是 | AF154: 否 | AG154: 否 | AH154: 否 | AI154: 0 | AJ154: 0 | AK154: 0 | AL154: 否 | AM154: 否 | AN154: 否 | AO154: 否 | AP154: 0 | AQ154: 否 | AR154: 否 | AS154: 否 | AT154: 264.857
A155: 252 | B155: 成都尤利特光电科技股份有限公司 | C155: 915101005875517244 | D155: 3052 | E155: 非金属矿物制品业 | F155: 成都市双流区西航港街道空港三路629号 | G155: 四川双流经济开发区（西南航空港经济开发区） | H155: 2341.5 | I155: 1671.7 | J155: 2321.8 | K155: 15 | L155: 60.1 | M155: 65 | N155: 320.78 | O155: 0.0 | P155: 57.59 | Q155: 4096.9 | R155: 否 | S155: 否 | T155: 6% | U155: 否 | V155: 否 | W155: 否 | X155: 否 | Y155: 否 | Z155: 否 | AA155: 否 | AB155: 否 | AC155: 否 | AD155: 否 | AE155: 是 | AF155: 否 | AG155: 否 | AH155: 否 | AI155: 13 | AJ155: 1 | AK155: 5 | AL155: 否 | AM155: 否 | AN155: 否 | AO155: 否 | AP155: 1 | AQ155: 否 | AR155: 是 | AS155: 否 | AT155: 273.127
A156: 247 | B156: 成都双流盛昌实业有限责任公司 | C156: 91510122734800621L | D156: 3054 | E156: 非金属矿物制品业 | F156: 成都市双流区西航港经济开发区空港5路580号 | G156: 四川双流经济开发区（西南航空港经济开发区） | H156: 4312.6 | I156: 5443.4 | J156: 6350.7 | K156: 24.4 | L156: 110.1 | M156: 168 | N156: 4439.02 | O156: 0.0 | P156: 26393.65 | Q156: 28073 | R156: 否 | S156: 否 | T156: -18% | U156: 否 | V156: 否 | W156: 否 | X156: 否 | Y156: 否 | Z156: 否 | AA156: 否 | AB156: 否 | AC156: 否 | AD156: 否 | AE156: 是 | AF156: 否 | AG156: 否 | AH156: 否 | AI156: 0 | AJ156: 0 | AK156: 0 | AL156: 否 | AM156: 否 | AN156: 否 | AO156: 否 | AP156: 0 | AQ156: 否 | AR156: 否 | AS156: 否 | AT156: 1150.533
A157: 157 | B157: 四川南方开创实业有限公司 | C157: 91510122709155245X | D157: 3062 | E157: 非金属矿物制品业 | F157: 四川省成都市双流区空港二路146号 | G157: 四川双流经济开发区（西南航空港经济开发区） | H157: 5554.0 | I157: 4580.9 | J157: 3660.5 | K157: 26.5 | L157: 289.2 | M157: 99 | N157: 11.29 | O157: 107.3 | P157: 0 | Q157: 4872.5 | R157: 否 | S157: 否 | T157: 23% | U157: 否 | V157: 否 | W157: 否 | X157: 否 | Y157: 否 | Z157: 否 | AA157: 否 | AB157: 否 | AC157: 否 | AD157: 否 | AE157: 是 | AF157: 否 | AG157: 否 | AH157: 否 | AI157: 0 | AJ157: 0 | AK157: 0 | AL157: 否 | AM157: 否 | AN157: 否 | AO157: 否 | AP157: 0 | AQ157: 否 | AR157: 否 | AS157: 否 | AT157: 183.868
A158: 347 | B158: 四川省双玻实业集团有限公司 | C158: 91510000728089060K | D158: 3062 | E158: 非金属矿物制品业 | F158: 成都市双流区协和街道警校路一段588号 | G158: 四川双流经济开发区 | H158: 2364.1 | I158: 2258.7 | J158: 3068.2 | K158: 69.12 | L158: 0.0 | M158: 125 | N158: 57.11 | O158: 0.0 | P158: 0 | Q158: 12776 | R158: 否 | S158: 否 | T158: -11% | U158: 否 | V158: 否 | W158: 否 | X158: 否 | Y158: 否 | Z158: 否 | AA158: 否 | AB158: 否 | AC158: 否 | AD158: 否 | AE158: 是 | AF158: 否 | AG158: 否 | AH158: 否 | AI158: 0 | AJ158: 0 | AK158: 0 | AL158: 否 | AM158: 否 | AN158: 2.8 | AO158: 否 | AP158: 2 | AQ158: 否 | AR158: 否 | AS158: 否 | AT158: 184.826
A159: 26 | B159: 成都易建金属有限公司 | C159: 91510122686308842D | D159: 3130 | E159: 其他制造业 | F159: 双流区新华大道563号 | G159: 四川双流经济开发区 | H159: 12526.2 | I159: 8815 | J159: 5527.7 | K159: 5 | L159: 218.2 | M159: 34 | N159: 452.4 | O159: 0.0 | P159: 0 | Q159: 7102 | R159: 否 | S159: 是 | T159: 51% | U159: 否 | V159: 否 | W159: 否 | X159: 否 | Y159: 否 | Z159: 否 | AA159: 否 | AB159: 否 | AC159: 否 | AD159: 否 | AE159: 是 | AF159: 否 | AG159: 否 | AH159: 否 | AI159: 0 | AJ159: 0 | AK159: 0 | AL159: 否 | AM159: 否 | AN159: 否 | AO159: 否 | AP159: 3 | AQ159: 否 | AR159: 否 | AS159: 否 | AT159: 1420.400
A160: 222 | B160: 成都贝高贝实业有限责任公司 | C160: 915101227348276644 | D160: 3130 | E160: 其他制造业 | F160: 成都市双流区西航港经济开发区腾飞八路198号 | G160: 四川双流经济开发区（西南航空港经济开发区） | H160: 7241.3 | I160: 5286.7 | J160: 5637.4 | K160: 39.2 | L160: 180.7 | M160: 215 | N160: 788.15 | O160: 2.4 | P160: 0 | Q160: 4764.3 | R160: 否 | S160: 否 | T160: 15% | U160: 否 | V160: 否 | W160: 否 | X160: 否 | Y160: 否 | Z160: 否 | AA160: 否 | AB160: 否 | AC160: 否 | AD160: 否 | AE160: 是 | AF160: 否 | AG160: 否 | AH160: 否 | AI160: 0 | AJ160: 0 | AK160: 0 | AL160: 54 | AM160: 否 | AN160: 否 | AO160: 否 | AP160: 0 | AQ160: 否 | AR160: 否 | AS160: 否 | AT160: 121.538
A161: 332 | B161: 成都金科达铝业有限公司 | C161: 91510122669666752Y | D161: 3216 | E161: 其他制造业 | F161: 玉龙南街280号 | G161: 四川双流经济开发区 | H161: 4374 | I161: 3253 | J161: 3706.1 | K161: 18.54 | L161: 33.5 | M161: 76 | N161: 651.34 | O161: 0.0 | P161: 528.66 | Q161: 944.44 | R161: 否 | S161: 否 | T161: 11% | U161: 否 | V161: 否 | W161: 否 | X161: 否 | Y161: 否 | Z161: 否 | AA161: 否 | AB161: 否 | AC161: 否 | AD161: 否 | AE161: 是 | AF161: 否 | AG161: 否 | AH161: 否 | AI161: 0 | AJ161: 0 | AK161: 0 | AL161: 27 | AM161: 否 | AN161: 2 | AO161: 否 | AP161: 0 | AQ161: 否 | AR161: 否 | AS161: 否 | AT161: 50.941
A162: 204 | B162: 成都中建材光电材料有限公司 | C162: 91510122698865101J | D162: 3219 | E162: 其他制造业 | F162: 成都市双流区黄甲街道双华社区空港二路558号 | G162: 四川双流经济开发区（西南航空港经济开发区） | H162: 14408.8 | I162: 31011.2 | J162: 20003.9 | K162: 203.4 | L162: 0.0 | M162: 280 | N162: 1753.75 | O162: 10.0 | P162: 180.76 | Q162: 98882.8 | R162: 否 | S162: 是 | T162: 1% | U162: 否 | V162: 省级专精特新 | W162: 否 | X162: 否 | Y162: 否 | Z162: 否 | AA162: 是 | AB162: 否 | AC162: 否 | AD162: 否 | AE162: 是 | AF162: 是 | AG162: 省级 | AH162: 首台套 | AI162: 78 | AJ162: 27 | AK162: 0 | AL162: 否 | AM162: 否 | AN162: 否 | AO162: 否 | AP162: 2 | AQ162: 否 | AR162: 否 | AS162: 否 | AT162: 486.149
A163: 90 | B163: 成都贝德铜业有限公司 | C163: 91510122660460491N | D163: 3251 | E163: 其他制造业 | F163: 成都市双流区黄甲街道双华社区腾飞三路568号 | G163: 四川双流经济开发区（西南航空港经济开发区） | H163: 75630.8 | I163: 60613.1 | J163: 59712.6 | K163: 64.8 | L163: 959.6 | M163: 63 | N163: 260.39 | O163: 0.0 | P163: 0 | Q163: 11939.3 | R163: 否 | S163: 是 | T163: 13% | U163: 否 | V163: 否 | W163: 否 | X163: 否 | Y163: 否 | Z163: 否 | AA163: 否 | AB163: 否 | AC163: 否 | AD163: 否 | AE163: 是 | AF163: 是 | AG163: 否 | AH163: 否 | AI163: 3 | AJ163: 3 | AK163: 0 | AL163: 否 | AM163: 否 | AN163: 2.5 | AO163: 否 | AP163: 1 | AQ163: 区县重点企业 | AR163: 否 | AS163: 否 | AT163: 184.248
A164: 28 | B164: 成都星达铜业有限公司 | C164: 91510122790023441F | D164: 3251 | E164: 其他制造业 | F164: 成都市双流区西航港经济开发区西航港腾飞三路108号 | G164: 四川双流经济开发区（西南航空港经济开发区） | H164: 188154.4 | I164: 193489.0 | J164: 195466.3 | K164: 50 | L164: 513.7 | M164: 158 | N164: 1118.76 | O164: 4.4 | P164: 0 | Q164: 61097.3 | R164: 否 | S164: 是 | T164: -2% | U164: 否 | V164: 否 | W164: 否 | X164: 否 | Y164: 否 | Z164: 否 | AA164: 否 | AB164: 否 | AC164: 否 | AD164: 否 | AE164: 是 | AF164: 是 | AG164: 否 | AH164: 否 | AI164: 47 | AJ164: 25 | AK164: 0 | AL164: 否 | AM164: 否 | AN164: 否 | AO164: 否 | AP164: 0 | AQ164: 区县重点企业 | AR164: 否 | AS164: 否 | AT164: 1221.946
A165: 41 | B165: 兴发铝业（成都）有限公司 | C165: 91510122690917173Q | D165: 3252 | E165: 其他制造业 | F165: 成都市双流区空港四路1589号 | G165: 四川双流经济开发区（西南航空港经济开发区） | H165: 208064.6 | I165: 180040.0 | J165: 154902.1 | K165: 524.8 | L165: 8691.1 | M165: 1464 | N165: 1707.08 | O165: 6374.8 | P165: 10063.27 | Q165: 100677 | R165: 国家标准 | S165: 是 | T165: 16% | U165: 否 | V165: 否 | W165: 否 | X165: 否 | Y165: 否 | Z165: 否 | AA165: 是 | AB165: 否 | AC165: 否 | AD165: 否 | AE165: 是 | AF165: 是 | AG165: 国家级 | AH165: 否 | AI165: 118 | AJ165: 22 | AK165: 0 | AL165: 300 | AM165: 否 | AN165: 否 | AO165: 否 | AP165: 3 | AQ165: 全市100家重点监测企业 | AR165: 否 | AS165: 否 | AT165: 191.839
A166: 179 | B166: 四川兰德斯达铝业有限公司 | C166: 9151012206977408XM | D166: 3252 | E166: 其他制造业 | F166: 成都市双流区空港一路二段635号 | G166: 四川双流经济开发区（西南航空港经济开发区） | H166: 2496.2 | I166: 2254.6 | J166: 2010.0 | K166: 4.5 | L166: 23.0 | M166: 41 | N166: 221.82 | O166: 0.0 | P166: 0 | Q166: 3278.3 | R166: 否 | S166: 否 | T166: 11% | U166: 否 | V166: 否 | W166: 否 | X166: 否 | Y166: 否 | Z166: 否 | AA166: 否 | AB166: 否 | AC166: 否 | AD166: 否 | AE166: 是 | AF166: 否 | AG166: 否 | AH166: 否 | AI166: 1 | AJ166: 1 | AK166: 0 | AL166: 否 | AM166: 否 | AN166: 否 | AO166: 否 | AP166: 0 | AQ166: 否 | AR166: 否 | AS166: 否 | AT166: 728.511
A167: 50 | B167: 成都标建铝业有限公司 | C167: 91510122X21777724Y | D167: 3252 | E167: 其他制造业 | F167: 黄水社区三组300号 | G167: 四川双流经济开发区 | H167: 29150 | I167: 23625 | J167: 25570.7 | K167: 21 | L167: 282.2 | M167: 268 | N167: 1578.48 | O167: 20.4 | P167: 5924.23 | Q167: 21194 | R167: 否 | S167: 是 | T167: 8% | U167: 否 | V167: 否 | W167: 否 | X167: 否 | Y167: 否 | Z167: 否 | AA167: 是 | AB167: 否 | AC167: 否 | AD167: 否 | AE167: 是 | AF167: 是 | AG167: 省级 | AH167: 首台套 | AI167: 29 | AJ167: 9 | AK167: 0 | AL167: 否 | AM167: 否 | AN167: 3 | AO167: 否 | AP167: 3 | AQ167: 否 | AR167: 否 | AS167: 否 | AT167: 1009.238
A168: 206 | B168: 成都顿威新型金属材料有限公司 | C168: 91510122740308246M | D168: 3252 | E168: 其他制造业 | F168: 成都市双流区西南航空港经济开发区工业集中区 | G168: 四川双流经济开发区（西南航空港经济开发区） | H168: 2703.6 | I168: 2718.8 | J168: 0.0 | K168: 10 | L168: 150.5 | M168: 15 | N168: 2510.5 | O168: 140.0 | P168: 0 | Q168: 140 | R168: 否 | S168: 否 | T168: =H168/I168-1 -> -1% | U168: 否 | V168: 否 | W168: 否 | X168: 否 | Y168: 否 | Z168: 否 | AA168: 否 | AB168: 否 | AC168: 否 | AD168: 否 | AE168: 是 | AF168: 是 | AG168: 否 | AH168: 否 | AI168: 14 | AJ168: 10 | AK168: 0 | AL168: 否 | AM168: 否 | AN168: 否 | AO168: 否 | AP168: 1 | AQ168: 否 | AR168: 否 | AS168: 否 | AT168: 14.000
A169: 293 | B169: 四川七色新型建材有限公司 | C169: 91510122790049377A | D169: 3252 | E169: 其他制造业 | F169: 成都市双流区黄甲街道双华社区腾飞三路345号 | G169: 四川双流经济开发区（西南航空港经济开发区） | H169: 3398.3 | I169: 4093.4 | J169: 5949.8 | K169: 30 | L169: 692.3 | M169: 80 | N169: 292.25 | O169: 0.0 | P169: 0 | Q169: 2236.8 | R169: 否 | S169: 否 | T169: =(H169/I169+I169/J169)*0.5-1 -> -24% | U169: 否 | V169: 否 | W169: 否 | X169: 否 | Y169: 否 | Z169: 否 | AA169: 否 | AB169: 否 | AC169: 否 | AD169: 否 | AE169: 是 | AF169: 是 | AG169: 否 | AH169: 否 | AI169: 0 | AJ169: 0 | AK169: 0 | AL169: 否 | AM169: 否 | AN169: 否 | AO169: 否 | AP169: 0 | AQ169: 否 | AR169: 否 | AS169: 否 | AT169: 74.560
A170: 58 | B170: 成都百德邮政专用设备制造有限公司 | C170: 91510122693685945U | D170: 3311 | E170: 金属制品业 | F170: 四川省成都市双流区空港四路1108号 | G170: 四川双流经济开发区（西南航空港经济开发区） | H170: 25241.5 | I170: 18975.5 | J170: 16184.9 | K170: 60 | L170: 917.7 | M170: 382 | N170: 365.36 | O170: 815.3 | P170: 10802.29 | Q170: 32159.9 | R170: 国家标准 | S170: 是 | T170: =(H170/I170+I170/J170)*0.5-1 -> 25% | U170: 否 | V170: 否 | W170: 否 | X170: 否 | Y170: 否 | Z170: 否 | AA170: 是 | AB170: 否 | AC170: 否 | AD170: 否 | AE170: 是 | AF170: 是 | AG170: 省级 | AH170: 否 | AI170: 33 | AJ170: 24 | AK170: 0 | AL170: 否 | AM170: 否 | AN170: 否 | AO170: 否 | AP170: 3 | AQ170: 否 | AR170: 否 | AS170: 否 | AT170: 535.998
A171: 57 | B171: 四川省奥莱特路桥机械有限公司 | C171: 915101226818339639 | D171: 3311 | E171: 金属制品业 | F171: 清江路125号 | G171: 四川双流经济开发区 | H171: 7413.3 | I171: 5341.1 | J171: 0 | K171: 5.56 | L171: 230.8 | M171: 75 | N171: 127.31 | O171: 0.0 | P171: 0 | Q171: 1937 | R171: 否 | S171: 否 | T171: =H171/I171-1 -> 39% | U171: 否 | V171: 否 | W171: 否 | X171: 否 | Y171: 否 | Z171: 否 | AA171: 否 | AB171: 否 | AC171: 否 | AD171: 否 | AE171: 是 | AF171: 否 | AG171: 否 | AH171: 否 | AI171: 0 | AJ171: 0 | AK171: 0 | AL171: 否 | AM171: 否 | AN171: 否 | AO171: 否 | AP171: 3 | AQ171: 否 | AR171: 否 | AS171: 否 | AT171: 348.381
A172: 40 | B172: 中电建成都铁塔有限公司 | C172: 91510122201804101H | D172: 3311 | E172: 金属制品业 | F172: 成都市双流区牧华路二段3633号 | G172: 四川双流经济开发区（西南航空港经济开发区） | H172: 136488.0 | I172: 126511.4 | J172: 89030.7 | K172: 306.2 | L172: 3409.1 | M172: 397 | N172: 2945.13 | O172: 4222.5 | P172: 4126.47 | Q172: 148703.3 | R172: 否 | S172: 是 | T172: =(H172/I172+I172/J172)*0.5-1 -> 25% | U172: 否 | V172: 否 | W172: 否 | X172: 否 | Y172: 否 | Z172: 否 | AA172: 否 | AB172: 否 | AC172: 否 | AD172: 否 | AE172: 是 | AF172: 是 | AG172: 否 | AH172: 否 | AI172: 32 | AJ172: 27 | AK172: 0 | AL172: 否 | AM172: 否 | AN172: 否 | AO172: 否 | AP172: 3 | AQ172: 区县重点企业 | AR172: 否 | AS172: 否 | AT172: 485.641
A173: 321 | B173: 成都航利泰格钢结构有限责任公司 | C173: 915101227160384423 | D173: 3311 | E173: 金属制品业 | F173: 万家4组211号 | G173: 四川双流经济开发区 | H173: 4248.3 | I173: 5584.8 | J173: 2782 | K173: 205 | L173: 320.1 | M173: 72 | N173: 141.79 | O173: 0.0 | P173: 61.78 | Q173: 8000 | R173: 否 | S173: 否 | T173: =(H173/I173+I173/J173)*0.5-1 -> 38% | U173: 否 | V173: 否 | W173: 否 | X173: 否 | Y173: 否 | Z173: 否 | AA173: 否 | AB173: 否 | AC173: 否 | AD173: 否 | AE173: 是 | AF173: 否 | AG173: 否 | AH173: 否 | AI173: 0 | AJ173: 0 | AK173: 0 | AL173: 否 | AM173: 否 | AN173: 否 | AO173: 否 | AP173: 3 | AQ173: 否 | AR173: 否 | AS173: 否 | AT173: 39.024
A174: 198 | B174: 四川京路通实业有限公司 | C174: 91510122MA68HLQJ6Q | D174: 3311 | E174: 金属制品业 | F174: 中国(四川)自由贸易试验区成都市双流区西南航空港经济开发区牧鱼街118号 | G174: 四川双流经济开发区（西南航空港经济开发区） | H174: 3509.2 | I174: 0.0 | J174: 0.0 | K174: 10.4 | L174: 44.0 | M174: 16 | N174: 331.23 | O174: 0.0 | P174: 0 | Q174: 2117.5 | R174: 否 | S174: 否 | T174: 0% | U174: 否 | V174: 否 | W174: 否 | X174: 否 | Y174: 否 | Z174: 否 | AA174: 否 | AB174: 否 | AC174: 否 | AD174: 否 | AE174: 是 | AF174: 否 | AG174: 否 | AH174: 否 | AI174: 7 | AJ174: 7 | AK174: 0 | AL174: 否 | AM174: 否 | AN174: 否 | AO174: 否 | AP174: 0 | AQ174: 否 | AR174: 否 | AS174: 否 | AT174: 203.606
A175: 102 | B175: 四川宁兴长城特钢有限公司 | C175: 91510122MA62M2CL3T | D175: 3311 | E175: 金属制品业 | F175: 成都蛟龙工业港双流园区黄河路42座南河路336号 | G175: 四川双流经济开发区 | H175: 11532.3 | I175: 13373.9 | J175: 0 | K175: 6 | L175: 146.0 | M175: 18 | N175: 99.88 | O175: 0.0 | P175: 0 | Q175: 2767 | R175: 否 | S175: 是 | T175: =H175/I175-1 -> -14% | U175: 否 | V175: 否 | W175: 否 | X175: 否 | Y175: 否 | Z175: 否 | AA175: 否 | AB175: 否 | AC175: 否 | AD175: 否 | AE175: 是 | AF175: 否 | AG175: 否 | AH175: 否 | AI175: 0 | AJ175: 0 | AK175: 0 | AL175: 否 | AM175: 否 | AN175: 否 | AO175: 否 | AP175: 0 | AQ175: 否 | AR175: 否 | AS175: 否 | AT175: 461.167
A176: 311 | B176: 成都水工钢结构有限责任公司 | C176: 91510122792167692X | D176: 3311 | E176: 金属制品业 | F176: 成都市双流区空港二路878号 | G176: 四川双流经济开发区（西南航空港经济开发区） | H176: 2046.5 | I176: 2211.2 | J176: 0.0 | K176: 40.3 | L176: 72.4 | M176: 27 | N176: 41.79 | O176: 0.0 | P176: 0 | Q176: 6622.7 | R176: 否 | S176: 否 | T176: =H176/I176-1 -> -7% | U176: 否 | V176: 否 | W176: 否 | X176: 否 | Y176: 否 | Z176: 否 | AA176: 否 | AB176: 否 | AC176: 否 | AD176: 否 | AE176: 是 | AF176: 否 | AG176: 否 | AH176: 否 | AI176: 0 | AJ176: 0 | AK176: 0 | AL176: 否 | AM176: 否 | AN176: 否 | AO176: 否 | AP176: 0 | AQ176: 否 | AR176: 否 | AS176: 否 | AT176: 164.335
A177: 326 | B177: 四川大成新能源照明科技有限公司 | C177: 915101226962970910 | D177: 3311 | E177: 金属制品业 | F177: 西航港经济开发区空港四路1387号 | G177: 四川双流经济开发区（西南航空港经济开发区） | H177: 2470.9 | I177: 2517.4 | J177: 3065.3 | K177: 53.8 | L177: 60.0 | M177: 110 | N177: 49.36 | O177: 0.0 | P177: 0 | Q177: 4242.7 | R177: 否 | S177: 否 | T177: =(H177/I177+I177/J177)*0.5-1 -> -10% | U177: 否 | V177: 否 | W177: 否 | X177: 否 | Y177: 否 | Z177: 否 | AA177: 否 | AB177: 否 | AC177: 否 | AD177: 否 | AE177: 是 | AF177: 否 | AG177: 否 | AH177: 否 | AI177: 8 | AJ177: 1 | AK177: 0 | AL177: 否 | AM177: 否 | AN177: 否 | AO177: 否 | AP177: 0 | AQ177: 否 | AR177: 否 | AS177: 否 | AT177: 78.861
A178: 323 | B178: 四川众兴华业市政照明工程有限公司 | C178: 91510000789106346N | D178: 3311 | E178: 金属制品业 | F178: 成都市武侯区武科东一路15号2栋1单元7楼702号 | G178: 四川双流经济开发区（西南航空港经济开发区） | H178: 4156.0 | I178: 6292.3 | J178: 6980.7 | K178: 58.3 | L178: 0.0 | M178: 48 | N178: 123.1 | O178: 0.0 | P178: 0 | Q178: 8030.8 | R178: 否 | S178: 否 | T178: -22% | U178: 否 | V178: 否 | W178: 否 | X178: 否 | Y178: 否 | Z178: 否 | AA178: 否 | AB178: 否 | AC178: 否 | AD178: 否 | AE178: 是 | AF178: 否 | AG178: 否 | AH178: 否 | AI178: 31 | AJ178: 19 | AK178: 0 | AL178: 否 | AM178: 否 | AN178: 否 | AO178: 否 | AP178: 2 | AQ178: 否 | AR178: 否 | AS178: 否 | AT178: 137.750
A179: 80 | B179: 成都赛恒金属材料有限公司 | C179: 91510122MA61WRKF7K | D179: 3312 | E179: 金属制品业 | F179: 羊坪村4组45号附1号 | G179: 四川双流经济开发区 | H179: 5917.3 | I179: 4597.7 | J179: 3371.9 | K179: 5 | L179: 123.9 | M179: 16 | N179: 58.99 | O179: 0.0 | P179: 0 | Q179: 4088 | R179: 否 | S179: 否 | T179: 33% | U179: 否 | V179: 否 | W179: 否 | X179: 否 | Y179: 否 | Z179: 否 | AA179: 否 | AB179: 否 | AC179: 否 | AD179: 否 | AE179: 是 | AF179: 否 | AG179: 否 | AH179: 否 | AI179: 0 | AJ179: 0 | AK179: 0 | AL179: 否 | AM179: 否 | AN179: 否 | AO179: 否 | AP179: 0 | AQ179: 否 | AR179: 否 | AS179: 否 | AT179: 817.600
A180: 49 | B180: 成都海兴门窗装饰工程有限公司 | C180: 91510122689033688N | D180: 3312 | E180: 金属制品业 | F180: 成都市双流区黄甲大道616号 | G180: 四川双流经济开发区（西南航空港经济开发区） | H180: 26606.6 | I180: 31354.9 | J180: 18186.1 | K180: 23.8 | L180: 515.3 | M180: 137 | N180: 37.48 | O180: 0.0 | P180: 0 | Q180: 22883.7 | R180: 否 | S180: 是 | T180: 29% | U180: 否 | V180: 否 | W180: 否 | X180: 否 | Y180: 否 | Z180: 否 | AA180: 否 | AB180: 否 | AC180: 否 | AD180: 否 | AE180: 是 | AF180: 是 | AG180: 否 | AH180: 否 | AI180: 0 | AJ180: 0 | AK180: 0 | AL180: 否 | AM180: 否 | AN180: 1.875 | AO180: 否 | AP180: 2 | AQ180: 否 | AR180: 否 | AS180: 否 | AT180: 961.500
A181: 74 | B181: 四川创佳门窗有限公司 | C181: 915101227881409568 | D181: 3312 | E181: 金属制品业 | F181: 彭镇福田社区一组 | G181: 四川双流经济开发区 | H181: 15223.1 | I181: 11989.4 | J181: 10741.7 | K181: 10.7 | L181: 300.2 | M181: 107 | N181: 32.84 | O181: 0.0 | P181: 0 | Q181: 9000 | R181: 否 | S181: 是 | T181: 19% | U181: 否 | V181: 否 | W181: 否 | X181: 否 | Y181: 否 | Z181: 否 | AA181: 否 | AB181: 否 | AC181: 否 | AD181: 否 | AE181: 是 | AF181: 否 | AG181: 否 | AH181: 否 | AI181: 0 | AJ181: 0 | AK181: 0 | AL181: 否 | AM181: 否 | AN181: 否 | AO181: 否 | AP181: 1 | AQ181: 否 | AR181: 否 | AS181: 否 | AT181: 841.121
A182: 105 | B182: 成都华固特种门窗有限公司 | C182: 9151012269092500XM | D182: 3312 | E182: 金属制品业 | F182: 成都市双流区双兴大道83号 | G182: 四川双流经济开发区（西南航空港经济开发区） | H182: 2876.0 | I182: 2855.2 | J182: 2014.7 | K182: 11.6 | L182: 175.0 | M182: 50 | N182: 32.8 | O182: 185.9 | P182: 0 | Q182: 6622 | R182: 否 | S182: 否 | T182: 21% | U182: 否 | V182: 否 | W182: 否 | X182: 否 | Y182: 否 | Z182: 否 | AA182: 否 | AB182: 否 | AC182: 否 | AD182: 否 | AE182: 是 | AF182: 是 | AG182: 否 | AH182: 否 | AI182: 17 | AJ182: 9 | AK182: 0 | AL182: 否 | AM182: 否 | AN182: 否 | AO182: 否 | AP182: 0 | AQ182: 否 | AR182: 否 | AS182: 否 | AT182: 570.862
A183: 109 | B183: 四川深航装饰工程有限公司 | C183: 91510122784700418M | D183: 3312 | E183: 金属制品业 | F183: 成都市双流区空港二路356号 | G183: 四川双流经济开发区（西南航空港经济开发区） | H183: 18305.0 | I183: 19582.9 | J183: 14259.2 | K183: 29.23 | L183: 647.2 | M183: 170 | N183: 48.56 | O183: 0.0 | P183: 0 | Q183: 9910.1 | R183: 否 | S183: 是 | T183: 15% | U183: 否 | V183: 否 | W183: 否 | X183: 否 | Y183: 否 | Z183: 否 | AA183: 否 | AB183: 否 | AC183: 否 | AD183: 否 | AE183: 是 | AF183: 是 | AG183: 否 | AH183: 否 | AI183: 0 | AJ183: 0 | AK183: 0 | AL183: 否 | AM183: 否 | AN183: 否 | AO183: 否 | AP183: 0 | AQ183: 否 | AR183: 否 | AS183: 否 | AT183: 339.039
A184: 182 | B184: 成都九牛金属制品有限公司 | C184: 91510122396410478W | D184: 3312 | E184: 金属制品业 | F184: 蛟龙港北海路225号 | G184: 四川双流经济开发区 | H184: 2997.3 | I184: 2547.3 | J184: 0 | K184: 5 | L184: 89.2 | M184: 40 | N184: 196.74 | O184: 0.0 | P184: 0 | Q184: 470 | R184: 否 | S184: 否 | T184: =H184/I184-1 -> 18% | U184: 否 | V184: 否 | W184: 否 | X184: 否 | Y184: 否 | Z184: 否 | AA184: 否 | AB184: 否 | AC184: 否 | AD184: 否 | AE184: 是 | AF184: 否 | AG184: 否 | AH184: 否 | AI184: 0 | AJ184: 0 | AK184: 0 | AL184: 否 | AM184: 否 | AN184: 否 | AO184: 否 | AP184: 0 | AQ184: 否 | AR184: 否 | AS184: 否 | AT184: 94.000
A185: 234 | B185: 四川南方人防工程设备有限公司 | C185: 915101226796700852 | D185: 3312 | E185: 金属制品业 | F185: 四川省成都市双流区空港二路146号 | G185: 四川双流经济开发区（西南航空港经济开发区） | H185: 3445.3 | I185: 2034.1 | J185: 1540.2 | K185: 45 | L185: 269.9 | M185: 49 | N185: 7.75 | O185: 0.0 | P185: 0 | Q185: 4998.1 | R185: 否 | S185: 否 | T185: =(H185/I185+I185/J185)*0.5-1 -> 51% | U185: 否 | V185: 否 | W185: 否 | X185: 否 | Y185: 否 | Z185: 否 | AA185: 否 | AB185: 否 | AC185: 否 | AD185: 否 | AE185: 是 | AF185: 否 | AG185: 否 | AH185: 否 | AI185: 0 | AJ185: 0 | AK185: 0 | AL185: 否 | AM185: 否 | AN185: 否 | AO185: 否 | AP185: 1 | AQ185: 否 | AR185: 否 | AS185: 否 | AT185: 111.069
A186: 193 | B186: 四川铭成建筑工程有限责任公司 | C186: 915101226604608115 | D186: 3312 | E186: 金属制品业 | F186: 罗汉路南一段158号 | G186: 四川双流经济开发区 | H186: 6505.1 | I186: 8985.9 | J186: 6627.7 | K186: 14.13 | L186: 120.9 | M186: 61 | N186: 499.17 | O186: 0.0 | P186: 0 | Q186: 6500 | R186: 否 | S186: 否 | T186: 4% | U186: 否 | V186: 否 | W186: 否 | X186: 否 | Y186: 否 | Z186: 否 | AA186: 否 | AB186: 否 | AC186: 否 | AD186: 否 | AE186: 是 | AF186: 否 | AG186: 否 | AH186: 否 | AI186: 0 | AJ186: 0 | AK186: 0 | AL186: 否 | AM186: 否 | AN186: 否 | AO186: 否 | AP186: 0 | AQ186: 否 | AR186: 否 | AS186: 否 | AT186: 460.014
A187: 257 | B187: 成都太平园铝业有限公司 | C187: 91510122690926248B | D187: 3312 | E187: 金属制品业 | F187: 成都双流区西南航空港工业集中发展区 | G187: 四川双流经济开发区（西南航空港经济开发区） | H187: 10698.1 | I187: 12563.3 | J187: 11305.0 | K187: 110.1 | L187: 309.6 | M187: 34 | N187: 128.65 | O187: 0.0 | P187: 0 | Q187: 11155.7 | R187: 否 | S187: 是 | T187: -2% | U187: 否 | V187: 否 | W187: 否 | X187: 否 | Y187: 否 | Z187: 否 | AA187: 否 | AB187: 否 | AC187: 否 | AD187: 否 | AE187: 是 | AF187: 是 | AG187: 否 | AH187: 否 | AI187: 0 | AJ187: 0 | AK187: 0 | AL187: 否 | AM187: 否 | AN187: 否 | AO187: 否 | AP187: 0 | AQ187: 否 | AR187: 否 | AS187: 否 | AT187: 101.323
A188: 81 | B188: 森泰英格（成都）数控刀具股份有限公司 | C188: 91510100621778085N | D188: 3321 | E188: 金属制品业 | F188: 西航港大道中四段段685号 | G188: 四川双流经济开发区（西南航空港经济开发区） | H188: 20389.4 | I188: 14971.4 | J188: 13652.7 | K188: 86.1 | L188: 1584.2 | M188: 488 | N188: 862.76 | O188: 1295.1 | P188: 113.24 | Q188: 29125.8 | R188: 否 | S188: 是 | T188: 23% | U188: 国家级专精特新 | V188: 否 | W188: 否 | X188: 否 | Y188: 否 | Z188: 否 | AA188: 是 | AB188: 否 | AC188: 否 | AD188: 否 | AE188: 是 | AF188: 是 | AG188: 省级 | AH188: 否 | AI188: 86 | AJ188: 56 | AK188: 0 | AL188: 否 | AM188: 否 | AN188: 否 | AO188: 否 | AP188: 3 | AQ188: 否 | AR188: 否 | AS188: 否 | AT188: 338.279
A189: 104 | B189: 成都市双流万利有色金属新材料厂 | C189: 91510122202376575R | D189: 3321 | E189: 金属制品业 | F189: 成都市双流区黄甲街道西航港大道中四段779号 | G189: 四川双流经济开发区（西南航空港经济开发区） | H189: 3196.7 | I189: 1673.8 | J189: 1570.9 | K189: 8.7 | L189: 174.0 | M189: 26 | N189: 35.52 | O189: 0.0 | P189: 0 | Q189: 3825.9 | R189: 否 | S189: 否 | T189: 49% | U189: 否 | V189: 否 | W189: 否 | X189: 否 | Y189: 否 | Z189: 否 | AA189: 否 | AB189: 否 | AC189: 否 | AD189: 否 | AE189: 是 | AF189: 是 | AG189: 否 | AH189: 否 | AI189: 0 | AJ189: 0 | AK189: 0 | AL189: 否 | AM189: 否 | AN189: 否 | AO189: 否 | AP189: 3 | AQ189: 否 | AR189: 否 | AS189: 否 | AT189: 439.759
A190: 168 | B190: 成都西顿硬质合金有限公司 | C190: 91510122797816727Y | D190: 3321 | E190: 金属制品业 | F190: 空港四路2618号 | G190: 四川双流经济开发区（西南航空港经济开发区） | H190: 3844.7 | I190: 3213.6 | J190: 3047.8 | K190: 20 | L190: 72.4 | M190: 70 | N190: 183.91 | O190: 250.9 | P190: 0 | Q190: 3380.8 | R190: 否 | S190: 否 | T190: 13% | U190: 否 | V190: 否 | W190: 否 | X190: 否 | Y190: 否 | Z190: 否 | AA190: 否 | AB190: 否 | AC190: 否 | AD190: 否 | AE190: 是 | AF190: 是 | AG190: 否 | AH190: 否 | AI190: 33 | AJ190: 16 | AK190: 0 | AL190: 否 | AM190: 否 | AN190: 否 | AO190: 否 | AP190: 3 | AQ190: 否 | AR190: 否 | AS190: 否 | AT190: 169.040
A191: 126 | B191: 四川豪锐木业新技术发展有限责任公司 | C191: 91510122762315156K | D191: 3321 | E191: 金属制品业 | F191: 四川省双流县九江元瑞家具材料城42-50号 | G191: 四川双流经济开发区 | H191: 3076.6 | I191: 2849.4 | J191: 0 | K191: 3.9 | L191: 56.9 | M191: 202 | N191: 155.28 | O191: 100.5 | P191: 3025.5 | Q191: 7648 | R191: 否 | S191: 否 | T191: =H191/I191-1 -> 8% | U191: 否 | V191: 否 | W191: 否 | X191: 否 | Y191: 否 | Z191: 否 | AA191: 否 | AB191: 否 | AC191: 否 | AD191: 否 | AE191: 是 | AF191: 是 | AG191: 否 | AH191: 否 | AI191: 18 | AJ191: 18 | AK191: 0 | AL191: 否 | AM191: 否 | AN191: 否 | AO191: 否 | AP191: 0 | AQ191: 否 | AR191: 否 | AS191: 否 | AT191: 1961.026
A192: 118 | B192: 四川神工钨钢刀具有限公司 | C192: 9151012205748881XA | D192: 3329 | E192: 金属制品业 | F192: 双流区黄甲街道一里坡7组2社 | G192: 四川双流经济开发区（西南航空港经济开发区） | H192: 9650.8 | I192: 8762.9 | J192: 7875.9 | K192: 41.5 | L192: 293.2 | M192: 255 | N192: 696.84 | O192: 864.4 | P192: 0 | Q192: 13991.5 | R192: 否 | S192: 否 | T192: =(H192/I192+I192/J192)*0.5-1 -> 11% | U192: 否 | V192: 否 | W192: 否 | X192: 否 | Y192: 是 | Z192: 否 | AA192: 否 | AB192: 否 | AC192: 否 | AD192: 否 | AE192: 是 | AF192: 是 | AG192: 否 | AH192: 否 | AI192: 28 | AJ192: 24 | AK192: 0 | AL192: 否 | AM192: 否 | AN192: 2.1 | AO192: 否 | AP192: 3 | AQ192: 否 | AR192: 否 | AS192: 否 | AT192: 337.145
A193: 9 | B193: 成都恒安警用装备制造有限公司 | C193: 915101227774979170 | D193: 3329 | E193: 金属制品业 | F193: 成都市双流区黄甲街道双华社区腾飞二路340号 | G193: 四川双流经济开发区（西南航空港经济开发区） | H193: 29663.8 | I193: 22501.5 | J193: 10008.8 | K193: 48.5 | L193: 2160.3 | M193: 232 | N193: 194.22 | O193: 1468.4 | P193: 0 | Q193: 24550.4 | R193: 行业标准 | S193: 是 | T193: =(H193/I193+I193/J193)*0.5-1 -> 78% | U193: 否 | V193: 否 | W193: 否 | X193: 否 | Y193: 否 | Z193: 否 | AA193: 是 | AB193: 否 | AC193: 否 | AD193: 否 | AE193: 是 | AF193: 是 | AG193: 否 | AH193: 否 | AI193: 45 | AJ193: 25 | AK193: 1 | AL193: 210 | AM193: 否 | AN193: 否 | AO193: 否 | AP193: 3 | AQ193: 否 | AR193: 否 | AS193: 否 | AT193: 506.194
A194: 281 | B194: 成都福源兴茂机械有限公司 | C194: 91510122MA6DGCTK8N | D194: 3332 | E194: 金属制品业 | F194: 成都市双流区西南航空港经济开发区牧华路二段3333号 | G194: 四川双流经济开发区（西南航空港经济开发区） | H194: 3622.7 | I194: 3302.9 | J194: 0.0 | K194: 49.4 | L194: 176.2 | M194: 51 | N194: 1405.23 | O194: 0.0 | P194: 0 | Q194: 13483.1 | R194: 否 | S194: 否 | T194: =H194/I194-1 -> 10% | U194: 否 | V194: 否 | W194: 否 | X194: 否 | Y194: 否 | Z194: 否 | AA194: 否 | AB194: 否 | AC194: 否 | AD194: 否 | AE194: 是 | AF194: 否 | AG194: 否 | AH194: 否 | AI194: 0 | AJ194: 0 | AK194: 0 | AL194: 否 | AM194: 否 | AN194: 否 | AO194: 否 | AP194: 0 | AQ194: 否 | AR194: 否 | AS194: 否 | AT194: 272.937
A195: 107 | B195: 成都超纯应用材料有限责任公司 | C195: 915101227774957945 | D195: 3360 | E195: 金属制品业 | F195: 黄甲街道双华社区空港二路1166号 | G195: 四川双流经济开发区（西南航空港经济开发区） | H195: 7917.5 | I195: 4465.0 | J195: 3553.4 | K195: 17 | L195: 119.4 | M195: 81 | N195: 288.52 | O195: 501.1 | P195: 0 | Q195: 5753.3 | R195: 否 | S195: 否 | T195: =(H195/I195+I195/J195)*0.5-1 -> 51% | U195: 否 | V195: 否 | W195: 否 | X195: 否 | Y195: 否 | Z195: 否 | AA195: 否 | AB195: 否 | AC195: 否 | AD195: 否 | AE195: 是 | AF195: 是 | AG195: 否 | AH195: 否 | AI195: 12 | AJ195: 10 | AK195: 0 | AL195: 否 | AM195: 否 | AN195: 否 | AO195: 否 | AP195: 1 | AQ195: 否 | AR195: 是 | AS195: 否 | AT195: 338.429
A196: 135 | B196: 四川佳泰防腐绝缘材料有限公司 | C196: 915101227559605798 | D196: 3360 | E196: 金属制品业 | F196: 成都市双流区公兴街道黄龙大道92号 | G196: 四川双流经济开发区（西南航空港经济开发区） | H196: 2031.7 | I196: 2304.0 | J196: 6028.0 | K196: 2.25 | L196: 76.3 | M196: 50 | N196: 1781.83 | O196: 0.0 | P196: 0 | Q196: 16778 | R196: 否 | S196: 否 | T196: -37% | U196: 否 | V196: 否 | W196: 否 | X196: 否 | Y196: 否 | Z196: 否 | AA196: 否 | AB196: 否 | AC196: 否 | AD196: 否 | AE196: 是 | AF196: 否 | AG196: 否 | AH196: 否 | AI196: 1 | AJ196: 1 | AK196: 1 | AL196: 否 | AM196: 否 | AN196: 否 | AO196: 否 | AP196: 2 | AQ196: 否 | AR196: 否 | AS196: 否 | AT196: 7456.889
A197: 254 | B197: 成都市双流大荣实业有限公司 | C197: 91510122725387548E | D197: 3360 | E197: 金属制品业 | F197: 大井东街110号 | G197: 四川双流经济开发区 | H197: 2182.6 | I197: 2640.2 | J197: 2578.1 | K197: 10 | L197: 106.8 | M197: 41 | N197: 715.82 | O197: 0.0 | P197: 364.6 | Q197: 1718 | R197: 否 | S197: =IF(H197>10000,"是","否") -> 否 | T197: -7% | U197: 否 | V197: 否 | W197: 否 | X197: 否 | Y197: 否 | Z197: 否 | AA197: 否 | AB197: 否 | AC197: 否 | AD197: 否 | AE197: 是 | AF197: 否 | AG197: 否 | AH197: 否 | AI197: 0 | AJ197: 0 | AK197: 0 | AL197: 否 | AM197: 否 | AN197: 否 | AO197: 否 | AP197: 1 | AQ197: 否 | AR197: 否 | AS197: 否 | AT197: 171.800
A198: 150 | B198: 成都三强轧辊股份有限公司 | C198: 915101007130442222 | D198: 3391 | E198: 金属制品业 | F198: 成都市双流区西航港开发区黄龙大道 | G198: 四川双流经济开发区（西南航空港经济开发区） | H198: 25424.9 | I198: 30177.0 | J198: 24986.7 | K198: 169.14 | L198: 2347.6 | M198: 328 | N198: 5952.41 | O198: 1507.3 | P198: 10053.62 | Q198: 31693.5 | R198: 否 | S198: 是 | T198: 3% | U198: 否 | V198: 否 | W198: 否 | X198: 否 | Y198: 否 | Z198: 否 | AA198: 是 | AB198: 否 | AC198: 否 | AD198: 否 | AE198: 是 | AF198: 是 | AG198: 否 | AH198: 否 | AI198: 47 | AJ198: 27 | AK198: 0 | AL198: 否 | AM198: 否 | AN198: 否 | AO198: 否 | AP198: 2 | AQ198: 否 | AR198: 否 | AS198: 否 | AT198: 187.380
A199: 108 | B199: 成都市双流恒生锻造有限公司 | C199: 91510122713071749K | D199: 3393 | E199: 金属制品业 | F199: 木樨社区3组99号 | G199: 四川双流经济开发区 | H199: 11238.4 | I199: 13424.2 | J199: 14834 | K199: 18.75 | L199: 657.0 | M199: 110 | N199: 2658.45 | O199: 0.0 | P199: 1530.53 | Q199: 21103 | R199: 否 | S199: 是 | T199: -13% | U199: 否 | V199: 否 | W199: 否 | X199: 否 | Y199: 否 | Z199: 否 | AA199: 否 | AB199: 否 | AC199: 否 | AD199: 否 | AE199: 是 | AF199: 是 | AG199: 否 | AH199: 否 | AI199: 17 | AJ199: 13 | AK199: 0 | AL199: 否 | AM199: 否 | AN199: 否 | AO199: 否 | AP199: 1 | AQ199: 否 | AR199: 否 | AS199: 否 | AT199: 1125.493
A200: 292 | B200: 四川朗峰电子材料有限公司 | C200: 91510122052539737N | D200: 3399 | E200: 金属制品业 | F200: 成都市双流区西南航空港经济开发区腾空港四路1177号 | G200: 四川双流经济开发区（西南航空港经济开发区） | H200: 3277.5 | I200: 3176.0 | J200: 2390.4 | K200: 44.9 | L200: 8.7 | M200: 18 | N200: 14.75 | O200: 132.6 | P200: 152.24 | Q200: 2310 | R200: 否 | S200: 否 | T200: 18% | U200: 否 | V200: 否 | W200: 否 | X200: 否 | Y200: 否 | Z200: 否 | AA200: 否 | AB200: 是 | AC200: 否 | AD200: 否 | AE200: 是 | AF200: 否 | AG200: 否 | AH200: 否 | AI200: 14 | AJ200: 6 | AK200: 0 | AL200: 否 | AM200: 否 | AN200: 否 | AO200: 否 | AP200: 1 | AQ200: 否 | AR200: 否 | AS200: 否 | AT200: 51.448
... 167 more rows
